Workbook

Sheet 1. Information Sheet
U1: a | AA1: =IF(OR(F16="", F16="(if applicable)"), F14, F14 & " - " & F16) -> Wellington North Power Inc.
M12: Version | N12: 1.1
E14: Utility Name | F14: Wellington North Power Inc.
E16: Service Territory
E18: Assigned EB Number | F18: EB-2014-0121
E20: Name of Contact and Title | F20: Richard Bucknall, Regulatory Compliance Analyst
E22: Phone Number | F22: 519-323-1710
E24: Email Address | F24: rbucknall@wellingtonnorthpower.com
E26: We are applying for rates effective | F26: 2015-05-01
E28: Rate-Setting Method | F28: Price Cap IR
A30: Please indicate in which Rate Year the Group 1 accounts were last cleared1 | F30: 2014
A32: Please indicate the last Cost of Service Re-Basing Year | F32: 2012
B35: Notes
C37: Pale green cells represent input cells.
C39: Pale blue cells represent drop-down lists. The applicant should select the appropriate item from the drop-down list.
C41: White cells contain fixed values, automatically generated values or formulae.
A44: Note: 1. Rate year of application

Sheet 2. Related Links
A13: ● | B13: Ontario Energy Board's 2015 Electricity Distribution Rates Webpage
A15: ● | B15: An updated version of Chapter 3 of the Filing Requirements for Electricity Distribution Rate Applications for 2015 rates.

Sheet 3. Rate Class Selection
A12: Select the appropriate rate classes as they appear on your most recent Board-Approved Tariff of Rates and Charges, including the MicroFit Class.
A14: How many classes are on your most recent Board-Approved Tariff of Rates and Charges? | J14: 8
A16: Select Your Rate Classes from the Blue Cells below. Please ensure that a rate class is assigned to each shaded cell.
B18: Rate Class Classification | Q18: # of duplicates
A19: 1 | B19: RESIDENTIAL | P19: =COUNTIF($B$19:$J$40, B19) -> 1 | Q19: =COUNTIF(P19:P40, 2)/2 -> 0
A20: 2 | B20: GENERAL SERVICE LESS THAN 50 KW | P20: =COUNTIF($B$19:$J$40, B20) -> 1
A21: 3 | B21: GENERAL SERVICE 50 TO 999 KW | P21: 1
A22: 4 | B22: GENERAL SERVICE 1,000 TO 4,999 KW | P22: 1
A23: 5 | B23: UNMETERED SCATTERED LOAD | P23: 1
A24: 6 | B24: SENTINEL LIGHTING | P24: 1
A25: 7 | B25: STREET LIGHTING | P25: 1
A26: 8 | B26: microFIT | P26: 1
P27: 0
P28: 0
P29: 0
P30: 0
P31: 0
P32: 0
P33: 0

Sheet 4. Current Tariff Schedule
Z1: 3 | AA1: January | AB1: ≥
AA2: February
AA3: March
AA4: April
AA5: May
AA6: June
AA7: July
AA8: August
AA9: September
AA10: October
AA11: November
B12: For each class, Applicants are required to copy and paste the class descriptions (located directly under the class name) and the description of the applicability of those rates (description is found under the class name and directly under the word "APPLICATION"). By using the drop-down lists located under the column labeled "Rate Description", please select the descriptions of the rates and charges that BEST MATCHES the descriptions on your most recent Board-Approved Tariff of Rates and Charges. If the description is not found in the drop-down list, please enter the description in the green cells under the correct class exactly as it appears on the tariff. Please do not enter more than one "Service Charge" for each class for which a base monthly fixed charge applies. | AA12: December
B21: =IF(ISBLANK('1. Information Sheet'!F14), "Please Choose Distributor Name on Sheet 1", '1. Information Sheet'!F14) -> Wellington North Power Inc.
B22: TARIFF OF RATES AND CHARGES
A24: RESIDENTIAL | B24: RESIDENTIAL Service Classification
A25: RESIDENTIAL
A26: RESIDENTIAL | B26: This classification refers to the supply of electrical energy to Customers residing in residential dwelling units. Energy is generally supplied as single phase, 3-wire, 60-Hertz, having a nominal voltage of 120/240 Volts. Further servicing details are available in the distributor’s Conditions of Service.
A27: RESIDENTIAL
A28: RESIDENTIAL
A29: RESIDENTIAL
A30: RESIDENTIAL
A31: RESIDENTIAL
A32: RESIDENTIAL | B32: APPLICATION
A33: RESIDENTIAL
A34: RESIDENTIAL | B34: The application of these rates and charges shall be in accordance with the Licence of the Distributor and any Code or Order of the Board, and amendments thereto as approved by the Board, which may be applicable to the administration of this schedule.
A35: RESIDENTIAL
A36: RESIDENTIAL
A37: RESIDENTIAL | B37: No rates and charges for the distribution of electricity and charges to meet the costs of any work or service done or furnished for the purpose of the distribution of electricity shall be made except as permitted by this schedule, unless required by the Distributor’s Licence or a Code or Order of the Board, and amendments thereto as approved by the Board, or as specified herein
A38: RESIDENTIAL
A39: RESIDENTIAL
A40: RESIDENTIAL
A41: RESIDENTIAL | B41: Unless specifically noted, this schedule does not contain any charges for the electricity commodity, be it under the Regulated Price Plan, a contract with a retailer or the wholesale market price, as applicable.
A42: RESIDENTIAL
A43: RESIDENTIAL
A44: RESIDENTIAL | B44: It should be noted that this schedule does not list any charges, assessments or credits that are required by law to be invoiced by a distributor and that are not subject to Board approval, such as the Debt Retirement Charge, the Global Adjustment, the Ontario Clean Energy Benefit and the HST.
A45: RESIDENTIAL
A46: RESIDENTIAL
A47: RESIDENTIAL
A48: RESIDENTIAL | B48: MONTHLY RATES AND CHARGES - Delivery Component (If applicable, Effective Date MUST be included in rate description)
A49: RESIDENTIAL | B49: Service Charge | H49: $ | I49: 18.28 | K49: 1_C_MSC
A50: RESIDENTIAL | B50: Rate Rider for Recovery of Incremental Capital Module Costs (2014) - in effect until the effective date of the next cost of service-based rate order | H50: $ | I50: 0.88 | K50: 1_C_MSC_Rate_Rider_1
A51: RESIDENTIAL | B51: Rate Rider for Smart Metering Entity Charge - effective until October 31, 2018 | H51: $ | I51: 0.79 | K51: 1_C_SMEC | L51: 2018-10-31
A52: RESIDENTIAL | B52: Distribution Volumetric Rate | H52: $/kWh | I52: 0.0183 | K52: 1_C_VC_1
A53: RESIDENTIAL | B53: Low Voltage Service Rate | H53: $/kWh | I53: 0.0018 | K53: 1_C_LVrate
A54: RESIDENTIAL | B54: Rate Rider for Recovery of Incremental Capital Module Costs (2014) - in effect until the effective date of the next cost of service-based rate order | H54: $/kWh | I54: 0.0009 | K54: 1_C_VC_Rate_Rider_kWh_1
A55: RESIDENTIAL | B55: Rate Rider for Deferral/Variance Account Disposition (2014) - effective until April 30, 2015 | H55: $/kWh | I55: 0.0002 | K55: 1_C_VC_DEFVAR_kWh_1 | L55: 2015-04-30
A56: RESIDENTIAL
A57: RESIDENTIAL | B57: Retail Transmission Rate - Network Service Rate | H57: $/kWh | I57: 0.0066 | K57: 1_C_RTSR_Network
A58: RESIDENTIAL | B58: Retail Transmission Rate - Line and Transformation Connection Service Rate | H58: $/kWh | I58: 0.0041 | K58: 1_C_RTSR_Connection
A59: RESIDENTIAL
A60: RESIDENTIAL
A61: RESIDENTIAL
A62: RESIDENTIAL
A63: RESIDENTIAL
A64: RESIDENTIAL
A65: RESIDENTIAL
A66: RESIDENTIAL
A67: RESIDENTIAL
A68: RESIDENTIAL
A69: RESIDENTIAL
A70: RESIDENTIAL
A71: RESIDENTIAL
A72: RESIDENTIAL
A73: RESIDENTIAL | B73: Rate Rider for Disposition of Global Adjustment Account (2014) – effective until April 30, 2015 Applicable only for Non-RPP Customers | H73: $/kWh | I73: -0.0041 | K73: 1_C_VC_GA_Rate_Rider_kWh_1 | L73: 2015-04-30
A74: RESIDENTIAL
A75: RESIDENTIAL
A76: RESIDENTIAL
A77: RESIDENTIAL
A78: RESIDENTIAL
A79: RESIDENTIAL | B79: MONTHLY RATES AND CHARGES - Regulatory Component
A80: RESIDENTIAL
A81: RESIDENTIAL | B81: Wholesale Market Service Rate | H81: $/kWh | I81: 0.0044 | K81: 1_C_WMSR
A82: RESIDENTIAL | B82: Rural or Remote Electricity Rate Protection Charge (RRRP) | H82: $/kWh | I82: 0.0013 | K82: 1_C_RRPC
A83: RESIDENTIAL | B83: Standard Supply Service - Administrative Charge (if applicable) | H83: $ | I83: 0.25 | K83: 1_C_SSS
A84: RESIDENTIAL
A87: GENERAL SERVICE LESS THAN 50 KW | B87: GENERAL SERVICE LESS THAN 50 KW Service Classification
A88: GENERAL SERVICE LESS THAN 50 KW
A89: GENERAL SERVICE LESS THAN 50 KW | B89: This classification applies to customers in General Service buildings with a connected load less than 50 kW, and Town Houses and Condominiums that require centralized bulk metering. General Service buildings are defined as buildings that are used for purposes other than single-family dwellings. Further servicing details are available in the distributor’s Conditions of Service.
A90: GENERAL SERVICE LESS THAN 50 KW
A91: GENERAL SERVICE LESS THAN 50 KW
A92: GENERAL SERVICE LESS THAN 50 KW
A93: GENERAL SERVICE LESS THAN 50 KW
A94: GENERAL SERVICE LESS THAN 50 KW
A95: GENERAL SERVICE LESS THAN 50 KW | B95: APPLICATION
A96: GENERAL SERVICE LESS THAN 50 KW
A97: GENERAL SERVICE LESS THAN 50 KW | B97: The application of these rates and charges shall be in accordance with the Licence of the Distributor and any Code or Order of the Board, and amendments thereto as approved by the Board, which may be applicable to the administration of this schedule
A98: GENERAL SERVICE LESS THAN 50 KW
A99: GENERAL SERVICE LESS THAN 50 KW
A100: GENERAL SERVICE LESS THAN 50 KW | B100: No rates and charges for the distribution of electricity and charges to meet the costs of any work or service done or furnished for the purpose of the distribution of electricity shall be made except as permitted by this schedule, unless required by the Distributor’s Licence or a Code or Order of the Board, and amendments thereto as approved by the Board, or as specified herein.
A101: GENERAL SERVICE LESS THAN 50 KW
A102: GENERAL SERVICE LESS THAN 50 KW
A103: GENERAL SERVICE LESS THAN 50 KW
A104: GENERAL SERVICE LESS THAN 50 KW | B104: Unless specifically noted, this schedule does not contain any charges for the electricity commodity, be it under the Regulated Price Plan, a contract with a retailer or the wholesale market price, as applicable.
A105: GENERAL SERVICE LESS THAN 50 KW
A106: GENERAL SERVICE LESS THAN 50 KW
A107: GENERAL SERVICE LESS THAN 50 KW | B107: It should be noted that this schedule does not list any charges, assessments or credits that are required by law to be invoiced by a distributor and that are not subject to Board approval, such as the Debt Retirement Charge, the Global Adjustment, the Ontario Clean Energy Benefit and the HST
A108: GENERAL SERVICE LESS THAN 50 KW
A109: GENERAL SERVICE LESS THAN 50 KW
A110: GENERAL SERVICE LESS THAN 50 KW
A111: GENERAL SERVICE LESS THAN 50 KW | B111: MONTHLY RATES AND CHARGES - Delivery Component (If applicable, Effective Date MUST be included in rate description)
A112: GENERAL SERVICE LESS THAN 50 KW | B112: Service Charge | H112: $ | I112: 38.8 | K112: 2_C_MSC
A113: GENERAL SERVICE LESS THAN 50 KW | B113: Rate Rider for Recovery of Incremental Capital Module Costs (2014) - in effect until the effective date of the next cost of service-based rate order | H113: $ | I113: 1.87 | K113: 2_C_MSC_Rate_Rider_1
A114: GENERAL SERVICE LESS THAN 50 KW | B114: Rate Rider for Smart Metering Entity Charge - effective until October 31, 2018 | H114: $ | I114: 0.79 | K114: 2_C_SMEC | L114: 2018-10-31
A115: GENERAL SERVICE LESS THAN 50 KW | B115: Distribution Volumetric Rate | H115: $/kWh | I115: 0.0166 | K115: 2_C_VC_1
A116: GENERAL SERVICE LESS THAN 50 KW | B116: Low Voltage Service Rate | H116: $/kWh | I116: 0.0015 | K116: 2_C_LVrate
A117: GENERAL SERVICE LESS THAN 50 KW | B117: Rate Rider for Recovery of Incremental Capital Module Costs (2014) - in effect until the effective date of the next cost of service-based rate order | H117: $/kWh | I117: 0.0008 | K117: 2_C_VC_Rate_Rider_kWh_1
A118: GENERAL SERVICE LESS THAN 50 KW | B118: Rate Rider for Deferral/Variance Account Disposition (2014) - effective until April 30, 2015 | H118: $/kWh | I118: 0.0002 | K118: 2_C_VC_DEFVAR_kWh_1 | L118: 2015-04-30
A119: GENERAL SERVICE LESS THAN 50 KW
A120: GENERAL SERVICE LESS THAN 50 KW | B120: Retail Transmission Rate - Network Service Rate | H120: $/kWh | I120: 0.0061 | K120: 2_C_RTSR_Network
A121: GENERAL SERVICE LESS THAN 50 KW | B121: Retail Transmission Rate - Line and Transformation Connection Service Rate | H121: $/kWh | I121: 0.0034 | K121: 2_C_RTSR_Connection
A122: GENERAL SERVICE LESS THAN 50 KW
A123: GENERAL SERVICE LESS THAN 50 KW
A124: GENERAL SERVICE LESS THAN 50 KW
A125: GENERAL SERVICE LESS THAN 50 KW
A126: GENERAL SERVICE LESS THAN 50 KW
A127: GENERAL SERVICE LESS THAN 50 KW
A128: GENERAL SERVICE LESS THAN 50 KW
A129: GENERAL SERVICE LESS THAN 50 KW
A130: GENERAL SERVICE LESS THAN 50 KW
A131: GENERAL SERVICE LESS THAN 50 KW
A132: GENERAL SERVICE LESS THAN 50 KW
A133: GENERAL SERVICE LESS THAN 50 KW
A134: GENERAL SERVICE LESS THAN 50 KW
A135: GENERAL SERVICE LESS THAN 50 KW
A136: GENERAL SERVICE LESS THAN 50 KW | B136: Rate Rider for Disposition of Global Adjustment Account (2014) – effective until April 30, 2015 Applicable only for Non-RPP Customers | H136: $/kWh | I136: -0.0041 | K136: 2_C_VC_GA_Rate_Rider_kWh_1 | L136: 2015-04-30
A137: GENERAL SERVICE LESS THAN 50 KW
A138: GENERAL SERVICE LESS THAN 50 KW
A139: GENERAL SERVICE LESS THAN 50 KW
A140: GENERAL SERVICE LESS THAN 50 KW
A141: GENERAL SERVICE LESS THAN 50 KW
A142: GENERAL SERVICE LESS THAN 50 KW | B142: MONTHLY RATES AND CHARGES - Regulatory Component
A143: GENERAL SERVICE LESS THAN 50 KW
A144: GENERAL SERVICE LESS THAN 50 KW | B144: Wholesale Market Service Rate | H144: $/kWh | I144: 0.0044 | K144: 2_C_WMSR
A145: GENERAL SERVICE LESS THAN 50 KW | B145: Rural or Remote Electricity Rate Protection Charge (RRRP) | H145: $/kWh | I145: 0.0013 | K145: 2_C_RRPC
A146: GENERAL SERVICE LESS THAN 50 KW | B146: Standard Supply Service - Administrative Charge (if applicable) | H146: $ | I146: 0.25 | K146: 2_C_SSS
A147: GENERAL SERVICE LESS THAN 50 KW
A150: GENERAL SERVICE 50 TO 999 KW | B150: GENERAL SERVICE 50 TO 999 KW Service Classification
A151: GENERAL SERVICE 50 TO 999 KW
A152: GENERAL SERVICE 50 TO 999 KW | B152: This classification applies to a non residential account whose average monthly maximum demand used for billing purposes is equal to or greater than, or is forecast to be equal to or greater than, 50 kW but less than 1,000 kW. Further servicing details are available in the distributor’s Conditions of Service
A153: GENERAL SERVICE 50 TO 999 KW
A154: GENERAL SERVICE 50 TO 999 KW
A155: GENERAL SERVICE 50 TO 999 KW
A156: GENERAL SERVICE 50 TO 999 KW
A157: GENERAL SERVICE 50 TO 999 KW
A158: GENERAL SERVICE 50 TO 999 KW | B158: APPLICATION
A159: GENERAL SERVICE 50 TO 999 KW
A160: GENERAL SERVICE 50 TO 999 KW | B160: The application of these rates and charges shall be in accordance with the Licence of the Distributor and any Code or Order of the Board, and amendments thereto as approved by the Board, which may be applicable to the administration of this schedule.
A161: GENERAL SERVICE 50 TO 999 KW
A162: GENERAL SERVICE 50 TO 999 KW
A163: GENERAL SERVICE 50 TO 999 KW | B163: No rates and charges for the distribution of electricity and charges to meet the costs of any work or service done or furnished for the purpose of the distribution of electricity shall be made except as permitted by this schedule, unless required by the Distributor’s Licence or a Code or Order of the Board, and amendments thereto as approved by the Board, or as specified herein.
A164: GENERAL SERVICE 50 TO 999 KW
A165: GENERAL SERVICE 50 TO 999 KW
A166: GENERAL SERVICE 50 TO 999 KW
A167: GENERAL SERVICE 50 TO 999 KW | B167: Unless specifically noted, this schedule does not contain any charges for the electricity commodity, be it under the Regulated Price Plan, a contract with a retailer or the wholesale market price, as applicable.
A168: GENERAL SERVICE 50 TO 999 KW
A169: GENERAL SERVICE 50 TO 999 KW
A170: GENERAL SERVICE 50 TO 999 KW | B170: It should be noted that this schedule does not list any charges, assessments or credits that are required by law to be invoiced by a distributor and that are not subject to Board approval, such as the Debt Retirement Charge, the Global Adjustment, the Ontario Clean Energy Benefit and the HST.
A171: GENERAL SERVICE 50 TO 999 KW
A172: GENERAL SERVICE 50 TO 999 KW
A173: GENERAL SERVICE 50 TO 999 KW
A174: GENERAL SERVICE 50 TO 999 KW | B174: MONTHLY RATES AND CHARGES - Delivery Component (If applicable, Effective Date MUST be included in rate description)
A175: GENERAL SERVICE 50 TO 999 KW | B175: Service Charge | H175: $ | I175: 272.76 | K175: 3_C_MSC
A176: GENERAL SERVICE 50 TO 999 KW | B176: Rate Rider for Recovery of Incremental Capital Module Costs (2014) - in effect until the effective date of the next cost of service-based rate order | H176: $ | I176: 13.15 | K176: 3_C_MSC_Rate_Rider_1
A177: GENERAL SERVICE 50 TO 999 KW | B177: Distribution Volumetric Rate | H177: $/kW | I177: 3.6226 | K177: 3_C_VC_1
A178: GENERAL SERVICE 50 TO 999 KW | B178: Low Voltage Service Rate | H178: $/kW | I178: 0.605 | K178: 3_C_LVrate
A179: GENERAL SERVICE 50 TO 999 KW | B179: Rate Rider for Recovery of Incremental Capital Module Costs (2014) - in effect until the effective date of the next cost of service-based rate order | H179: $/kW | I179: 0.1746 | K179: 3_C_VC_Rate_Rider_kW_1
A180: GENERAL SERVICE 50 TO 999 KW | B180: Rate Rider for Deferral/Variance Account Disposition (2014) - effective until April 30, 2015 | H180: $/kW | I180: 0.0793 | K180: 3_C_VC_DEFVAR_kW_1 | L180: 2015-04-30
A181: GENERAL SERVICE 50 TO 999 KW
A182: GENERAL SERVICE 50 TO 999 KW | B182: Retail Transmission Rate - Network Service Rate | H182: $/kW | I182: 2.5128 | K182: 3_C_RTSR_Network
A183: GENERAL SERVICE 50 TO 999 KW | B183: Retail Transmission Rate - Line and Transformation Connection Service Rate | H183: $/kW | I183: 1.372 | K183: 3_C_RTSR_Connection
A184: GENERAL SERVICE 50 TO 999 KW
A185: GENERAL SERVICE 50 TO 999 KW
A186: GENERAL SERVICE 50 TO 999 KW
A187: GENERAL SERVICE 50 TO 999 KW
A188: GENERAL SERVICE 50 TO 999 KW
A189: GENERAL SERVICE 50 TO 999 KW
A190: GENERAL SERVICE 50 TO 999 KW
A191: GENERAL SERVICE 50 TO 999 KW
A192: GENERAL SERVICE 50 TO 999 KW
A193: GENERAL SERVICE 50 TO 999 KW
A194: GENERAL SERVICE 50 TO 999 KW
A195: GENERAL SERVICE 50 TO 999 KW
A196: GENERAL SERVICE 50 TO 999 KW
A197: GENERAL SERVICE 50 TO 999 KW
A198: GENERAL SERVICE 50 TO 999 KW
A199: GENERAL SERVICE 50 TO 999 KW | B199: Rate Rider for Disposition of Global Adjustment Account (2014) – effective until April 30, 2015 Applicable only for Non-RPP Customers | H199: $/kW | I199: -1.61 | K199: 3_C_VC_GA_Rate_Rider_kW_1 | L199: 2015-04-30
A200: GENERAL SERVICE 50 TO 999 KW
A201: GENERAL SERVICE 50 TO 999 KW
A202: GENERAL SERVICE 50 TO 999 KW
A203: GENERAL SERVICE 50 TO 999 KW
A204: GENERAL SERVICE 50 TO 999 KW
A205: GENERAL SERVICE 50 TO 999 KW | B205: MONTHLY RATES AND CHARGES - Regulatory Component
A206: GENERAL SERVICE 50 TO 999 KW
A207: GENERAL SERVICE 50 TO 999 KW | B207: Wholesale Market Service Rate | H207: $/kWh | I207: 0.0044 | K207: 3_C_WMSR
A208: GENERAL SERVICE 50 TO 999 KW | B208: Rural or Remote Electricity Rate Protection Charge (RRRP) | H208: $/kWh | I208: 0.0013 | K208: 3_C_RRPC
A209: GENERAL SERVICE 50 TO 999 KW | B209: Standard Supply Service - Administrative Charge (if applicable) | H209: $ | I209: 0.25 | K209: 3_C_SSS
A210: GENERAL SERVICE 50 TO 999 KW
A213: GENERAL SERVICE 1,000 TO 4,999 KW | B213: GENERAL SERVICE 1,000 TO 4,999 KW Service Classification
A214: GENERAL SERVICE 1,000 TO 4,999 KW
A215: GENERAL SERVICE 1,000 TO 4,999 KW | B215: This classification applies to a non residential account whose average monthly maximum demand used for billing purposes is equal to or greater than, or is forecast to be equal to or greater than, 1,000 kW but less than 5,000 kW. Further servicing details are available in the distributor’s Conditions of Service
... 296 more rows

Sheet 4. Hidden (hidden)
M1: Current Rate Classes | N1: Changed to Rate Classes | O1: Values in A that are NOT in B | P1: Values in B that are Not in A | Q1: Count of A | R1: Count of B
M2: RESIDENTIAL | N2: RESIDENTIAL | Q2: 8 | R2: 8
M3: GENERAL SERVICE LESS THAN 50 KW | N3: GENERAL SERVICE LESS THAN 50 KW
M4: GENERAL SERVICE 50 TO 999 KW | N4: GENERAL SERVICE 50 TO 999 KW
M5: GENERAL SERVICE 1,000 TO 4,999 KW | N5: GENERAL SERVICE 1,000 TO 4,999 KW
M6: UNMETERED SCATTERED LOAD | N6: UNMETERED SCATTERED LOAD
M7: SENTINEL LIGHTING | N7: SENTINEL LIGHTING
M8: STREET LIGHTING | N8: STREET LIGHTING
M9: microFIT | N9: microFIT
A24: RESIDENTIAL | B24: RESIDENTIAL Service Classification
A25: RESIDENTIAL
A26: RESIDENTIAL | B26: This classification refers to the supply of electrical energy to Customers residing in residential dwelling units. Energy is generally supplied as single phase, 3-wire, 60-Hertz, having a nominal voltage of 120/240 Volts. Further servicing details are available in the distributor’s Conditions of Service.
A27: RESIDENTIAL
A28: RESIDENTIAL
A29: RESIDENTIAL
A30: RESIDENTIAL
A31: RESIDENTIAL
A32: RESIDENTIAL | B32: APPLICATION
A33: RESIDENTIAL
A34: RESIDENTIAL | B34: The application of these rates and charges shall be in accordance with the Licence of the Distributor and any Code or Order of the Board, and amendments thereto as approved by the Board, which may be applicable to the administration of this schedule.
A35: RESIDENTIAL
A36: RESIDENTIAL
A37: RESIDENTIAL | B37: No rates and charges for the distribution of electricity and charges to meet the costs of any work or service done or furnished for the purpose of the distribution of electricity shall be made except as permitted by this schedule, unless required by the Distributor’s Licence or a Code or Order of the Board, and amendments thereto as approved by the Board, or as specified herein
A38: RESIDENTIAL
A39: RESIDENTIAL
A40: RESIDENTIAL
A41: RESIDENTIAL | B41: Unless specifically noted, this schedule does not contain any charges for the electricity commodity, be it under the Regulated Price Plan, a contract with a retailer or the wholesale market price, as applicable.
A42: RESIDENTIAL
A43: RESIDENTIAL
A44: RESIDENTIAL | B44: It should be noted that this schedule does not list any charges, assessments or credits that are required by law to be invoiced by a distributor and that are not subject to Board approval, such as the Debt Retirement Charge, the Global Adjustment, the Ontario Clean Energy Benefit and the HST.
A45: RESIDENTIAL
A46: RESIDENTIAL
A47: RESIDENTIAL
A48: RESIDENTIAL | B48: MONTHLY RATES AND CHARGES - Delivery Component (If applicable, Effective Date MUST be included in rate description)
A49: RESIDENTIAL | B49: Service Charge | H49: $ | I49: 18.28
A50: RESIDENTIAL | B50: Rate Rider for Recovery of Incremental Capital Module Costs (2014) - in effect until the effective date of the next cost of service-based rate order | H50: $ | I50: 0.88
A51: RESIDENTIAL | B51: Rate Rider for Smart Metering Entity Charge - effective until October 31, 2018 | H51: $ | I51: 0.79
A52: RESIDENTIAL | B52: Distribution Volumetric Rate | H52: $/kWh | I52: 0.0183
A53: RESIDENTIAL | B53: Low Voltage Service Rate | H53: $/kWh | I53: 0.0018
A54: RESIDENTIAL | B54: Rate Rider for Recovery of Incremental Capital Module Costs (2014) - in effect until the effective date of the next cost of service-based rate order | H54: $/kWh | I54: 0.0009
A55: RESIDENTIAL | B55: Rate Rider for Deferral/Variance Account Disposition (2014) - effective until April 30, 2015 | H55: $/kWh | I55: 0.0002
A56: RESIDENTIAL
A57: RESIDENTIAL | B57: Retail Transmission Rate - Network Service Rate | H57: $/kWh | I57: 0.0066
A58: RESIDENTIAL | B58: Retail Transmission Rate - Line and Transformation Connection Service Rate | H58: $/kWh | I58: 0.0041
A59: RESIDENTIAL
A60: RESIDENTIAL
A61: RESIDENTIAL
A62: RESIDENTIAL
A63: RESIDENTIAL
A64: RESIDENTIAL
A65: RESIDENTIAL
A66: RESIDENTIAL
A67: RESIDENTIAL
A68: RESIDENTIAL
A69: RESIDENTIAL
A70: RESIDENTIAL
A71: RESIDENTIAL
A72: RESIDENTIAL
A73: RESIDENTIAL | B73: Rate Rider for Disposition of Global Adjustment Account (2014) – effective until April 30, 2015 Applicable only for Non-RPP Customers | H73: $/kWh | I73: -0.0041
A74: RESIDENTIAL
A75: RESIDENTIAL
A76: RESIDENTIAL
A77: RESIDENTIAL
A78: RESIDENTIAL
A79: RESIDENTIAL | B79: MONTHLY RATES AND CHARGES - Regulatory Component
A80: RESIDENTIAL
A81: RESIDENTIAL | B81: Wholesale Market Service Rate | H81: $/kWh | I81: 0.0044
A82: RESIDENTIAL | B82: Rural or Remote Electricity Rate Protection Charge (RRRP) | H82: $/kWh | I82: 0.0013
A83: RESIDENTIAL | B83: Standard Supply Service - Administrative Charge (if applicable) | H83: $ | I83: 0.25
A84: RESIDENTIAL
A87: GENERAL SERVICE LESS THAN 50 KW | B87: GENERAL SERVICE LESS THAN 50 KW Service Classification
A88: GENERAL SERVICE LESS THAN 50 KW
A89: GENERAL SERVICE LESS THAN 50 KW | B89: This classification applies to customers in General Service buildings with a connected load less than 50 kW, and Town Houses and Condominiums that require centralized bulk metering. General Service buildings are defined as buildings that are used for purposes other than single-family dwellings. Further servicing details are available in the distributor’s Conditions of Service.
A90: GENERAL SERVICE LESS THAN 50 KW
A91: GENERAL SERVICE LESS THAN 50 KW
A92: GENERAL SERVICE LESS THAN 50 KW
A93: GENERAL SERVICE LESS THAN 50 KW
A94: GENERAL SERVICE LESS THAN 50 KW
A95: GENERAL SERVICE LESS THAN 50 KW | B95: APPLICATION
A96: GENERAL SERVICE LESS THAN 50 KW
A97: GENERAL SERVICE LESS THAN 50 KW | B97: The application of these rates and charges shall be in accordance with the Licence of the Distributor and any Code or Order of the Board, and amendments thereto as approved by the Board, which may be applicable to the administration of this schedule
A98: GENERAL SERVICE LESS THAN 50 KW
A99: GENERAL SERVICE LESS THAN 50 KW
A100: GENERAL SERVICE LESS THAN 50 KW | B100: No rates and charges for the distribution of electricity and charges to meet the costs of any work or service done or furnished for the purpose of the distribution of electricity shall be made except as permitted by this schedule, unless required by the Distributor’s Licence or a Code or Order of the Board, and amendments thereto as approved by the Board, or as specified herein.
A101: GENERAL SERVICE LESS THAN 50 KW
A102: GENERAL SERVICE LESS THAN 50 KW
A103: GENERAL SERVICE LESS THAN 50 KW
A104: GENERAL SERVICE LESS THAN 50 KW | B104: Unless specifically noted, this schedule does not contain any charges for the electricity commodity, be it under the Regulated Price Plan, a contract with a retailer or the wholesale market price, as applicable.
A105: GENERAL SERVICE LESS THAN 50 KW
A106: GENERAL SERVICE LESS THAN 50 KW
A107: GENERAL SERVICE LESS THAN 50 KW | B107: It should be noted that this schedule does not list any charges, assessments or credits that are required by law to be invoiced by a distributor and that are not subject to Board approval, such as the Debt Retirement Charge, the Global Adjustment, the Ontario Clean Energy Benefit and the HST
A108: GENERAL SERVICE LESS THAN 50 KW
A109: GENERAL SERVICE LESS THAN 50 KW
A110: GENERAL SERVICE LESS THAN 50 KW
A111: GENERAL SERVICE LESS THAN 50 KW | B111: MONTHLY RATES AND CHARGES - Delivery Component (If applicable, Effective Date MUST be included in rate description)
A112: GENERAL SERVICE LESS THAN 50 KW | B112: Service Charge | H112: $ | I112: 38.8
A113: GENERAL SERVICE LESS THAN 50 KW | B113: Rate Rider for Recovery of Incremental Capital Module Costs (2014) - in effect until the effective date of the next cost of service-based rate order | H113: $ | I113: 1.87
A114: GENERAL SERVICE LESS THAN 50 KW | B114: Rate Rider for Smart Metering Entity Charge - effective until October 31, 2018 | H114: $ | I114: 0.79
A115: GENERAL SERVICE LESS THAN 50 KW | B115: Distribution Volumetric Rate | H115: $/kWh | I115: 0.0166
A116: GENERAL SERVICE LESS THAN 50 KW | B116: Low Voltage Service Rate | H116: $/kWh | I116: 0.0015
A117: GENERAL SERVICE LESS THAN 50 KW | B117: Rate Rider for Recovery of Incremental Capital Module Costs (2014) - in effect until the effective date of the next cost of service-based rate order | H117: $/kWh | I117: 0.0008
A118: GENERAL SERVICE LESS THAN 50 KW | B118: Rate Rider for Deferral/Variance Account Disposition (2014) - effective until April 30, 2015 | H118: $/kWh | I118: 0.0002
A119: GENERAL SERVICE LESS THAN 50 KW
A120: GENERAL SERVICE LESS THAN 50 KW | B120: Retail Transmission Rate - Network Service Rate | H120: $/kWh | I120: 0.0061
A121: GENERAL SERVICE LESS THAN 50 KW | B121: Retail Transmission Rate - Line and Transformation Connection Service Rate | H121: $/kWh | I121: 0.0034
A122: GENERAL SERVICE LESS THAN 50 KW
A123: GENERAL SERVICE LESS THAN 50 KW
A124: GENERAL SERVICE LESS THAN 50 KW
A125: GENERAL SERVICE LESS THAN 50 KW
A126: GENERAL SERVICE LESS THAN 50 KW
A127: GENERAL SERVICE LESS THAN 50 KW
A128: GENERAL SERVICE LESS THAN 50 KW
A129: GENERAL SERVICE LESS THAN 50 KW
A130: GENERAL SERVICE LESS THAN 50 KW
A131: GENERAL SERVICE LESS THAN 50 KW
A132: GENERAL SERVICE LESS THAN 50 KW
A133: GENERAL SERVICE LESS THAN 50 KW
A134: GENERAL SERVICE LESS THAN 50 KW
A135: GENERAL SERVICE LESS THAN 50 KW
A136: GENERAL SERVICE LESS THAN 50 KW | B136: Rate Rider for Disposition of Global Adjustment Account (2014) – effective until April 30, 2015 Applicable only for Non-RPP Customers | H136: $/kWh | I136: -0.0041
A137: GENERAL SERVICE LESS THAN 50 KW
A138: GENERAL SERVICE LESS THAN 50 KW
A139: GENERAL SERVICE LESS THAN 50 KW
A140: GENERAL SERVICE LESS THAN 50 KW
A141: GENERAL SERVICE LESS THAN 50 KW
A142: GENERAL SERVICE LESS THAN 50 KW | B142: MONTHLY RATES AND CHARGES - Regulatory Component
A143: GENERAL SERVICE LESS THAN 50 KW
A144: GENERAL SERVICE LESS THAN 50 KW | B144: Wholesale Market Service Rate | H144: $/kWh | I144: 0.0044
A145: GENERAL SERVICE LESS THAN 50 KW | B145: Rural or Remote Electricity Rate Protection Charge (RRRP) | H145: $/kWh | I145: 0.0013
A146: GENERAL SERVICE LESS THAN 50 KW | B146: Standard Supply Service - Administrative Charge (if applicable) | H146: $ | I146: 0.25
A147: GENERAL SERVICE LESS THAN 50 KW
A150: GENERAL SERVICE 50 TO 999 KW | B150: GENERAL SERVICE 50 TO 999 KW Service Classification
A151: GENERAL SERVICE 50 TO 999 KW
A152: GENERAL SERVICE 50 TO 999 KW | B152: This classification applies to a non residential account whose average monthly maximum demand used for billing purposes is equal to or greater than, or is forecast to be equal to or greater than, 50 kW but less than 1,000 kW. Further servicing details are available in the distributor’s Conditions of Service
A153: GENERAL SERVICE 50 TO 999 KW
A154: GENERAL SERVICE 50 TO 999 KW
A155: GENERAL SERVICE 50 TO 999 KW
A156: GENERAL SERVICE 50 TO 999 KW
A157: GENERAL SERVICE 50 TO 999 KW
A158: GENERAL SERVICE 50 TO 999 KW | B158: APPLICATION
A159: GENERAL SERVICE 50 TO 999 KW
A160: GENERAL SERVICE 50 TO 999 KW | B160: The application of these rates and charges shall be in accordance with the Licence of the Distributor and any Code or Order of the Board, and amendments thereto as approved by the Board, which may be applicable to the administration of this schedule.
A161: GENERAL SERVICE 50 TO 999 KW
A162: GENERAL SERVICE 50 TO 999 KW
A163: GENERAL SERVICE 50 TO 999 KW | B163: No rates and charges for the distribution of electricity and charges to meet the costs of any work or service done or furnished for the purpose of the distribution of electricity shall be made except as permitted by this schedule, unless required by the Distributor’s Licence or a Code or Order of the Board, and amendments thereto as approved by the Board, or as specified herein.
A164: GENERAL SERVICE 50 TO 999 KW
A165: GENERAL SERVICE 50 TO 999 KW
A166: GENERAL SERVICE 50 TO 999 KW
A167: GENERAL SERVICE 50 TO 999 KW | B167: Unless specifically noted, this schedule does not contain any charges for the electricity commodity, be it under the Regulated Price Plan, a contract with a retailer or the wholesale market price, as applicable.
A168: GENERAL SERVICE 50 TO 999 KW
A169: GENERAL SERVICE 50 TO 999 KW
A170: GENERAL SERVICE 50 TO 999 KW | B170: It should be noted that this schedule does not list any charges, assessments or credits that are required by law to be invoiced by a distributor and that are not subject to Board approval, such as the Debt Retirement Charge, the Global Adjustment, the Ontario Clean Energy Benefit and the HST.
A171: GENERAL SERVICE 50 TO 999 KW
A172: GENERAL SERVICE 50 TO 999 KW
A173: GENERAL SERVICE 50 TO 999 KW
A174: GENERAL SERVICE 50 TO 999 KW | B174: MONTHLY RATES AND CHARGES - Delivery Component (If applicable, Effective Date MUST be included in rate description)
A175: GENERAL SERVICE 50 TO 999 KW | B175: Service Charge | H175: $ | I175: 272.76
A176: GENERAL SERVICE 50 TO 999 KW | B176: Rate Rider for Recovery of Incremental Capital Module Costs (2014) - in effect until the effective date of the next cost of service-based rate order | H176: $ | I176: 13.15
A177: GENERAL SERVICE 50 TO 999 KW | B177: Distribution Volumetric Rate | H177: $/kW | I177: 3.6226
A178: GENERAL SERVICE 50 TO 999 KW | B178: Low Voltage Service Rate | H178: $/kW | I178: 0.605
A179: GENERAL SERVICE 50 TO 999 KW | B179: Rate Rider for Recovery of Incremental Capital Module Costs (2014) - in effect until the effective date of the next cost of service-based rate order | H179: $/kW | I179: 0.1746
A180: GENERAL SERVICE 50 TO 999 KW | B180: Rate Rider for Deferral/Variance Account Disposition (2014) - effective until April 30, 2015 | H180: $/kW | I180: 0.0793
A181: GENERAL SERVICE 50 TO 999 KW
A182: GENERAL SERVICE 50 TO 999 KW | B182: Retail Transmission Rate - Network Service Rate | H182: $/kW | I182: 2.5128
A183: GENERAL SERVICE 50 TO 999 KW | B183: Retail Transmission Rate - Line and Transformation Connection Service Rate | H183: $/kW | I183: 1.372
A184: GENERAL SERVICE 50 TO 999 KW
A185: GENERAL SERVICE 50 TO 999 KW
A186: GENERAL SERVICE 50 TO 999 KW
A187: GENERAL SERVICE 50 TO 999 KW
A188: GENERAL SERVICE 50 TO 999 KW
A189: GENERAL SERVICE 50 TO 999 KW
A190: GENERAL SERVICE 50 TO 999 KW
A191: GENERAL SERVICE 50 TO 999 KW
A192: GENERAL SERVICE 50 TO 999 KW
A193: GENERAL SERVICE 50 TO 999 KW
A194: GENERAL SERVICE 50 TO 999 KW
A195: GENERAL SERVICE 50 TO 999 KW
A196: GENERAL SERVICE 50 TO 999 KW
A197: GENERAL SERVICE 50 TO 999 KW
A198: GENERAL SERVICE 50 TO 999 KW
A199: GENERAL SERVICE 50 TO 999 KW | B199: Rate Rider for Disposition of Global Adjustment Account (2014) – effective until April 30, 2015 Applicable only for Non-RPP Customers | H199: $/kW | I199: -1.61
A200: GENERAL SERVICE 50 TO 999 KW
A201: GENERAL SERVICE 50 TO 999 KW
A202: GENERAL SERVICE 50 TO 999 KW
A203: GENERAL SERVICE 50 TO 999 KW
A204: GENERAL SERVICE 50 TO 999 KW
A205: GENERAL SERVICE 50 TO 999 KW | B205: MONTHLY RATES AND CHARGES - Regulatory Component
A206: GENERAL SERVICE 50 TO 999 KW
A207: GENERAL SERVICE 50 TO 999 KW | B207: Wholesale Market Service Rate | H207: $/kWh | I207: 0.0044
A208: GENERAL SERVICE 50 TO 999 KW | B208: Rural or Remote Electricity Rate Protection Charge (RRRP) | H208: $/kWh | I208: 0.0013
A209: GENERAL SERVICE 50 TO 999 KW | B209: Standard Supply Service - Administrative Charge (if applicable) | H209: $ | I209: 0.25
A210: GENERAL SERVICE 50 TO 999 KW
A213: GENERAL SERVICE 50 TO 4,999 KW | B213: GENERAL SERVICE 50 TO 4,999 KW Service Classification
A214: GENERAL SERVICE 50 TO 4,999 KW
A215: GENERAL SERVICE 50 TO 4,999 KW | B215: This classification applies to a non residential account whose average monthly maximum demand used for billing purposes is equal to or greater than, or is forecast to be equal to or greater than, 1,000 kW but less than 5,000 kW. Further servicing details are available in the distributor’s Conditions of Service
A216: GENERAL SERVICE 50 TO 4,999 KW
A217: GENERAL SERVICE 50 TO 4,999 KW
A218: GENERAL SERVICE 50 TO 4,999 KW
A219: GENERAL SERVICE 50 TO 4,999 KW
A220: GENERAL SERVICE 50 TO 4,999 KW
... 291 more rows

Sheet 5. 2014 Continuity Schedule
C15: Please complete the following continuity schedule for the following Deferral / Variance Accounts. Enter information into green cells only. If you have received approval to dispose of balances from prior years, the starting point for entries in the 2015 DVA schedule below will be the balance sheet date as per your G/L for which you received approval. For example, if in the 2014 EDR process (CoS or IRM) you received approval for the December 31, 2012 balances, the starting point for your entries below should be the 2011 year. This will allow for the correct starting point for the 2012 opening balance columns for both principal and interest. Please refer to the footnotes for further instructions.
E19: 2010 | O19: 2011 | Y19: 2012 | AL19: 2013 | AY19: 2014 | BC19: Projected Interest on Dec-31-13 Balances | BF19: 2.1.7 RRR
C20: Account Descriptions | D20: Account Number | E20: Opening Principal Amounts as of Jan-1-10 | F20: Transactions Debit / (Credit) during 2010 excluding interest and adjustments 2 | G20: Board-Approved Disposition during 2010 | H20: Adjustments during 2010 - other 1 | I20: Closing Principal Balance as of Dec-31-10 | J20: Opening Interest Amounts as of Jan-1-10 | K20: Interest Jan-1 to Dec-31-10 | L20: Board-Approved Disposition during 2010 | M20: Adjustments during 2010 - other 2 | N20: Closing Interest Amounts as of Dec-31-10 | O20: Opening Principal Amounts as of Jan-1-11 | P20: Transactions Debit / (Credit) during 2011 excluding interest and adjustments 2 | Q20: Board-Approved Disposition during 2011 | R20: Adjustments during 2011 - other 1 | S20: Closing Principal Balance as of Dec-31-11 | T20: Opening Interest Amounts as of Jan-1-11 | U20: Interest Jan-1 to Dec-31-11 | V20: Board-Approved Disposition during 2011 | W20: Adjustments during 2011 - other 2 | X20: Closing Interest Amounts as of Dec-31-11 | Y20: Opening Principal Amounts as of Jan-1-12 | Z20: Transactions Debit / (Credit) during 2012 excluding interest and adjustments 2 | AA20: Board-Approved Disposition during 2012 | AB20: Other 1 Adjustments during Q1 2012 | AC20: Other 1 Adjustments during Q2 2012 | AD20: Other 1 Adjustments during Q3 2012 | AE20: Other 1 Adjustments during Q4 2012 | AF20: Closing Principal Balance as of Dec-31-12 | AG20: Opening Interest Amounts as of Jan-1-12 | AH20: Interest Jan-1 to Dec-31-12 | AI20: Board-Approved Disposition during 2012 | AJ20: Adjustments during 2012 - other 1 | AK20: Closing Interest Amounts as of Dec-31-12 | AL20: Opening Principal Amounts as of Jan-1-13 | AM20: Transactions Debit / (Credit) during 2013 excluding interest and adjustments 2 | AN20: Board-Approved Disposition during 2013 | AO20: Other 1 Adjustments during Q1 2013 | AP20: Other 1 Adjustments during Q2 2013 | AQ20: Other 1 Adjustments during Q3 2013 | AR20: Other 1 Adjustments during Q4 2013 | AS20: Closing Principal Balance as of Dec-31-13 | AT20: Opening Interest Amounts as of Jan-1-13 | AU20: Interest Jan-1 to Dec-31-13 | AV20: Board-Approved Disposition during 2013 | AW20: Adjustments during 2013 - other 1 | AX20: Closing Interest Amounts as of Dec-31-13 | AY20: Principal Disposition during 2014 - instructed by Board | AZ20: Interest Disposition during 2014 - instructed by Board | BA20: Closing Principal Balances as of Dec 31-13 Adjusted for Dispositions during 2014 | BB20: Closing Interest Balances as of Dec 31-13 Adjusted for Dispositions during 2014 | BC20: Projected Interest from Jan 1, 2014 to December 31, 2014 on Dec 31 -13 balance adjusted for disposition during 2014 3 | BD20: Projected Interest from January 1, 2015 to April 30, 2015 on Dec 31 -13 balance adjusted for disposition during 2014 3 | BE20: Total Claim | BF20: As of Dec 31-13 | BG20: Variance RRR vs. 2013 Balance (Principal + Interest)
BE22: Claim before Forecasted Transactions
C23: Group 1 Accounts
A24: 1 | C24: LV Variance Account | D24: 1550 | E24: -63449 | F24: -50305.94 | G24: =12891.96+1443.41 -> 14335.37 | I24: =E24+F24-G24+H24 -> -128090.31 | J24: -180 | K24: -942.1 | L24: =1663.41-1443.41 -> 220 | N24: =J24+K24-L24+M24 -> -1342.1 | O24: =I24 -> -128090.31 | P24: -25888 | S24: =O24+P24-Q24+R24 -> -153978.31 | T24: =N24 -> -1342.1 | U24: -2201 | X24: =T24+U24-V24+W24 -> -3543.1 | Y24: =S24 -> -153978.31 | Z24: -12883 | AA24: -126645 | AF24: =Y24+Z24-AA24+SUM(AB24:AE24) -> -40216.31 | AG24: =X24 -> -3543.1 | AH24: -1956 | AI24: -5269 | AK24: =AG24+AH24-AI24+AJ24 -> -230.1 | AL24: =AF24 -> -40216.31 | AM24: 37320 | AS24: =AL24+AM24-AN24+SUM(AO24:AR24) -> -2896.31 | AT24: =AK24 -> -230.1 | AU24: -498.55 | AX24: =AT24+AU24-AV24+AW24 -> -728.65 | AY24: -40216 | AZ24: -1018 | BA24: =AS24-AY24 -> 37319.69 | BB24: =AX24-AZ24 -> 289.35 | BC24: =BA24*1.47% -> 548.599443 | BD24: =ROUND(BC24/12*4,0) -> 183 | BE24: =SUM(BA24:BD24) -> 38340.63944 | BF24: -3624.04 | BG24: =BF24-SUM(AS24,AX24) -> 0.92
C25: Smart Metering Entity Charge Variance | D25: 1551 | AL25: =AK25 -> 0 | AM25: =5624.42-91.38-108.17 -> 5424.87 | AS25: =AL25+AM25-AN25+SUM(AO25:AR25) -> 5424.87 | AT25: =AK25 -> 0 | AU25: =6.91+20.57+20.19 -> 47.67 | AX25: 47.67 | BA25: =AS25-AY25 -> 5424.87 | BB25: =AX25-AZ25 -> 47.67 | BC25: 79.745589 | BD25: 27 | BE25: =SUM(BA25:BD25) -> 5579.285589 | BF25: 5472.54 | BG25: =BF25-SUM(AS25,AX25) -> 0
A26: 2 | C26: RSVA - Wholesale Market Service Charge | D26: 1580 | E26: -256147 | F26: -109739.32 | G26: -230870.75 | I26: =E26+F26-G26+SUM(H26:H26) -> -135015.57 | J26: -9008.25 | K26: -1002.93 | L26: -9414.64 | N26: =J26+K26-L26+M26 -> -596.54 | O26: =I26 -> -135015.57 | P26: -106275 | S26: =O26+P26-Q26+SUM(R26:R26) -> -241290.57 | T26: -596.54 | U26: -2767 | X26: =T26+U26-V26+W26 -> -3363.54 | Y26: =S26 -> -241290.57 | Z26: -145405 | AA26: -135016 | AF26: -251679.57 | AG26: =X26 -> -3363.54 | AH26: -4029 | AI26: -3244 | AK26: -4148.54 | AL26: =AF26 -> -251679.57 | AM26: =-69935.32+2.03 -> -69933.29 | AS26: -321612.86 | AT26: =AK26 -> -4148.54 | AU26: -4354.21 | AX26: -8502.75 | AY26: -251680 | AZ26: -9082 | BA26: -69932.86 | BB26: 579.25 | BC26: -1028.013042 | BD26: -343 | BE26: =SUM(BA26:BD26) -> -70724.62304 | BF26: -330116.97 | BG26: -1.36
A27: 3 | C27: RSVA - Retail Transmission Network Charge | D27: 1584 | E27: 15456 | F27: 35194.46 | G27: 10133.88 | I27: 40516.58 | J27: -6481 | K27: 110.46 | L27: -6505.32 | N27: 134.78 | O27: 40516.58 | P27: 17323 | S27: 57839.58 | T27: 134.78 | U27: 391 | X27: 525.78 | Y27: 57839.58 | Z27: -5265 | AA27: 40517 | AF27: 12057.58 | AG27: 525.78 | AH27: 277 | AI27: 929 | AK27: -126.22 | AL27: 12057.58 | AM27: -14813.35 | AS27: -2755.77 | AT27: -126.22 | AU27: -81.81 | AX27: -208.03 | AY27: 12058 | AZ27: 110 | BA27: -14813.77 | BB27: -318.03 | BC27: -217.762419 | BD27: -73 | BE27: -15422.56242 | BF27: -2963.24 | BG27: 0.56
A28: 4 | C28: RSVA - Retail Transmission Connection Charge | D28: 1586 | E28: -790511 | F28: -181179.76 | G28: -614076.68 | I28: -357614.08 | J28: -133149 | K28: -3841.7 | L28: -131754.69 | N28: -5236.01 | O28: -357614.08 | P28: -65592 | S28: -423206.08 | T28: -5236.01 | U28: -6356 | X28: -11592.01 | Y28: -423206.08 | Z28: 5389 | AA28: -357615 | AF28: -60202.08 | AG28: -11592.01 | AH28: -5226 | AI28: -12245 | AK28: -4573.01 | AL28: -60202.08 | AM28: -17712.62 | AS28: -77914.7 | AT28: -4573.01 | AU28: -1129.85 | AW28: 25.27 | AX28: -5677.59 | AY28: -60203 | AZ28: -5753 | BA28: -17711.7 | BB28: 75.41 | BC28: -260.36199 | BD28: -87 | BE28: -17983.65199 | BF28: -83592.4 | BG28: -0.11
A29: 5 | C29: RSVA - Power (excluding Global Adjustment) | D29: 1588 | E29: 20389 | F29: 695542 | G29: -922688.07 | H29: -2043662 | I29: -405042.93 | J29: -46499 | K29: =82.04+455.45+790.3+45256.09-61022+5184+16115 -> 6860.88 | L29: -61022.76 | M29: -47307 | N29: -25922.36 | O29: -405042.93 | P29: 145397 | S29: -259645.93 | T29: -25922.36 | U29: -2390 | X29: -28312.36 | Y29: -259645.93 | Z29: =651732.81-405043 -> 246689.81 | AA29: -405043 | AF29: =Y29+Z29-AA29+SUM(AB29:AE29) -> 392086.88 | AG29: -28312.36 | AH29: =32819.96-33862 -> -1042.04 | AI29: -33862 | AK29: 4507.6 | AL29: 392086.88 | AM29: =267567.18-313990.5 -> -46423.32 | AS29: 345663.56 | AT29: 4507.6 | AU29: =8111.12-1207.14 -> 6903.98 | AX29: 11411.58 | AY29: 358726 | AZ29: 16903 | BA29: -13062.44 | BB29: -5491.42 | BC29: -192.017868 | BD29: -64 | BE29: -18809.87787 | BF29: 357072.58 | BG29: -2.56
A30: 6 | C30: RSVA - Global Adjustment | D30: 1589 | E30: 597893 | F30: -961155 | G30: 1228772 | H30: 2043662 | I30: 451628 | J30: -2010 | K30: =668.35-844.87-4027.19-17094.97+16114.32 -> -5184.36 | L30: 16115.43 | M30: 47307 | N30: 23997.21 | O30: 451628 | P30: -60824 | S30: 390804 | T30: 23997.21 | U30: 5810 | X30: 29807.21 | Y30: 390804 | Z30: =-484989.24+451628-204038.99 -> -237400.23 | AA30: 451628 | AF30: -298224.23 | AG30: 29807.21 | AH30: =-29109.34+32850-912.21 -> 2828.45 | AI30: 32850 | AK30: -214.34 | AL30: -298224.23 | AM30: =-5411.44+90867.78 -> 85456.34 | AS30: -212767.89 | AT30: -214.34 | AU30: =-1366.53-1664.22 -> -3030.75 | AX30: -3245.09 | AY30: -264863 | AZ30: -9146 | BA30: 52095.11 | BB30: 5900.91 | BC30: 765.798117 | BD30: 255 | BE30: 59016.81812 | BF30: -216012.57 | BG30: 0.41
A31: 7 | C31: Recovery of Regulatory Asset Balances | D31: 1590 | E31: -71560 | G31: -71560 | J31: 24995 | L31: 24995 | N31: 0 | O31: 0 | S31: 0 | T31: 0 | X31: 0 | Y31: 0 | AF31: 0 | AG31: 0 | AK31: 0 | AL31: 0 | AS31: 0 | AT31: 0 | AX31: 0 | BA31: 0 | BB31: 0 | BE31: 0 | BG31: 0
A32: 8 | C32: Disposition and Recovery/Refund of Regulatory Balances (2008)4 | D32: 1595 | E32: 57005 | I32: 57005 | J32: 3905 | K32: -11.25 | M32: -4761 | N32: -867.25 | O32: =I32 -> 57005 | R32: -60069 | S32: -3064 | T32: -867.25 | U32: -45 | X32: -912.25 | Y32: -3064 | AA32: -7836 | AF32: 4772 | AG32: -912.25 | AH32: -16 | AI32: 3740 | AK32: -4668.25 | AL32: 4772 | AO32: -5630 | AS32: -858 | AT32: -4668.25 | AW32: 5699 | AX32: 1030.75 | AY32: 4772 | AZ32: -4575 | BA32: -5630 | BB32: 5605.75 | BC32: =BA32*1.47% -> -82.761 | BD32: =ROUND(BC32/12*4,0) -> -28 | BE32: -135.011 | BF32: 172.9 | BG32: 0.15
A33: 9 | C33: Disposition and Recovery/Refund of Regulatory Balances (2009)4 | D33: 1595 | I33: 0 | N33: 0 | O33: =I33 -> 0 | S33: 0 | T33: 0 | X33: 0 | Y33: 0 | AF33: 0 | AG33: 0 | AK33: 0 | AL33: 0 | AS33: 0 | AT33: 0 | AX33: 0 | BA33: 0 | BB33: 0 | BE33: 0 | BG33: 0
A34: 9 | C34: Disposition and Recovery/Refund of Regulatory Balances (2010)4 | D34: 1595 | I34: 0 | N34: 0 | O34: =I34 -> 0 | S34: 0 | T34: 0 | X34: 0 | Y34: 0 | AF34: 0 | AG34: 0 | AK34: 0 | AL34: 0 | AS34: 0 | AT34: 0 | AX34: 0 | BA34: 0 | BB34: 0 | BE34: 0 | BG34: 0
A35: 9 | C35: Disposition and Recovery/Refund of Regulatory Balances (2011)4 | D35: 1595 | I35: 0 | N35: 0 | O35: =I35 -> 0 | S35: 0 | T35: 0 | X35: 0 | Y35: 0 | AF35: 0 | AG35: 0 | AK35: 0 | AL35: 0 | AS35: 0 | AT35: 0 | AX35: 0 | BA35: 0 | BB35: 0 | BE35: =SUM(BA35:BD35) -> 0 | BG35: 0
A36: 9 | C36: Disposition and Recovery/Refund of Regulatory Balances (2012)4 | D36: 1595 | I36: 0 | N36: 0 | O36: =I36 -> 0 | S36: 0 | T36: =N36 -> 0 | X36: 0 | Y36: =S36 -> 0 | AF36: =Y36+Z36-AA36+SUM(AB36:AE36) -> 0 | AG36: =X36 -> 0 | AK36: =AG36+AH36-AI36+AJ36 -> 0 | AL36: =AF36 -> 0 | AS36: =AL36+AM36-AN36+SUM(AO36:AR36) -> 0 | AT36: =AK36 -> 0 | AX36: =AT36+AU36-AV36+AW36 -> 0 | BA36: 0 | BB36: 0 | BE36: =SUM(BA36:BD36) -> 0 | BG36: 0
C38: RSVA - Global Adjustment | D38: 1589 | E38: =E30 -> 597893 | F38: =F30 -> -961155 | G38: 1228772 | H38: 2043662 | I38: 451628 | J38: -2010 | K38: -5184.36 | L38: 16115.43 | M38: 47307 | N38: 23997.21 | O38: =O30 -> 451628 | P38: =P30 -> -60824 | Q38: 0 | R38: 0 | S38: 390804 | T38: 23997.21 | U38: 5810 | V38: 0 | W38: 0 | X38: 29807.21 | Y38: =Y30 -> 390804 | Z38: =Z30 -> -237400.23 | AA38: 451628 | AB38: 0 | AC38: 0 | AD38: 0 | AE38: 0 | AF38: =AF30 -> -298224.23 | AG38: 29807.21 | AH38: 2828.45 | AI38: 32850 | AJ38: =AJ30 -> 0 | AK38: -214.34 | AL38: =AL30 -> -298224.23 | AM38: =AM30 -> 85456.34 | AN38: 0 | AO38: 0 | AP38: 0 | AQ38: 0 | AR38: 0 | AS38: -212767.89 | AT38: -214.34 | AU38: -3030.75 | AV38: 0 | AW38: 0 | AX38: -3245.09 | AY38: -264863 | AZ38: =AZ30 -> -9146 | BA38: 52095.11 | BB38: 5900.91 | BC38: 765.798117 | BD38: 255 | BE38: 59016.81812 | BF38: -216012.57 | BG38: 0.41
C39: Total Group 1 Balance excluding Account 1589 - Global Adjustment | E39: =SUM(E24:E29,E31:E36) -> -1088817 | F39: =SUM(F24:F29,F31:F36) -> 389511.44 | G39: -1814726.25 | H39: -2043662 | I39: -928241.31 | J39: -166417.25 | K39: 1173.36 | L39: -183482.41 | M39: -52068 | N39: -33829.48 | O39: =SUM(O24:O29,O31:O36) -> -928241.31 | P39: =SUM(P24:P29,P31:P36) -> -35035 | Q39: 0 | R39: -60069 | S39: -1023345.31 | T39: -33829.48 | U39: -13368 | V39: 0 | W39: 0 | X39: -47197.48 | Y39: =SUM(Y24:Y29,Y31:Y36) -> -1023345.31 | Z39: =SUM(Z24:Z29,Z31:Z36) -> 88525.81 | AA39: -991638 | AB39: 0 | AC39: 0 | AD39: 0 | AE39: 0 | AF39: =SUM(AF24:AF29,AF31:AF36) -> 56818.5 | AG39: -47197.48 | AH39: -11992.04 | AI39: -49951 | AJ39: =SUM(AJ24:AJ29,AJ31:AJ36) -> 0 | AK39: -9238.52 | AL39: =SUM(AL24:AL29,AL31:AL36) -> 56818.5 | AM39: =SUM(AM24:AM29,AM31:AM36) -> -106137.71 | AN39: 0 | AO39: -5630 | AP39: 0 | AQ39: 0 | AR39: 0 | AS39: -54949.21 | AT39: -9238.52 | AU39: 887.23 | AV39: 0 | AW39: 5724.27 | AX39: -2627.02 | AY39: 23457 | AZ39: =SUM(AZ24:AZ29,AZ31:AZ36) -> -3415 | BA39: -78406.21 | BB39: 787.98 | BC39: -1152.571287 | BD39: -385 | BE39: -79155.80129 | BF39: -57578.63 | BG39: -2.4
C40: Total Group 1 Balance | E40: =SUM(E24:E36) -> -490924 | F40: =SUM(F24:F36) -> -571643.56 | G40: -585954.25 | H40: 0 | I40: -476613.31 | J40: -168427.25 | K40: -4011 | L40: -167366.98 | M40: -4761 | N40: -9832.27 | O40: =SUM(O24:O36) -> -476613.31 | P40: =SUM(P24:P36) -> -95859 | Q40: 0 | R40: -60069 | S40: -632541.31 | T40: -9832.27 | U40: -7558 | V40: 0 | W40: 0 | X40: -17390.27 | Y40: =SUM(Y24:Y36) -> -632541.31 | Z40: =SUM(Z24:Z36) -> -148874.42 | AA40: -540010 | AB40: 0 | AC40: 0 | AD40: 0 | AE40: 0 | AF40: =SUM(AF24:AF36) -> -241405.73 | AG40: -17390.27 | AH40: -9163.59 | AI40: -17101 | AJ40: =SUM(AJ24:AJ36) -> 0 | AK40: -9452.86 | AL40: =SUM(AL24:AL36) -> -241405.73 | AM40: =SUM(AM24:AM36) -> -20681.37 | AN40: 0 | AO40: -5630 | AP40: 0 | AQ40: 0 | AR40: 0 | AS40: -267717.1 | AT40: -9452.86 | AU40: -2143.52 | AV40: 0 | AW40: 5724.27 | AX40: -5872.11 | AY40: -241406 | AZ40: =SUM(AZ24:AZ36) -> -12561 | BA40: -26311.1 | BB40: 6688.89 | BC40: -386.77317 | BD40: -130 | BE40: -20138.98317 | BF40: -273591.2 | BG40: -1.99
C42: LRAM Variance Account | D42: 1568 | I42: =E42+F42-G42+SUM(H42:H42) -> 0 | N42: =J42+K42-L42+M42 -> 0 | S42: =O42+P42-Q42+SUM(R42:R42) -> 0 | X42: =T42+U42-V42+W42 -> 0 | Y42: =S42 -> 0 | AF42: =Y42+Z42-AA42+SUM(AB42:AE42) -> 0 | AG42: =X42 -> 0 | AK42: =AG42+AH42-AI42+AJ42 -> 0 | AL42: =AF42 -> 0 | AS42: =AL42+AM42-AN42+SUM(AO42:AR42) -> 0 | AT42: =AK42 -> 0 | AX42: =AT42+AU42-AV42+AW42 -> 0 | AY42: 0 | AZ42: 0 | BA42: =AS42-AY42 -> 0 | BB42: =AX42-AZ42 -> 0 | BE42: =SUM(BA42:BD42) -> 0 | BG42: =BF42-SUM(AS42,AX42) -> 0
C44: Total including Account 1568 | E44: =E42+E40 -> -490924 | F44: =F42+F40 -> -571643.56 | G44: -585954.25 | H44: 0 | I44: -476613.31 | J44: -168427.25 | K44: -4011 | L44: -167366.98 | M44: -4761 | N44: -9832.27 | O44: -476613.31 | P44: -95859 | Q44: 0 | R44: -60069 | S44: -632541.31 | T44: -9832.27 | U44: -7558 | V44: 0 | W44: 0 | X44: -17390.27 | Y44: -632541.31 | Z44: -148874.42 | AA44: -540010 | AB44: 0 | AC44: 0 | AD44: 0 | AE44: 0 | AF44: -241405.73 | AG44: -17390.27 | AH44: -9163.59 | AI44: -17101 | AJ44: 0 | AK44: -9452.86 | AL44: -241405.73 | AM44: -20681.37 | AN44: 0 | AO44: -5630 | AP44: 0 | AQ44: 0 | AR44: 0 | AS44: -267717.1 | AT44: -9452.86 | AU44: -2143.52 | AV44: 0 | AW44: 5724.27 | AX44: -5872.11 | AY44: -241406 | AZ44: -12561 | BA44: -26311.1 | BB44: 6688.89 | BC44: -386.77317 | BD44: -130 | BE44: -20138.98317 | BF44: -273591.2 | BG44: -1.99
C47: For all Board-Approved dispositions, please ensure that the disposition amount has the same sign (e.g: debit balances are to have a positive figure and credit balance are to have a negative figure) as per the related Board decision.
B50: 1 | C50: Please provide explanations for the nature of the adjustments. If the adjustment relates to previously Board Approved disposed balances, please provide amounts for adjustments and include supporting documentations.
B51: 2 | C51: For RSVA accounts only, report the net variance to the account during the year. For all other accounts, record the transactions during the year.
B52: 3 | C52: If the LDC’s rate year begins on January 1, 2015, the projected interest is recorded from January 1, 2014 to December 31, 2014 on the December 31, 2013 balances adjusted for the disposed balances approved by the Board in the 2014 rate decision. If the LDC’s rate year begins on May 1, 2015, the projected interest is recorded from January 1, 2014 to April 30, 2015 on the December 31, 2013 balances adjusted for the disposed interest balances approved by the Board in the 2014 rate decision.
B53: 4 | C53: Include Account 1595 as part of Group 1 accounts (lines 31, 32, 33 and 34) for review and disposition if the recovery (or refund) period has been completed. If the recovery (or refund) period has not been completed, do not include the respective balance in Account 1595 for disposition at this time.

Sheet 6. Billing Det. for Def-Var
AS1: As per Section 3.2.3 of the 2015 Filing Requirements for Electricity Distribution Rate Applications, an applicant may elect to dispose of the Group 1 account balances below the threshold. If doing so, please select YES from the adjacent drop-down cell and also indicate so in the Manager's Summary. If not, please select NO.
A13: In the green shaded cells, enter the most recent Board Approved volumetric forecast. If there is a material difference between the latest Board-approved volumetric forecast and the most recent 12-month actual volumetric data, use the most recent 12-month actual data. Do not enter data for the MicroFit class.
E15: Billed kWh for Non-RPP Customers | F15: Estimated kW for Non-RPP Customers | H15: 1590 Recovery Share Proportion* | I15: 1595 Recovery Share Proportion (2008) 1 | J15: 1595 Recovery Share Proportion (2009) 1 | K15: 1595 Recovery Share Proportion (2010) 1 | L15: 1595 Recovery Share Proportion (2011) 1 | M15: 1595 Recovery Share Proportion (2012) 1 | N15: 1568 LRAM Variance Account Class Allocation ($ amounts) | O15: Number of Customers for Residential and GS<50 classes3
A16: Rate Class | B16: Unit | C16: Metered kWh | D16: Metered kW
A17: RESIDENTIAL | B17: $/kWh | C17: 24876518.56 | E17: 3625930.679 | F17: =IF(ISERROR(D17/C17*E17), 0, D17/C17*E17) -> 0 | I17: 0.5185 | K17: 0.8073 | O17: 3178
A18: GENERAL SERVICE LESS THAN 50 KW | B18: $/kWh | C18: 10703831.6 | E18: 1434587.308 | F18: =IF(ISERROR(D18/C18*E18), 0, D18/C18*E18) -> 0 | I18: 0.2028 | K18: 0.2782 | O18: 472
A19: GENERAL SERVICE 50 TO 999 KW | B19: $/kW | C19: 19816501.1 | D19: 50517.32158 | E19: 18188373.08 | F19: =IF(ISERROR(D19/C19*E19), 0, D19/C19*E19) -> 46366.80751 | I19: 0.1608 | K19: 0.0266
A20: GENERAL SERVICE 1,000 TO 4,999 KW | B20: $/kW | C20: 42769241.57 | D20: 97039.13219 | E20: 42769241.57 | F20: =IF(ISERROR(D20/C20*E20), 0, D20/C20*E20) -> 97039.13219 | I20: 0.0853 | K20: -0.1367
A21: UNMETERED SCATTERED LOAD | B21: $/kWh | C21: 3969.302654 | E21: 662.9579964 | F21: =IF(ISERROR(D21/C21*E21), 0, D21/C21*E21) -> 0 | I21: 0.0015 | K21: 0.0035
A22: SENTINEL LIGHTING | B22: $/kW | C22: 29261.25703 | D22: 79.72173698 | E22: 29261.25703 | F22: =IF(ISERROR(D22/C22*E22), 0, D22/C22*E22) -> 79.72173698 | I22: 0.0272 | K22: 0.0031
A23: STREET LIGHTING | B23: $/kW | C23: 711945.9779 | D23: 1907.372524 | E23: 711945.9779 | F23: =IF(ISERROR(D23/C23*E23), 0, D23/C23*E23) -> 1907.372524 | I23: 0.0039 | K23: 0.018
A24: microFIT
B26: Total | C26: =SUM(C17:C24) -> 98911269.36 | D26: =SUM(D17:D24) -> 149543.548 | E26: 66760002.83 | F26: 145393.034 | H26: 0 | I26: 1 | J26: 0 | K26: 1 | L26: 0 | M26: 0 | N26: 0 | O26: 3650
M27: Balance as per Sheet 5 | N27: =ROUND('5. 2014 Continuity Schedule'!BE42, 0) -> 0
M28: Variance | N28: =N26-N27 -> 0
A30: Threshold Test
A31: Total Claim (including Account 1568) | B31: ='5. 2014 Continuity Schedule'!BE44 -> -20138.98317
A32: Total Claim for Threshold Test (All Group 1 Accounts) | B32: ='5. 2014 Continuity Schedule'!BE40 -> -20138.98317
A33: Threshold Test (Total claim per kWh) 2 | B33: =IF(ISERROR(B32/C26), 0, B32/C26) -> -0.0002036065587 | D33: =IF(AND(B33>-0.001,B33<0.001),"Claim does not meet the threshold test.","") -> Claim does not meet the threshold test.
A35: =IF(AND(B33>-0.001, B33<0.001), AS1, "") -> As per Section 3.2.3 of the 2015 Filing Requirements for Electricity Distribution Rate Applications, an applicant may elect to dispose of the Group 1 account balances below the threshold. If doing so, please select YES from the adjacent drop-down cell and also indicate so in the Manager's Summary. If not, please select NO. | C35: NO
A39: 1 Residual Account balance to be allocated to rate classes in proportion to the recovery share as established when rate riders were implemented.
A40: 2 The Threshold Test does not include the amount in 1568.
A41: 3 The proportion of customers for the Residential and GS<50 Classes will be used to allocate Account 1551.

Sheet 6. hidden (hidden)
E1: Billed kWh for Non-RPP Customers | F1: Estimated kW for Non-RPP Customers | G1: Distribution Revenue 1 | H1: 1590 Recovery Share Proportion* | I1: 1595 Recovery Share Proportion (2008) 2 | J1: 1595 Recovery Share Proportion (2009) 2 | K1: 1595 Recovery Share Proportion (2010) 2 | L1: 1595 Recovery Share Proportion (2011) 2 | M1: 1568 LRAM Variance Account Class Allocation | AC1: NO
A2: Rate Class | B2: Unit | C2: Metered kWh | D2: Metered kW
A3: RESIDENTIAL | B3: $/kWh | C3: 24876518.56 | D3: 0 | E3: 3625930.679 | G3: 0 | H3: 0 | I3: 0.5185 | J3: 0 | K3: 0.8073 | L3: 0 | M3: 0 | N3: 0 | O3: 3178
A4: GENERAL SERVICE LESS THAN 50 KW | B4: $/kWh | C4: 10703831.6 | D4: 0 | E4: 1434587.308 | G4: 0 | H4: 0 | I4: 0.2028 | J4: 0 | K4: 0.2782 | L4: 0 | M4: 0 | N4: 0 | O4: 472
A5: GENERAL SERVICE 50 TO 999 KW | B5: $/kW | C5: 19816501.1 | D5: 50517.32158 | E5: 18188373.08 | G5: 0 | H5: 0 | I5: 0.1608 | J5: 0 | K5: 0.0266 | L5: 0 | M5: 0 | N5: 0 | O5: 0
A6: GENERAL SERVICE 1,000 TO 4,999 KW | B6: $/kW | C6: 42769242 | D6: 97039 | E6: 42769242 | G6: 0 | H6: 0 | I6: 0.0853 | J6: 0 | K6: -0.1367 | L6: 0 | M6: 0 | N6: 0 | O6: 0
A7: UNMETERED SCATTERED LOAD | B7: $/kWh | C7: 3969.302654 | D7: 0 | E7: 662.9579964 | G7: 0 | H7: 0 | I7: 0.0015 | J7: 0 | K7: 0.0035 | L7: 0 | M7: 0 | N7: 0 | O7: 0
A8: SENTINEL LIGHTING | B8: $/kW | C8: 29261.25703 | D8: 79.72173698 | E8: 29261.25703 | G8: 0 | H8: 0 | I8: 0.0272 | J8: 0 | K8: 0.0031 | L8: 0 | M8: 0 | N8: 0 | O8: 0
A9: STREET LIGHTING | B9: $/kW | C9: 711945.9779 | D9: 1907.372524 | E9: 711945.9779 | G9: 0 | H9: 0 | I9: 0.0039 | J9: 0 | K9: 0.018 | L9: 0 | M9: 0 | N9: 0 | O9: 0
A10: microFIT | B10: 0 | C10: 0 | D10: 0 | E10: 0 | G10: 0 | H10: 0 | I10: 0 | J10: 0 | K10: 0 | L10: 0 | M10: 0 | N10: 0 | O10: 0

Sheet 7. Allocating Def-Var Balances
A13: No input required. This workshseet allocates the deferral/variance account balances (Group 1, 1589, and 1568) to the appropriate classes as per the EDDVAR Report dated July 31, 2009
A15: Allocation of Group 1 Accounts (including Account 1568)
C16: % of Total kWh | D16: % of Total non-RPP kWh | E16: % of Customer Numbers ** | N16: 1595 (2008) | O16: 1595 (2009) | P16: 1595 (2010) | Q16: 1595 (2011) | R16: 1595 (2012) | S16: 1568
A17: Rate Class | F17: 1550 | G17: 1551 | H17: 1580 | I17: 1584 | J17: 1586 | K17: 1588 | L17: 1589 | M17: 1590
A19: RESIDENTIAL | C19: =VLOOKUP(A19, '6. Billing Det. for Def-Var'!A17:D24, 3,0)/'6. Billing Det. for Def-Var'!C26 -> 0.25150338 | D19: =VLOOKUP(A19, '6. Billing Det. for Def-Var'!A17:E24, 5,0)/'6. Billing Det. for Def-Var'!E26 -> 0.0543129198 | E19: =VLOOKUP(A19, '6. Billing Det. for Def-Var'!A17:O24, 15,0)/'6. Billing Det. for Def-Var'!O26 -> 0.8706849315 | F19: 0 | G19: 0 | H19: 0 | I19: 0 | J19: 0 | K19: 0 | L19: 0 | M19: 0 | N19: 0 | O19: 0 | P19: 0 | Q19: 0 | R19: 0 | S19: ='6. Billing Det. for Def-Var'!N17 -> 0
A20: GENERAL SERVICE LESS THAN 50 KW | C20: =VLOOKUP(A20, '6. Billing Det. for Def-Var'!A17:D24, 3,0)/'6. Billing Det. for Def-Var'!C26 -> 0.1082165022 | D20: =VLOOKUP(A20, '6. Billing Det. for Def-Var'!A17:E24, 5,0)/'6. Billing Det. for Def-Var'!E26 -> 0.0214887245 | E20: =VLOOKUP(A20, '6. Billing Det. for Def-Var'!A17:O24, 15,0)/'6. Billing Det. for Def-Var'!O26 -> 0.1293150685 | F20: 0 | G20: 0 | H20: 0 | I20: 0 | J20: 0 | K20: 0 | L20: 0 | M20: 0 | N20: 0 | O20: 0 | P20: 0 | Q20: 0 | R20: 0 | S20: ='6. Billing Det. for Def-Var'!N18 -> 0
A21: GENERAL SERVICE 50 TO 999 KW | C21: =VLOOKUP(A21, '6. Billing Det. for Def-Var'!A17:D24, 3,0)/'6. Billing Det. for Def-Var'!C26 -> 0.2003462419 | D21: =VLOOKUP(A21, '6. Billing Det. for Def-Var'!A17:E24, 5,0)/'6. Billing Det. for Def-Var'!E26 -> 0.2724441628 | F21: 0 | G21: 0 | H21: 0 | I21: 0 | J21: 0 | K21: 0 | L21: 0 | M21: 0 | N21: 0 | O21: 0 | P21: 0 | Q21: 0 | R21: 0 | S21: ='6. Billing Det. for Def-Var'!N19 -> 0
A22: GENERAL SERVICE 1,000 TO 4,999 KW | C22: =VLOOKUP(A22, '6. Billing Det. for Def-Var'!A17:D24, 3,0)/'6. Billing Det. for Def-Var'!C26 -> 0.4324000879 | D22: =VLOOKUP(A22, '6. Billing Det. for Def-Var'!A17:E24, 5,0)/'6. Billing Det. for Def-Var'!E26 -> 0.640641698 | F22: 0 | G22: 0 | H22: 0 | I22: 0 | J22: 0 | K22: 0 | L22: 0 | M22: 0 | N22: 0 | O22: 0 | P22: 0 | Q22: 0 | R22: 0 | S22: ='6. Billing Det. for Def-Var'!N20 -> 0
A23: UNMETERED SCATTERED LOAD | C23: =VLOOKUP(A23, '6. Billing Det. for Def-Var'!A17:D24, 3,0)/'6. Billing Det. for Def-Var'!C26 -> 4.012993342e-05 | D23: =VLOOKUP(A23, '6. Billing Det. for Def-Var'!A17:E24, 5,0)/'6. Billing Det. for Def-Var'!E26 -> 9.930466872e-06 | F23: 0 | G23: 0 | H23: 0 | I23: 0 | J23: 0 | K23: 0 | L23: 0 | M23: 0 | N23: 0 | O23: 0 | P23: 0 | Q23: 0 | R23: 0 | S23: ='6. Billing Det. for Def-Var'!N21 -> 0
A24: SENTINEL LIGHTING | C24: =VLOOKUP(A24, '6. Billing Det. for Def-Var'!A17:D24, 3,0)/'6. Billing Det. for Def-Var'!C26 -> 0.0002958333991 | D24: =VLOOKUP(A24, '6. Billing Det. for Def-Var'!A17:E24, 5,0)/'6. Billing Det. for Def-Var'!E26 -> 0.0004383052095 | F24: 0 | G24: 0 | H24: 0 | I24: 0 | J24: 0 | K24: 0 | L24: 0 | M24: 0 | N24: 0 | O24: 0 | P24: 0 | Q24: 0 | R24: 0 | S24: ='6. Billing Det. for Def-Var'!N22 -> 0
A25: STREET LIGHTING | C25: =VLOOKUP(A25, '6. Billing Det. for Def-Var'!A17:D24, 3,0)/'6. Billing Det. for Def-Var'!C26 -> 0.007197824701 | D25: =VLOOKUP(A25, '6. Billing Det. for Def-Var'!A17:E24, 5,0)/'6. Billing Det. for Def-Var'!E26 -> 0.01066425925 | F25: 0 | G25: 0 | H25: 0 | I25: 0 | J25: 0 | K25: 0 | L25: 0 | M25: 0 | N25: 0 | O25: 0 | P25: 0 | Q25: 0 | R25: 0 | S25: ='6. Billing Det. for Def-Var'!N23 -> 0
A26: microFIT | C26: 0 | D26: 0 | E26: 0 | F26: 0 | G26: 0 | H26: 0 | I26: 0 | J26: 0 | K26: 0 | L26: 0 | M26: 0 | N26: 0 | O26: 0 | P26: 0 | Q26: 0 | R26: 0 | S26: ='6. Billing Det. for Def-Var'!N24 -> 0
A28: Total | C28: =SUM(C19:C26) -> 1 | D28: =SUM(D19:D26) -> 1 | E28: =SUM(E19:E26) -> 1 | F28: =SUM(F19:F26) -> 0 | G28: =SUM(G19:G26) -> 0 | H28: =SUM(H19:H26) -> 0 | I28: =SUM(I19:I26) -> 0 | J28: =SUM(J19:J26) -> 0 | K28: =SUM(K19:K26) -> 0 | L28: =SUM(L19:L26) -> 0 | M28: =SUM(M19:M26) -> 0 | N28: =SUM(N19:N26) -> 0 | O28: =SUM(O19:O26) -> 0 | P28: =SUM(P19:P26) -> 0 | Q28: =SUM(Q19:Q26) -> 0 | R28: =SUM(R19:R26) -> 0 | S28: =SUM(S19:S26) -> 0
A31: * RSVA - Power (Excluding Global Adjustment)
A32: ** Used to allocate Account 1551 as this account records the variances arising from the Smart Metering Entity Charges to Residential and GS<50 customers.

Sheet 8. Calculation of Def-Var RR
A12: Input required at cell C15 only. This workshseet calculates rate riders related to the Deferral/Variance Account Disposition (if applicable), associated rate riders for the global adjustment account (1589) and Account 1568. Rate Riders will not be generated for the microFIT class.
A15: Please indicate the Rate Rider Recovery Period (in years) | C15: 1
E17: Balance of Accounts Allocated by kWh/kW (RPP) or Distribution Revenue | F17: Deferral/Variance Account Rate Rider | G17: Allocation of Balance in Account 1589 | H17: Billed kWh or Estimated kW for Non-RPP Customers | I17: Global Adjustment Rate Rider | J17: Allocation of Account 1568 | K17: Account 1568 Rate Rider
A18: Rate Class | B18: Unit | C18: Billed kWh | D18: Billed kW or kVA
A20: RESIDENTIAL | B20: $/kWh | C20: 24876518.56 | E20: =SUM('7. Allocating Def-Var Balances'!F19:K19)+SUM('7. Allocating Def-Var Balances'!M19:R19) -> 0 | F20: 0 | G20: 0 | H20: 3625930.679 | I20: 0
A21: GENERAL SERVICE LESS THAN 50 KW | B21: $/kWh | C21: 10703831.6 | E21: =SUM('7. Allocating Def-Var Balances'!F20:K20)+SUM('7. Allocating Def-Var Balances'!M20:R20) -> 0 | F21: 0 | G21: 0 | H21: 1434587.308 | I21: 0
A22: GENERAL SERVICE 50 TO 999 KW | B22: $/kW | C22: 19816501.1 | D22: 50517.32158 | E22: =SUM('7. Allocating Def-Var Balances'!F21:K21)+SUM('7. Allocating Def-Var Balances'!M21:R21) -> 0 | F22: 0 | G22: 0 | H22: 46366.80751 | I22: 0
A23: GENERAL SERVICE 1,000 TO 4,999 KW | B23: $/kW | C23: 42769241.57 | D23: 97039.13219 | E23: =SUM('7. Allocating Def-Var Balances'!F22:K22)+SUM('7. Allocating Def-Var Balances'!M22:R22) -> 0 | F23: 0 | G23: 0 | H23: 97039.13219 | I23: 0
A24: UNMETERED SCATTERED LOAD | B24: $/kWh | C24: 3969.302654 | E24: =SUM('7. Allocating Def-Var Balances'!F23:K23)+SUM('7. Allocating Def-Var Balances'!M23:R23) -> 0 | F24: 0 | G24: 0 | H24: 662.9579964 | I24: 0
A25: SENTINEL LIGHTING | B25: $/kW | C25: 29261.25703 | D25: 79.72173698 | E25: =SUM('7. Allocating Def-Var Balances'!F24:K24)+SUM('7. Allocating Def-Var Balances'!M24:R24) -> 0 | F25: 0 | G25: 0 | H25: 79.72173698 | I25: 0
A26: STREET LIGHTING | B26: $/kW | C26: 711945.9779 | D26: 1907.372524 | E26: =SUM('7. Allocating Def-Var Balances'!F25:K25)+SUM('7. Allocating Def-Var Balances'!M25:R25) -> 0 | F26: 0 | G26: 0 | H26: 1907.372524 | I26: 0
A27: microFIT
A28: Total | C28: =SUM(C20:C27) -> 98911269.36 | D28: =SUM(D20:D27) -> 149543.548 | E28: =SUM(E20:E27) -> 0 | G28: =SUM(G20:G27) -> 0 | H28: =SUM(H20:H27) -> 5206573.979 | J28: =SUM(J20:J27) -> 0

Sheet 9. STS - Billing Det & Rates
A11: Shared Tax Savings
A13: ="Enter your " & '1. Information Sheet'!F32 & " Board-Approved Billing Determinents into columns B, C and D." -> Enter your 2012 Board-Approved Billing Determinents into columns B, C and D.
A14: ="Enter your " & '1. Information Sheet'!F32 & " Board-Approved Base monthly service and volumetric charges into columns G, H and I." -> Enter your 2012 Board-Approved Base monthly service and volumetric charges into columns G, H and I.
A16: Rate Class | B16: Units | C16: Re-based Billed Customers or Connections | D16: Re-based Billed kWh | E16: Re-based Billed kW (if applicable) | G16: ='1. Information Sheet'!F32 &" Base Monthly Service Charge" -> 2012 Base Monthly Service Charge | H16: ='1. Information Sheet'!F32 &" Base Distribution Volumetric Rate kWh" -> 2012 Base Distribution Volumetric Rate kWh | I16: ='1. Information Sheet'!F32 &" Base Distribution Volumetric Rate kW" -> 2012 Base Distribution Volumetric Rate kW
A17: RESIDENTIAL | B17: $/kWh | C17: 3160.26831 | D17: 24876518.56 | E17: 0 | G17: 18 | H17: 0.018 | I17: 0
A18: GENERAL SERVICE LESS THAN 50 KW | B18: $/kWh | C18: 488.5039161 | D18: 10703831.6 | E18: 0 | G18: 38.21 | H18: 0.0164 | I18: 0
A19: GENERAL SERVICE 50 TO 999 KW | B19: $/kW | C19: 40.41635898 | D19: 19816501.1 | E19: 50517.32158 | G19: 268.64 | H19: 0 | I19: 3.5679
A20: GENERAL SERVICE 1,000 TO 4,999 KW | B20: $/kW | C20: 4.386722549 | D20: 42769241.57 | E20: 97039.13219 | G20: 2195.63 | H20: 0 | I20: 1.8423
A21: UNMETERED SCATTERED LOAD | B21: $/kWh | C21: 0.5881475181 | D21: 3969.302654 | E21: 0 | G21: 17.61 | H21: 0.0142 | I21: 0
A22: SENTINEL LIGHTING | B22: $/kW | C22: 16.80213388 | D22: 29261.25703 | E22: 79.72173698 | G22: 5.11 | H22: 0 | I22: 18.868
A23: STREET LIGHTING | B23: $/kW | C23: 886.4203374 | D23: 711945.9779 | E23: 1907.372524 | G23: 6.93 | H23: 0 | I23: 7.7198
A24: microFIT

Sheet 10. STS - Rebased Rev
A12: Calculation of Rebased Revenue Requirement. No input required.
A15: Rate Class | C15: Re-based Billed Customers or Connections | D15: Re-based Billed kWh | E15: Re-based Billed kW | G15: Rate ReBal Base Service Charge | H15: Rate ReBal Base Distribution Volumetric Rate kWh | I15: Rate ReBal Base Distribution Volumetric Rate kW | K15: Service Charge Revenue | L15: Distribution Volumetric Rate Revenue kWh | M15: Distribution Volumetric Rate Revenue kW | N15: Revenue Requirement from Rates | P15: Service Charge % Revenue | Q15: Distribution Volumetric Rate % Revenue kWh | R15: Distribution Volumetric Rate % Revenue kW | S15: Total % Revenue
C16: A | D16: B | E16: C | G16: D | H16: E | I16: F | K16: G = A * D *12 | L16: H = B * E | M16: I = C * F | N16: J = G + H + I | P16: K = G / J | Q16: L = H / J | R16: M = I / J | S16: N = J / R
A17: RESIDENTIAL | C17: 3160.26831 | D17: 24876518.56 | E17: 0 | G17: 18 | H17: 0.018 | I17: 0 | K17: =G17*C17*12 -> 682617.955 | L17: =H17*D17 -> 447777.3341 | M17: 0 | N17: =SUM(K17,L17,M17) -> 1130395.289 | P17: =IF(ISERROR(K17/N17),0,K17/N17) -> 0.6038754421 | Q17: =IF(ISERROR(L17/N17),0,L17/N17) -> 0.3961245579 | R17: =IF(ISERROR(M17/N17),0,M17/N17) -> 0 | S17: =N17/N25 -> 0.5078223223
A18: GENERAL SERVICE LESS THAN 50 KW | C18: 488.5039161 | D18: 10703831.6 | E18: 0 | G18: 38.21 | H18: 0.0164 | I18: 0 | K18: =G18*C18*12 -> 223988.8156 | L18: =H18*D18 -> 175542.8382 | M18: 0 | N18: =SUM(K18,L18,M18) -> 399531.6538 | P18: =IF(ISERROR(K18/N18),0,K18/N18) -> 0.5606284595 | Q18: =IF(ISERROR(L18/N18),0,L18/N18) -> 0.4393715405 | R18: =IF(ISERROR(M18/N18),0,M18/N18) -> 0 | S18: =N18/N25 -> 0.1794868523
A19: GENERAL SERVICE 50 TO 999 KW | C19: 40.41635898 | D19: 19816501.1 | E19: 50517.32158 | G19: 268.64 | H19: 0 | I19: 3.5679 | K19: =G19*C19*12 -> 130289.4081 | L19: 0 | M19: =I19*E19 -> 180240.7517 | N19: =SUM(K19,L19,M19) -> 310530.1598 | P19: =IF(ISERROR(K19/N19),0,K19/N19) -> 0.4195708662 | Q19: =IF(ISERROR(L19/N19),0,L19/N19) -> 0 | R19: =IF(ISERROR(M19/N19),0,M19/N19) -> 0.5804291338 | S19: =N19/N25 -> 0.1395035422
A20: GENERAL SERVICE 1,000 TO 4,999 KW | C20: 4.386722549 | D20: 42769241.57 | E20: 97039.13219 | G20: 2195.63 | H20: 0 | I20: 1.8423 | K20: =G20*C20*12 -> 115579.4356 | L20: 0 | M20: =I20*E20 -> 178775.1932 | N20: =SUM(K20,L20,M20) -> 294354.6288 | P20: =IF(ISERROR(K20/N20),0,K20/N20) -> 0.3926537049 | Q20: =IF(ISERROR(L20/N20),0,L20/N20) -> 0 | R20: =IF(ISERROR(M20/N20),0,M20/N20) -> 0.6073462951 | S20: =N20/N25 -> 0.1322367959
A21: UNMETERED SCATTERED LOAD | C21: 0.5881475181 | D21: 3969.302654 | E21: 0 | G21: 17.61 | H21: 0.0142 | I21: 0 | K21: =G21*C21*12 -> 124.2873335 | L21: =H21*D21 -> 56.36409769 | M21: 0 | N21: =SUM(K21,L21,M21) -> 180.6514312 | P21: =IF(ISERROR(K21/N21),0,K21/N21) -> 0.6879952884 | Q21: =IF(ISERROR(L21/N21),0,L21/N21) -> 0.3120047116 | R21: =IF(ISERROR(M21/N21),0,M21/N21) -> 0 | S21: =N21/N25 -> 8.115641511e-05
A22: SENTINEL LIGHTING | C22: 16.80213388 | D22: 29261.25703 | E22: 79.72173698 | G22: 5.11 | H22: 0 | I22: 18.868 | K22: =G22*C22*12 -> 1030.306849 | L22: 0 | M22: =I22*E22 -> 1504.189733 | N22: =SUM(K22,L22,M22) -> 2534.496583 | P22: =IF(ISERROR(K22/N22),0,K22/N22) -> 0.4065134103 | Q22: =IF(ISERROR(L22/N22),0,L22/N22) -> 0 | R22: =IF(ISERROR(M22/N22),0,M22/N22) -> 0.5934865897 | S22: =N22/N25 -> 0.001138605188
A23: STREET LIGHTING | C23: 886.4203374 | D23: 711945.9779 | E23: 1907.372524 | G23: 6.93 | H23: 0 | I23: 7.7198 | K23: =G23*C23*12 -> 73714.71526 | L23: 0 | M23: =I23*E23 -> 14724.53441 | N23: =SUM(K23,L23,M23) -> 88439.24967 | P23: =IF(ISERROR(K23/N23),0,K23/N23) -> 0.8335067918 | Q23: =IF(ISERROR(L23/N23),0,L23/N23) -> 0 | R23: =IF(ISERROR(M23/N23),0,M23/N23) -> 0.1664932082 | S23: =N23/N25 -> 0.03973072569
A24: microFIT | K24: =G24*C24*12 -> 0 | L24: 0 | M24: 0 | N24: =SUM(K24,L24,M24) -> 0 | P24: =IF(ISERROR(K24/N24),0,K24/N24) -> 0 | Q24: =IF(ISERROR(L24/N24),0,L24/N24) -> 0 | R24: =IF(ISERROR(M24/N24),0,M24/N24) -> 0 | S24: =N24/N25 -> 0
A25: Total | C25: =SUM(C17:C24) -> 4597.385927 | D25: =SUM(D17:D24) -> 98911269.36 | E25: =SUM(E17:E24) -> 149543.548 | K25: =SUM(K17:K24) -> 1227344.924 | L25: =SUM(L17:L24) -> 623376.5364 | M25: =SUM(M17:M24) -> 375244.669 | N25: =SUM(N17:N24) -> 2225966.129 | S25: =SUM(S17:S24) -> 1

Sheet 9. STS - Billing Det & Rate HID (hidden)
A11: Shared Tax Savings
A12: ="Enter your " & '1. Information Sheet'!F32 & " Board-Approved Billing Determinents into columns B, C and D." -> Enter your 2012 Board-Approved Billing Determinents into columns B, C and D.
A16: Rate Class | B16: Units | C16: Re-based Billed Customers or Connections | D16: Re-based Billed kWh | E16: Re-based Billed kW (if applicable) | G16: ='1. Information Sheet'!F32 &" Base Monthly Service Charge" -> 2012 Base Monthly Service Charge | H16: ='1. Information Sheet'!F32 &" Base Distribution Volumetric Rate kWh" -> 2012 Base Distribution Volumetric Rate kWh | I16: ='1. Information Sheet'!F32 &" Base Distribution Volumetric Rate kW" -> 2012 Base Distribution Volumetric Rate kW
A17: RESIDENTIAL | B17: $/kWh | C17: 3160.26831 | D17: 24876518.56 | E17: 0 | G17: 18 | H17: 0.018 | I17: 0
A18: GENERAL SERVICE LESS THAN 50 KW | B18: $/kWh | C18: 488.5039161 | D18: 10703831.6 | E18: 0 | G18: 38.21 | H18: 0.0164 | I18: 0
A19: GENERAL SERVICE 50 TO 999 KW | B19: $/kW | C19: 40.41635898 | D19: 19816501.1 | E19: 50517.32158 | G19: 268.64 | H19: 0 | I19: 3.5679
A20: GENERAL SERVICE 1,000 TO 4,999 KW | B20: $/kW | C20: 4.386722549 | D20: 42769241.57 | E20: 97039.13219 | G20: 2195.63 | H20: 0 | I20: 1.8423
A21: UNMETERED SCATTERED LOAD | B21: $/kWh | C21: 0.5881475181 | D21: 3969.302654 | E21: 0 | G21: 17.61 | H21: 0.0142 | I21: 0
A22: SENTINEL LIGHTING | B22: $/kW | C22: 16.80213388 | D22: 29261.25703 | E22: 79.72173698 | G22: 5.11 | H22: 0 | I22: 18.868
A23: STREET LIGHTING | B23: $/kW | C23: 886.4203374 | D23: 711945.9779 | E23: 1907.372524 | G23: 6.93 | H23: 0 | I23: 7.7198
A24: microFIT | B24: 0 | C24: 0 | D24: 0 | E24: 0 | G24: 0 | H24: 0 | I24: 0

Sheet 11. STS - Tax Change
T1: Rate Base | U1: Federal Tax Rate
T2: 500000 | U2: 0.11
T3: 10000000 | U3: 0.11
T4: =T3+100000 -> 10100000 | U4: 0.11
T5: =T4+100000 -> 10200000 | U5: 0.11
T6: 10300000 | U6: 0.11
T7: 10400000 | U7: 0.11
T8: 10500000 | U8: 0.11
T9: 10600000 | U9: 0.11
T10: 10700000 | U10: 0.11
T11: 10800000 | U11: 0.11
T12: 10900000 | U12: 0.11
A13: Summary - Sharing of Tax Change Forecast Amounts | T13: 11000000 | U13: 0.11
T14: 11100000 | U14: 0.111
A15: ="For the " & '1. Information Sheet'!F32 & " year, enter any Tax Credits from the Cost of Service Tax Calculation (Positive #)" -> For the 2012 year, enter any Tax Credits from the Cost of Service Tax Calculation (Positive #) | L15: 0 | T15: 11200000 | U15: =U14+0.13% -> 0.1123 | V15: =U15-U14 -> 0.0013
T16: 11300000 | U16: =U15+0.13% -> 0.1136 | V16: =U16-U15 -> 0.0013
T17: 11400000 | U17: 0.1149 | V17: 0.0013
A18: 1. Tax Related Amounts Forecast from Capital Tax Rate Changes | L18: ='1. Information Sheet'!F32 -> 2012 | N18: 2015 | T18: 11500000 | U18: 0.1162 | V18: 0.0013
A19: Taxable Capital (if you are not claiming capital tax, please enter your Board-Approved Rate Base) | L19: 7489318.07 | N19: =L19 -> 7489318.07 | T19: 11600000 | U19: =U18+0.12% -> 0.1174 | V19: 0.0012
T20: 11700000 | U20: =U19+0.12% -> 0.1186 | V20: 0.0012
A21: Deduction from taxable capital up to $15,000,000 | L21: 15000000 | N21: =L21 -> 15000000 | T21: 11800000 | U21: 0.1198 | V21: 0.0012
T22: 11900000 | U22: 0.121 | V22: 0.0012
A23: Net Taxable Capital | L23: =L19-L21 -> -7510681.93 | N23: =N19-N21 -> -7510681.93 | T23: 12000000 | U23: =U22+0.112% -> 0.12212 | V23: 0.00112
T24: 12100000 | U24: =U23+0.112% -> 0.12324 | V24: 0.00112
A25: Rate | L25: 0 | N25: 0 | T25: 12200000 | U25: 0.12436 | V25: 0.00112
T26: 12300000 | U26: 0.12548 | V26: 0.00112
A27: Ontario Capital Tax (Deductible, not grossed-up) | L27: =IF(L23>0, L23*L25, 0)*181/365 -> 0 | N27: 0 | T27: 12400000 | U27: 0.1266 | V27: 0.00112
T28: 12500000 | U28: 0.12772 | V28: 0.00112
A29: 2. Tax Related Amounts Forecast from lncome Tax Rate Changes | T29: 12600000 | U29: =U28+0.102% -> 0.12874 | V29: 0.00102
A30: Regulatory Taxable Income | L30: 11082 | N30: =L30 -> 11082 | T30: 12700000 | U30: =U29+0.102% -> 0.12976 | V30: 0.00102
T31: 12800000 | U31: 0.13078 | V31: 0.00102
A32: Corporate Tax Rate | L32: 0.155 | N32: =IF(N30=0,0,IF(N30<=500000,4.5%+11%,IF(N30>500000,(11.5%*N30-35000)/N30+VLOOKUP(N19,T:U,2,TRUE),""))) -> 0.155 | T32: 12900000 | U32: 0.1318 | V32: 0.00102
T33: 13000000 | U33: 0.13282 | V33: 0.00102
A34: Tax Impact | L34: 1717.71 | N34: =N30*N32-L15 -> 1717.71 | T34: 13100000 | U34: =U33+0.096% -> 0.13378 | V34: 0.00096
T35: 13200000 | U35: =U34+0.096% -> 0.13474 | V35: 0.00096
A36: Grossed-up Tax Amount | L36: 2032.79 | N36: =N34/(1-N32) -> 2032.792899 | T36: 13300000 | U36: 0.1357 | V36: 0.00096
T37: 13400000 | U37: 0.13666 | V37: 0.00096
A38: Tax Related Amounts Forecast from Capital Tax Rate Changes | L38: =L27 -> 0 | N38: =N27 -> 0 | T38: 13500000 | U38: 0.13762 | V38: 0.00096
T39: 13600000 | U39: =U38+0.088% -> 0.1385 | V39: 0.00088
A40: Tax Related Amounts Forecast from lncome Tax Rate Changes | L40: =L36 -> 2032.79 | N40: =N36 -> 2032.792899 | T40: 13700000 | U40: =U39+0.088% -> 0.13938 | V40: 0.00088
T41: 13800000 | U41: 0.14026 | V41: 0.00088
A42: Total Tax Related Amounts | L42: =SUM(L40,L38) -> 2032.79 | N42: =SUM(N40,N38) -> 2032.792899 | T42: 13900000 | U42: 0.14114 | V42: 0.00088
T43: 14000000 | U43: 0.14202 | V43: 0.00088
A44: Incremental Tax Savings | N44: =N42-L42 -> 0.002899408284 | T44: 14100000 | U44: =U43+0.082% -> 0.14284 | V44: 0.00082
T45: 14200000 | U45: =U44+0.082% -> 0.14366 | V45: 0.00082
A46: Sharing of Tax Savings (50%) | N46: =0.5*N44 -> 0.001449704142 | T46: 14300000 | U46: 0.14448 | V46: 0.00082
T47: 14400000 | U47: 0.1453 | V47: 0.00082
T48: 14500000 | U48: 0.14612 | V48: 0.00082
T49: 14600000 | U49: =U48+0.076% -> 0.14688 | V49: 0.00076
T50: 14700000 | U50: =U49+0.076% -> 0.14764 | V50: 0.00076
T51: 14800000 | U51: 0.1484 | V51: 0.00076
T52: 14900000 | U52: 0.14916 | V52: 0.00076
T53: 15000000 | U53: 0.15 | V53: 0.00084

Sheet 12. STS - Tax Change Rate Rider
A11: This worksheet calculates a tax change volumetric rate rider. If the rate riders are material (round to 4 decimal places), then the outputs in columns M and O will appear on Sheet 27 - Final Tariff Schedule.
A15: Rate Class | C15: Total Revenue $ by Rate Class | E15: Total Revenue % by Rate Class | G15: Allocation of Tax Savings by Rate Class | I15: Billed kWh | K15: Billed kW | M15: Distribution Volumetric Rate kWh Rate Rider | O15: Distribution Volumetric Rate kW Rate Rider
A17: RESIDENTIAL | C17: 1130395.289 | E17: =C17/C25 -> 0.5078223223 | G17: =E17*G25 -> 0 | I17: 24876518.56 | K17: 0 | M17: =ROUND(G17/I17,4) -> 0
A18: GENERAL SERVICE LESS THAN 50 KW | C18: 399531.6538 | E18: =C18/C25 -> 0.1794868523 | G18: =E18*G25 -> 0 | I18: 10703831.6 | K18: 0 | M18: =ROUND(G18/I18,4) -> 0
A19: GENERAL SERVICE 50 TO 999 KW | C19: 310530.1598 | E19: =C19/C25 -> 0.1395035422 | G19: =E19*G25 -> 0 | I19: 19816501.1 | K19: 50517.32158 | O19: =ROUND(G19/K19,4) -> 0
A20: GENERAL SERVICE 1,000 TO 4,999 KW | C20: 294354.6288 | E20: =C20/C25 -> 0.1322367959 | G20: =E20*G25 -> 0 | I20: 42769241.57 | K20: 97039.13219 | O20: =ROUND(G20/K20,4) -> 0
A21: UNMETERED SCATTERED LOAD | C21: 180.6514312 | E21: =C21/C25 -> 8.115641511e-05 | G21: =E21*G25 -> 0 | I21: 3969.302654 | K21: 0 | M21: =ROUND(G21/I21,4) -> 0
A22: SENTINEL LIGHTING | C22: 2534.496583 | E22: =C22/C25 -> 0.001138605188 | G22: =E22*G25 -> 0 | I22: 29261.25703 | K22: 79.72173698 | O22: =ROUND(G22/K22,4) -> 0
A23: STREET LIGHTING | C23: 88439.24967 | E23: =C23/C25 -> 0.03973072569 | G23: =E23*G25 -> 0 | I23: 711945.9779 | K23: 1907.372524 | O23: =ROUND(G23/K23,4) -> 0
A24: microFIT | C24: 0 | E24: =C24/C25 -> 0 | G24: =E24*G25 -> 0
A25: Total | C25: =SUM(C17:C24) -> 2225966.129 | E25: =SUM(E17:E24) -> 1 | G25: 0 | I25: =SUM(I17:I24) -> 98911269.36 | K25: =SUM(K17:K24) -> 149543.548
A27: One or more rate classes appear to have negligible rate riders in columns M and/or O. As per Appendix B of the Filing Requirements, please provide details of the Applicant's proposal in the Manager's Summary.

Sheet 13. RTSR Rate Sheet
A13: No input required. This sheet consolidates all Current Retail Transmission Rates entered on Sheet 4.
A15: Rate Class | B15: Rate Description | C15: Unit | D15: RTSR-Network | E15: RTSR-Connection
A17: RESIDENTIAL | B17: Retail Transmission Rate - Network Service Rate | C17: $/kWh | D17: 0.0066
A18: RESIDENTIAL | B18: Retail Transmission Rate - Line and Transformation Connection Service Rate | C18: $/kWh | E18: 0.0041
A19: GENERAL SERVICE LESS THAN 50 KW | B19: Retail Transmission Rate - Network Service Rate | C19: $/kWh | D19: 0.0061
A20: GENERAL SERVICE LESS THAN 50 KW | B20: Retail Transmission Rate - Line and Transformation Connection Service Rate | C20: $/kWh | E20: 0.0034
A21: GENERAL SERVICE 50 TO 999 KW | B21: Retail Transmission Rate - Network Service Rate | C21: $/kW | D21: 2.5128
A22: GENERAL SERVICE 50 TO 999 KW | B22: Retail Transmission Rate - Line and Transformation Connection Service Rate | C22: $/kW | E22: 1.372
A23: GENERAL SERVICE 1,000 TO 4,999 KW | B23: Retail Transmission Rate - Network Service Rate | C23: $/kW | D23: 2.669
A24: GENERAL SERVICE 1,000 TO 4,999 KW | B24: Retail Transmission Rate - Line and Transformation Connection Service Rate | C24: $/kW | E24: 1.5041
A25: UNMETERED SCATTERED LOAD | B25: Retail Transmission Rate - Network Service Rate | C25: $/kWh | D25: 0.0061
A26: UNMETERED SCATTERED LOAD | B26: Retail Transmission Rate - Line and Transformation Connection Service Rate | C26: $/kWh | E26: 0.0034
A27: SENTINEL LIGHTING | B27: Retail Transmission Rate - Network Service Rate | C27: $/kW | D27: 1.9046
A28: SENTINEL LIGHTING | B28: Retail Transmission Rate - Line and Transformation Connection Service Rate | C28: $/kW | E28: 1.0829
A29: STREET LIGHTING | B29: Retail Transmission Rate - Network Service Rate | C29: $/kW | D29: 1.895
A30: STREET LIGHTING | B30: Retail Transmission Rate - Line and Transformation Connection Service Rate | C30: $/kW | E30: 1.0608

Sheet 14. RTSR RRR Data
A12: In the green shaded cells, enter the most recent reported RRR billing determinants. Please ensure that billing determinants are non-loss adjusted.
A14: Rate Class | B14: Rate Description | C14: Unit | D14: Non-Loss Adjusted Metered kWh | E14: Non-Loss Adjusted Metered kW | F14: Applicable Loss Factor | H14: Load Factor | I14: Loss Adjusted Billed kWh | J14: Billed kW
A15: RESIDENTIAL | B15: Retail Transmission Rate - Network Service Rate | C15: $/kWh | D15: 25357834.73 | E15: 0 | F15: 1.0716 | H15: =IF(C15="$/kW", D15/(E15* 30.4 * 24), "" ) ->  | I15: =IF(OR(F15=0, OR(ISBLANK(F15), TRIM(F15)="")), F15, F15 * D15) -> 27173455.7 | J15: =IF(OR(F15=0, OR(ISBLANK(F15), TRIM(F15)="")), E15, E15) -> 0
A16: RESIDENTIAL | B16: Retail Transmission Rate - Line and Transformation Connection Service Rate | C16: $/kWh | D16: 25357834.73 | E16: 0 | F16: 1.0716 | H16: =IF(C16="$/kW", D16/(E16* 30.4 * 24), "" ) ->  | I16: =IF(OR(F16=0, OR(ISBLANK(F16), TRIM(F16)="")), F16, F16 * D16) -> 27173455.7 | J16: =IF(OR(F16=0, OR(ISBLANK(F16), TRIM(F16)="")), E16, E16) -> 0
A17: GENERAL SERVICE LESS THAN 50 KW | B17: Retail Transmission Rate - Network Service Rate | C17: $/kWh | D17: 12012886.12 | E17: 0 | F17: 1.0716 | H17: =IF(C17="$/kW", D17/(E17* 30.4 * 24), "" ) ->  | I17: =IF(OR(F17=0, OR(ISBLANK(F17), TRIM(F17)="")), F17, F17 * D17) -> 12873008.77 | J17: =IF(OR(F17=0, OR(ISBLANK(F17), TRIM(F17)="")), E17, E17) -> 0
A18: GENERAL SERVICE LESS THAN 50 KW | B18: Retail Transmission Rate - Line and Transformation Connection Service Rate | C18: $/kWh | D18: 12012886.12 | E18: 0 | F18: 1.0716 | H18: =IF(C18="$/kW", D18/(E18* 30.4 * 24), "" ) ->  | I18: =IF(OR(F18=0, OR(ISBLANK(F18), TRIM(F18)="")), F18, F18 * D18) -> 12873008.77 | J18: =IF(OR(F18=0, OR(ISBLANK(F18), TRIM(F18)="")), E18, E18) -> 0
A19: GENERAL SERVICE 50 TO 999 KW | B19: Retail Transmission Rate - Network Service Rate | C19: $/kW | D19: 17140221.81 | E19: 48188.26 | F19: 0 | H19: 0 | I19: =IF(OR(F19=0, OR(ISBLANK(F19), TRIM(F19)="")), F19, F19 * D19) -> 0 | J19: =IF(OR(F19=0, OR(ISBLANK(F19), TRIM(F19)="")), E19, E19) -> 48188.26
A20: GENERAL SERVICE 50 TO 999 KW | B20: Retail Transmission Rate - Line and Transformation Connection Service Rate | C20: $/kW | D20: 17140221.81 | E20: 48188.26 | F20: 0 | H20: 0 | I20: =IF(OR(F20=0, OR(ISBLANK(F20), TRIM(F20)="")), F20, F20 * D20) -> 0 | J20: =IF(OR(F20=0, OR(ISBLANK(F20), TRIM(F20)="")), E20, E20) -> 48188.26
A21: GENERAL SERVICE 1,000 TO 4,999 KW | B21: Retail Transmission Rate - Network Service Rate | C21: $/kW | D21: 48528023.93 | E21: 95833.64 | F21: 0 | H21: 0 | I21: =IF(OR(F21=0, OR(ISBLANK(F21), TRIM(F21)="")), F21, F21 * D21) -> 0 | J21: =IF(OR(F21=0, OR(ISBLANK(F21), TRIM(F21)="")), E21, E21) -> 95833.64
A22: GENERAL SERVICE 1,000 TO 4,999 KW | B22: Retail Transmission Rate - Line and Transformation Connection Service Rate | C22: $/kW | D22: 48528023.93 | E22: 95833.64 | F22: 0 | H22: 0 | I22: =IF(OR(F22=0, OR(ISBLANK(F22), TRIM(F22)="")), F22, F22 * D22) -> 0 | J22: =IF(OR(F22=0, OR(ISBLANK(F22), TRIM(F22)="")), E22, E22) -> 95833.64
A23: UNMETERED SCATTERED LOAD | B23: Retail Transmission Rate - Network Service Rate | C23: $/kWh | D23: 5733 | E23: 0 | F23: 1.0716 | H23: =IF(C23="$/kW", D23/(E23* 30.4 * 24), "" ) ->  | I23: =IF(OR(F23=0, OR(ISBLANK(F23), TRIM(F23)="")), F23, F23 * D23) -> 6143.4828 | J23: =IF(OR(F23=0, OR(ISBLANK(F23), TRIM(F23)="")), E23, E23) -> 0
A24: UNMETERED SCATTERED LOAD | B24: Retail Transmission Rate - Line and Transformation Connection Service Rate | C24: $/kWh | D24: 5733 | E24: 0 | F24: 1.0716 | H24: =IF(C24="$/kW", D24/(E24* 30.4 * 24), "" ) ->  | I24: =IF(OR(F24=0, OR(ISBLANK(F24), TRIM(F24)="")), F24, F24 * D24) -> 6143.4828 | J24: =IF(OR(F24=0, OR(ISBLANK(F24), TRIM(F24)="")), E24, E24) -> 0
A25: SENTINEL LIGHTING | B25: Retail Transmission Rate - Network Service Rate | C25: $/kW | D25: 26092.8 | E25: 78.52 | F25: 0 | H25: 0 | I25: =IF(OR(F25=0, OR(ISBLANK(F25), TRIM(F25)="")), F25, F25 * D25) -> 0 | J25: =IF(OR(F25=0, OR(ISBLANK(F25), TRIM(F25)="")), E25, E25) -> 78.52
A26: SENTINEL LIGHTING | B26: Retail Transmission Rate - Line and Transformation Connection Service Rate | C26: $/kW | D26: 26092.8 | E26: 78.52 | F26: 0 | H26: 0 | I26: =IF(OR(F26=0, OR(ISBLANK(F26), TRIM(F26)="")), F26, F26 * D26) -> 0 | J26: =IF(OR(F26=0, OR(ISBLANK(F26), TRIM(F26)="")), E26, E26) -> 78.52
A27: STREET LIGHTING | B27: Retail Transmission Rate - Network Service Rate | C27: $/kW | D27: 718528 | E27: 1814.61 | F27: 0 | H27: 0 | I27: =IF(OR(F27=0, OR(ISBLANK(F27), TRIM(F27)="")), F27, F27 * D27) -> 0 | J27: =IF(OR(F27=0, OR(ISBLANK(F27), TRIM(F27)="")), E27, E27) -> 1814.61
A28: STREET LIGHTING | B28: Retail Transmission Rate - Line and Transformation Connection Service Rate | C28: $/kW | D28: 718528 | E28: 1814.61 | F28: 0 | H28: 0 | I28: =IF(OR(F28=0, OR(ISBLANK(F28), TRIM(F28)="")), F28, F28 * D28) -> 0 | J28: =IF(OR(F28=0, OR(ISBLANK(F28), TRIM(F28)="")), E28, E28) -> 1814.61

Sheet 14. RTSR RRR Data Copy (hidden)
A12: In the green shaded cells, enter the most recent reported RRR billing determinants. Please ensure that billing determinants are non-loss adjusted.
A14: Rate Class | B14: Rate Description | C14: Unit | D14: Non-Loss Adjusted Metered kWh | E14: Non-Loss Adjusted Metered kW | F14: Applicable Loss Factor | H14: Load Factor | I14: Loss Adjusted Billed kWh | J14: Billed kW
A15: RESIDENTIAL | B15: Retail Transmission Rate - Network Service Rate | C15: $/kWh | D15: 25357834.73 | E15: 0 | F15: 1.0716
A16: RESIDENTIAL | B16: Retail Transmission Rate - Line and Transformation Connection Service Rate | C16: $/kWh | D16: 25357834.73 | E16: 0 | F16: 1.0716
A17: GENERAL SERVICE LESS THAN 50 KW | B17: Retail Transmission Rate - Network Service Rate | C17: $/kWh | D17: 12012886.12 | E17: 0 | F17: 1.0716
A18: GENERAL SERVICE LESS THAN 50 KW | B18: Retail Transmission Rate - Line and Transformation Connection Service Rate | C18: $/kWh | D18: 12012886.12 | E18: 0 | F18: 1.0716
A19: GENERAL SERVICE 50 TO 999 KW | B19: Retail Transmission Rate - Network Service Rate | C19: $/kW | D19: 17140221.81 | E19: 48188.26 | F19: 0
A20: GENERAL SERVICE 50 TO 999 KW | B20: Retail Transmission Rate - Line and Transformation Connection Service Rate | C20: $/kW | D20: 17140221.81 | E20: 48188.26 | F20: 0
A21: GENERAL SERVICE 1,000 TO 4,999 KW | B21: Retail Transmission Rate - Network Service Rate | C21: $/kW | D21: 48528023.93 | E21: 95833.64 | F21: 0
A22: GENERAL SERVICE 1,000 TO 4,999 KW | B22: Retail Transmission Rate - Line and Transformation Connection Service Rate | C22: $/kW | D22: 48528023.93 | E22: 95833.64 | F22: 0
A23: UNMETERED SCATTERED LOAD | B23: Retail Transmission Rate - Network Service Rate | C23: $/kWh | D23: 5733 | E23: 0 | F23: 1.0716
A24: UNMETERED SCATTERED LOAD | B24: Retail Transmission Rate - Line and Transformation Connection Service Rate | C24: $/kWh | D24: 5733 | E24: 0 | F24: 1.0716
A25: SENTINEL LIGHTING | B25: Retail Transmission Rate - Network Service Rate | C25: $/kW | D25: 26092.8 | E25: 78.52 | F25: 0
A26: SENTINEL LIGHTING | B26: Retail Transmission Rate - Line and Transformation Connection Service Rate | C26: $/kW | D26: 26092.8 | E26: 78.52 | F26: 0
A27: STREET LIGHTING | B27: Retail Transmission Rate - Network Service Rate | C27: $/kW | D27: 718528 | E27: 1814.61 | F27: 0
A28: STREET LIGHTING | B28: Retail Transmission Rate - Line and Transformation Connection Service Rate | C28: $/kW | D28: 718528 | E28: 1814.61 | F28: 0

Sheet 15. RTSR - UTRs & Sub-Tx
B18: Uniform Transmission Rates | C18: Unit | E18: Effective January 1, 2013 | G18: Effective January 1, 2014 | I18: Effective January 1, 2015
B20: Rate Description | E20: Rate | G20: Rate | I20: Rate
B22: Network Service Rate | C22: kW | E22: 3.63 | G22: 3.82 | I22: 3.82
B24: Line Connection Service Rate | C24: kW | E24: 0.75 | G24: 0.82 | I24: 0.82
B26: Transformation Connection Service Rate | C26: kW | E26: 1.85 | G26: 1.98 | I26: 1.98
B29: Hydro One Sub-Transmission Rates | C29: Unit | E29: Effective January 1, 2013 | G29: Effective January 1, 2014 | I29: Effective January 1, 2015
B33: Rate Description | E33: Rate | G33: Rate | I33: Rate
B35: Network Service Rate | C35: kW | E35: 3.18 | G35: 3.23 | I35: =+G35 -> 3.23
B37: Line Connection Service Rate | C37: kW | E37: 0.7 | G37: 0.65 | I37: =+G37 -> 0.65
B39: Transformation Connection Service Rate | C39: kW | E39: 1.63 | G39: 1.62 | I39: =+G39 -> 1.62
B41: Both Line and Transformation Connection Service Rate | C41: kW | E41: =E39+E37 -> 2.33 | G41: =G39+G37 -> 2.27 | I41: =I39+I37 -> 2.27
B44: If needed , add extra host here (I) | C44: Unit | E44: Effective January 1, 2013 | G44: Effective January 1, 2014 | I44: Effective January 1, 2015
B48: Rate Description | E48: Rate | G48: Rate | I48: Rate
B50: Network Service Rate | C50: kW
B52: Line Connection Service Rate | C52: kW
B54: Transformation Connection Service Rate | C54: kW
B56: Both Line and Transformation Connection Service Rate | C56: kW | E56: =E54+E52 -> 0 | G56: =G54+G52 -> 0 | I56: =I54+I52 -> 0
B59: If needed , add extra host here (II) | C59: Unit | E59: Effective January 1, 2013 | G59: Effective January 1, 2014 | I59: Effective January 1, 2015
B63: Rate Description | E63: Rate | G63: Rate | I63: Rate
B65: Network Service Rate | C65: kW
B67: Line Connection Service Rate | C67: kW
B69: Transformation Connection Service Rate | C69: kW
B71: Both Line and Transformation Connection Service Rate | C71: kW | E71: =E69+E67 -> 0 | G71: =G69+G67 -> 0 | I71: =I69+I67 -> 0
B75: Hydro One Sub-Transmission Rate Rider 9A | C75: Unit | E75: Effective January 1, 2013 | G75: Effective January 1, 2014 | I75: Effective January 1, 2015
B77: Rate Description | E77: Rate | G77: Rate | I77: Rate
B79: RSVA Transmission network – 4714 – which affects 1584 | C79: kW | E79: 0 | G79: 0.1465 | I79: 0.1465
B81: RSVA Transmission connection – 4716 – which affects 1586 | C81: kW | E81: 0 | G81: 0.0667 | I81: 0.0667
B83: RSVA LV – 4750 – which affects 1550 | C83: kW | E83: 0 | G83: 0.0475 | I83: 0.0475
B85: RARA 1 – 2252 – which affects 1590 | C85: kW | E85: 0 | G85: 0.0419 | I85: 0.0419
B87: RARA 1 – 2252 – which affects 1590 (2008) | C87: kW | E87: 0 | G87: -0.027 | I87: -0.027
B89: RARA 1 – 2252 – which affects 1590 (2009) | C89: kW | E89: 0 | G89: -0.0006 | I89: -0.0006
B91: Hydro One Sub-Transmission Rate Rider 9A | C91: kW | E91: =SUM(E79:E89) -> 0 | G91: =SUM(G79:G89) -> 0.275 | I91: =SUM(I79:I89) -> 0.275
E94: Historical 2013 | G94: Current 2014 | I94: Forecast 2015
B95: Low Voltage Switchgear Credit (if applicable, enter as a negative value) | C95: $

Sheet 16. RTSR - Historical Wholesale
B13: In the green shaded cells, enter billing detail for wholesale transmission for the same reporting period as the billing determinants on Sheet "14. RTSR RRR Data". For Hydro One Sub-transmission Rates, if you are charged a combined Line and Transformer connection rate, please ensure that both the line connection and transformer connection columns are completed.
B16: IESO | D16: Network | H16: Line Connection | L16: Transformation Connection | P16: Total Line
B17: Month | D17: Units Billed | E17: Rate | F17: Amount | H17: Units Billed | I17: Rate | J17: Amount | L17: Units Billed | M17: Rate | N17: Amount | P17: Amount
B19: January | E19: =IF(D19<>0,F19/D19,0) -> 0 | I19: =IF(H19<>0,J19/H19,0) -> 0 | M19: =IF(L19<>0,N19/L19,0) -> 0 | P19: =J19+N19 -> 0
B20: February | E20: 0 | I20: 0 | M20: 0 | P20: 0
B21: March | E21: 0 | I21: 0 | M21: 0 | P21: 0
B22: April | E22: 0 | I22: 0 | M22: 0 | P22: 0
B23: May | E23: 0 | I23: 0 | M23: 0 | P23: 0
B24: June | E24: 0 | I24: 0 | M24: 0 | P24: 0
B25: July | E25: 0 | I25: 0 | M25: 0 | P25: 0
B26: August | E26: 0 | I26: 0 | M26: 0 | P26: 0
B27: September | E27: 0 | I27: 0 | M27: 0 | P27: 0
B28: October | E28: 0 | I28: 0 | M28: 0 | P28: 0
B29: November | E29: 0 | I29: 0 | M29: 0 | P29: 0
B30: December | E30: 0 | I30: 0 | M30: 0 | P30: 0
B32: Total | D32: =SUM(D19:D30) -> 0 | E32: =IF(D32<>0,F32/D32,0) -> 0 | F32: =SUM(F19:F30) -> 0 | H32: =SUM(H19:H30) -> 0 | I32: =IF(H32<>0,J32/H32,0) -> 0 | J32: =SUM(J19:J30) -> 0 | L32: =SUM(L19:L30) -> 0 | M32: =IF(L32<>0,N32/L32,0) -> 0 | N32: =SUM(N19:N30) -> 0 | P32: =SUM(P19:P30) -> 0
B34: Hydro One | D34: Network | H34: Line Connection | L34: Transformation Connection | P34: Total Line
B36: Month | D36: Units Billed | E36: Rate | F36: Amount | H36: Units Billed | I36: Rate | J36: Amount | L36: Units Billed | M36: Rate | N36: Amount | P36: Amount
B38: January | D38: ='[6]2013 Data'!$C27 -> 16957 | E38: =IF(D38<>0,F38/D38,0) -> 2.820967742 | F38: ='[6]2013 Data'!$E27 -> 47835.15 | H38: ='[6]2013 Data'!$G27 -> 7362 | I38: =IF(H38<>0,J38/H38,0) -> 0.64 | J38: ='[6]2013 Data'!$I27 -> 4711.68 | L38: ='[6]2013 Data'!$K27 -> 16957 | M38: =IF(L38<>0,N38/L38,0) -> 1.545436693 | N38: ='[6]2013 Data'!$M27 -> 26205.97 | P38: =J38+N38 -> 30917.65
B39: February | D39: ='[6]2013 Data'!$C28 -> 17616 | E39: 3.18 | F39: ='[6]2013 Data'!$E28 -> 56018.88 | H39: ='[6]2013 Data'!$G28 -> 7554 | I39: 0.7 | J39: ='[6]2013 Data'!$I28 -> 5287.8 | L39: ='[6]2013 Data'!$K28 -> 17616 | M39: 1.63 | N39: ='[6]2013 Data'!$M28 -> 28714.08 | P39: 34001.88
B40: March | D40: ='[6]2013 Data'!$C29 -> 16910 | E40: 3.18 | F40: ='[6]2013 Data'!$E29 -> 53773.8 | H40: ='[6]2013 Data'!$G29 -> 7446 | I40: 0.7 | J40: ='[6]2013 Data'!$I29 -> 5212.2 | L40: ='[6]2013 Data'!$K29 -> 16910 | M40: 1.63 | N40: ='[6]2013 Data'!$M29 -> 27563.3 | P40: 32775.5
B41: April | D41: ='[6]2013 Data'!$C30 -> 16455 | E41: 3.175941659 | F41: ='[6]2013 Data'!$E30 -> 52260.12 | H41: ='[6]2013 Data'!$G30 -> 7315 | I41: 0.7 | J41: ='[6]2013 Data'!$I30 -> 5120.5 | L41: ='[6]2013 Data'!$K30 -> 16455 | M41: 1.63 | N41: ='[6]2013 Data'!$M30 -> 26821.65 | P41: 31942.15
B42: May | D42: ='[6]2013 Data'!$C31 -> 15498.8 | E42: 3.180001678 | F42: ='[6]2013 Data'!$E31 -> 49286.21 | H42: ='[6]2013 Data'!$G31 -> 6986.63 | I42: 0.7 | J42: ='[6]2013 Data'!$I31 -> 4890.641 | L42: ='[6]2013 Data'!$K31 -> 15498.8 | M42: 1.630000187 | N42: ='[6]2013 Data'!$M31 -> 25263.0469 | P42: 30153.6879
B43: June | D43: ='[6]2013 Data'!$C32 -> 15902.45 | E43: 3.180000566 | F43: ='[6]2013 Data'!$E32 -> 50569.8 | H43: ='[6]2013 Data'!$G32 -> 7034.93 | I43: 0.7 | J43: ='[6]2013 Data'!$I32 -> 4924.451 | L43: ='[6]2013 Data'!$K32 -> 15902.45 | M43: 1.629999522 | N43: ='[6]2013 Data'!$M32 -> 25920.9859 | P43: 30845.4369
B44: July | D44: ='[6]2013 Data'!$C33 -> 16549.13 | E44: 3.17999919 | F44: ='[6]2013 Data'!$E33 -> 52626.22 | H44: ='[6]2013 Data'!$G33 -> 7166.08 | I44: 0.7 | J44: ='[6]2013 Data'!$I33 -> 5016.256 | L44: ='[6]2013 Data'!$K33 -> 16549.13 | M44: 1.629999909 | N44: ='[6]2013 Data'!$M33 -> 26975.0804 | P44: 31991.3364
B45: August | D45: ='[6]2013 Data'!$C34 -> 17541.64 | E45: 3.179999704 | F45: ='[6]2013 Data'!$E34 -> 55782.41 | H45: ='[6]2013 Data'!$G34 -> 7525.28 | I45: 0.7 | J45: ='[6]2013 Data'!$I34 -> 5267.696 | L45: ='[6]2013 Data'!$K34 -> 17541.64 | M45: 1.630000182 | N45: ='[6]2013 Data'!$M34 -> 28592.8764 | P45: 33860.5724
B46: September | D46: ='[6]2013 Data'!$C35 -> 16909.83 | E46: 3.180000627 | F46: ='[6]2013 Data'!$E35 -> 53773.27 | H46: ='[6]2013 Data'!$G35 -> 7394.57 | I46: 0.7 | J46: ='[6]2013 Data'!$I35 -> 5176.199 | L46: ='[6]2013 Data'!$K35 -> 16909.83 | M46: 1.630000367 | N46: ='[6]2013 Data'!$M35 -> 27563.0291 | P46: 32739.2281
B47: October | D47: ='[6]2013 Data'!$C36 -> 15517.14 | E47: 3.180001598 | F47: ='[6]2013 Data'!$E36 -> 49344.53 | H47: ='[6]2013 Data'!$G36 -> 7107.02 | I47: 0.7 | J47: ='[6]2013 Data'!$I36 -> 4974.914 | L47: ='[6]2013 Data'!$K36 -> 15517.14 | M47: 1.630000284 | N47: ='[6]2013 Data'!$M36 -> 25292.9426 | P47: 30267.8566
B48: November | D48: ='[6]2013 Data'!$C37 -> 16413.99 | E48: 3.180000719 | F48: ='[6]2013 Data'!$E37 -> 52196.5 | H48: ='[6]2013 Data'!$G37 -> 7214.94 | I48: 0.7 | J48: ='[6]2013 Data'!$I37 -> 5050.458 | L48: ='[6]2013 Data'!$K37 -> 16413.99 | M48: 1.630000518 | N48: ='[6]2013 Data'!$M37 -> 26754.8122 | P48: 31805.2702
B49: December | D49: ='[6]2013 Data'!$C38 -> 17461.21 | E49: 3.179999553 | F49: ='[6]2013 Data'!$E38 -> 55526.64 | H49: ='[6]2013 Data'!$G38 -> 7585.16 | I49: 0.7 | J49: ='[6]2013 Data'!$I38 -> 5309.612 | L49: ='[6]2013 Data'!$K38 -> 17461.21 | M49: 1.630000487 | N49: ='[6]2013 Data'!$M38 -> 28461.7808 | P49: 33771.3928
B51: Total | D51: =SUM(D38:D49) -> 199732.19 | E51: =IF(D51<>0,F51/D51,0) -> 3.149184566 | F51: =SUM(F38:F49) -> 628993.53 | H51: =SUM(H38:H49) -> 87691.61 | I51: =IF(H51<>0,J51/H51,0) -> 0.694962802 | J51: =SUM(J38:J49) -> 60942.407 | L51: =SUM(L38:L49) -> 199732.19 | M51: =IF(L51<>0,N51/L51,0) -> 1.62282081 | N51: =SUM(N38:N49) -> 324129.5543 | P51: =SUM(P38:P49) -> 385071.9613
B53: Add Extra Host Here (I) | D53: Network | H53: Line Connection | L53: Transformation Connection | P53: Total Line
B54: (if needed)
B55: Month | D55: Units Billed | E55: Rate | F55: Amount | H55: Units Billed | I55: Rate | J55: Amount | L55: Units Billed | M55: Rate | N55: Amount | P55: Amount
B57: January | E57: =IF(D57<>0,F57/D57,0) -> 0 | I57: =IF(H57<>0,J57/H57,0) -> 0 | M57: =IF(L57<>0,N57/L57,0) -> 0 | P57: =J57+N57 -> 0
B58: February | E58: 0 | I58: 0 | M58: 0 | P58: 0
B59: March | E59: 0 | I59: 0 | M59: 0 | P59: 0
B60: April | E60: 0 | I60: 0 | M60: 0 | P60: 0
B61: May | E61: 0 | I61: 0 | M61: 0 | P61: 0
B62: June | E62: 0 | I62: 0 | M62: 0 | P62: 0
B63: July | E63: 0 | I63: 0 | M63: 0 | P63: 0
B64: August | E64: 0 | I64: 0 | M64: 0 | P64: 0
B65: September | E65: 0 | I65: 0 | M65: 0 | P65: 0
B66: October | E66: 0 | I66: 0 | M66: 0 | P66: 0
B67: November | E67: 0 | I67: 0 | M67: 0 | P67: 0
B68: December | E68: 0 | I68: 0 | M68: 0 | P68: 0
B70: Total | D70: =SUM(D57:D68) -> 0 | E70: =IF(D70<>0,F70/D70,0) -> 0 | F70: =SUM(F57:F68) -> 0 | H70: =SUM(H57:H68) -> 0 | I70: =IF(H70<>0,J70/H70,0) -> 0 | J70: =SUM(J57:J68) -> 0 | L70: =SUM(L57:L68) -> 0 | M70: =IF(L70<>0,N70/L70,0) -> 0 | N70: =SUM(N57:N68) -> 0 | P70: =SUM(P57:P68) -> 0
B72: Add Extra Host Here (II) | D72: Network | H72: Line Connection | L72: Transformation Connection | P72: Total Line
B73: (if needed)
B74: Month | D74: Units Billed | E74: Rate | F74: Amount | H74: Units Billed | I74: Rate | J74: Amount | L74: Units Billed | M74: Rate | N74: Amount | P74: Amount
B76: January | E76: =IF(D76<>0,F76/D76,0) -> 0 | I76: =IF(H76<>0,J76/H76,0) -> 0 | M76: =IF(L76<>0,N76/L76,0) -> 0 | P76: =J76+N76 -> 0
B77: February | E77: 0 | I77: 0 | M77: 0 | P77: 0
B78: March | E78: 0 | I78: 0 | M78: 0 | P78: 0
B79: April | E79: 0 | I79: 0 | M79: 0 | P79: 0
B80: May | E80: 0 | I80: 0 | M80: 0 | P80: 0
B81: June | E81: 0 | I81: 0 | M81: 0 | P81: 0
B82: July | E82: 0 | I82: 0 | M82: 0 | P82: 0
B83: August | E83: 0 | I83: 0 | M83: 0 | P83: 0
B84: September | E84: 0 | I84: 0 | M84: 0 | P84: 0
B85: October | E85: 0 | I85: 0 | M85: 0 | P85: 0
B86: November | E86: 0 | I86: 0 | M86: 0 | P86: 0
B87: December | E87: 0 | I87: 0 | M87: 0 | P87: 0
B89: Total | D89: =SUM(D76:D87) -> 0 | E89: =IF(D89<>0,F89/D89,0) -> 0 | F89: =SUM(F76:F87) -> 0 | H89: =SUM(H76:H87) -> 0 | I89: =IF(H89<>0,J89/H89,0) -> 0 | J89: =SUM(J76:J87) -> 0 | L89: =SUM(L76:L87) -> 0 | M89: =IF(L89<>0,N89/L89,0) -> 0 | N89: =SUM(N76:N87) -> 0 | P89: =SUM(P76:P87) -> 0
B91: Total | D91: Network | H91: Line Connection | L91: Transformation Connection | P91: Total Line
B93: Month | D93: Units Billed | E93: Rate | F93: Amount | H93: Units Billed | I93: Rate | J93: Amount | L93: Units Billed | M93: Rate | N93: Amount | P93: Amount
B95: January | D95: =D19+D38+D57+D76 -> 16957 | E95: =IF(D95<>0,F95/D95,0) -> 2.820967742 | F95: =F19+F38+F57+F76 -> 47835.15 | H95: =H19+H38+H57+H76 -> 7362 | I95: =IF(H95<>0,J95/H95,0) -> 0.64 | J95: =J19+J38+J57+J76 -> 4711.68 | L95: =L19+L38+L57+L76 -> 16957 | M95: =IF(L95<>0,N95/L95,0) -> 1.545436693 | N95: =N19+N38+N57+N76 -> 26205.97 | P95: =J95+N95 -> 30917.65
B96: February | D96: =D20+D39+D58+D77 -> 17616 | E96: 3.18 | F96: =F20+F39+F58+F77 -> 56018.88 | H96: =H20+H39+H58+H77 -> 7554 | I96: 0.7 | J96: =J20+J39+J58+J77 -> 5287.8 | L96: =L20+L39+L58+L77 -> 17616 | M96: 1.63 | N96: =N20+N39+N58+N77 -> 28714.08 | P96: 34001.88
B97: March | D97: 16910 | E97: 3.18 | F97: 53773.8 | H97: 7446 | I97: 0.7 | J97: 5212.2 | L97: 16910 | M97: 1.63 | N97: 27563.3 | P97: 32775.5
B98: April | D98: 16455 | E98: 3.175941659 | F98: 52260.12 | H98: 7315 | I98: 0.7 | J98: 5120.5 | L98: 16455 | M98: 1.63 | N98: 26821.65 | P98: 31942.15
B99: May | D99: 15498.8 | E99: 3.180001678 | F99: 49286.21 | H99: 6986.63 | I99: 0.7 | J99: 4890.641 | L99: 15498.8 | M99: 1.630000187 | N99: 25263.0469 | P99: 30153.6879
B100: June | D100: 15902.45 | E100: 3.180000566 | F100: 50569.8 | H100: 7034.93 | I100: 0.7 | J100: 4924.451 | L100: 15902.45 | M100: 1.629999522 | N100: 25920.9859 | P100: 30845.4369
B101: July | D101: 16549.13 | E101: 3.17999919 | F101: 52626.22 | H101: 7166.08 | I101: 0.7 | J101: 5016.256 | L101: 16549.13 | M101: 1.629999909 | N101: 26975.0804 | P101: 31991.3364
B102: August | D102: 17541.64 | E102: 3.179999704 | F102: 55782.41 | H102: 7525.28 | I102: 0.7 | J102: 5267.696 | L102: 17541.64 | M102: 1.630000182 | N102: 28592.8764 | P102: 33860.5724
B103: September | D103: 16909.83 | E103: 3.180000627 | F103: 53773.27 | H103: 7394.57 | I103: 0.7 | J103: 5176.199 | L103: 16909.83 | M103: 1.630000367 | N103: 27563.0291 | P103: 32739.2281
B104: October | D104: 15517.14 | E104: 3.180001598 | F104: 49344.53 | H104: 7107.02 | I104: 0.7 | J104: 4974.914 | L104: 15517.14 | M104: 1.630000284 | N104: 25292.9426 | P104: 30267.8566
B105: November | D105: 16413.99 | E105: 3.180000719 | F105: 52196.5 | H105: 7214.94 | I105: 0.7 | J105: 5050.458 | L105: 16413.99 | M105: 1.630000518 | N105: 26754.8122 | P105: 31805.2702
B106: December | D106: 17461.21 | E106: 3.179999553 | F106: 55526.64 | H106: 7585.16 | I106: 0.7 | J106: 5309.612 | L106: 17461.21 | M106: 1.630000487 | N106: 28461.7808 | P106: 33771.3928
B108: Total | D108: =SUM(D95:D106) -> 199732.19 | E108: =IF(D108<>0,F108/D108,0) -> 3.149184566 | F108: =SUM(F95:F106) -> 628993.53 | H108: =SUM(H95:H106) -> 87691.61 | I108: =IF(H108<>0,J108/H108,0) -> 0.694962802 | J108: =SUM(J95:J106) -> 60942.407 | L108: =SUM(L95:L106) -> 199732.19 | M108: =IF(L108<>0,N108/L108,0) -> 1.62282081 | N108: =SUM(N95:N106) -> 324129.5543 | P108: =SUM(P95:P106) -> 385071.9613
N110: Transformer Allowance Credit (if applicable) | P110: ='15. RTSR - UTRs & Sub-Tx'!E95 -> 0
N112: Total including deduction for Transformer Allowance Credit | P112: =P108+P110 -> 385071.9613

Sheet 17. RTSR - Current Wholesale
B13: The purpose of this sheet is to calculate the expected billing when current 2014 Uniform Transmission Rates are applied against historical 2013 transmission units.
B16: IESO | D16: Network | H16: Line Connection | L16: Transformation Connection | P16: Total Line
B18: Month | D18: Units Billed | E18: Rate | F18: Amount | H18: Units Billed | I18: Rate | J18: Amount | L18: Units Billed | M18: Rate | N18: Amount | P18: Amount
B20: January | D20: ='16. RTSR - Historical Wholesale'!D19 -> 0 | E20: ='15. RTSR - UTRs & Sub-Tx'!G22 -> 3.82 | F20: =D20*E20 -> 0 | H20: ='16. RTSR - Historical Wholesale'!H19 -> 0 | I20: ='15. RTSR - UTRs & Sub-Tx'!G24 -> 0.82 | J20: =H20*I20 -> 0 | L20: ='16. RTSR - Historical Wholesale'!L19 -> 0 | M20: ='15. RTSR - UTRs & Sub-Tx'!G26 -> 1.98 | N20: =L20*M20 -> 0 | P20: =J20+N20 -> 0
B21: February | D21: ='16. RTSR - Historical Wholesale'!D20 -> 0 | E21: =E20 -> 3.82 | F21: =D21*E21 -> 0 | H21: ='16. RTSR - Historical Wholesale'!H20 -> 0 | I21: =I20 -> 0.82 | J21: =H21*I21 -> 0 | L21: ='16. RTSR - Historical Wholesale'!L20 -> 0 | M21: =M20 -> 1.98 | N21: =L21*M21 -> 0 | P21: 0
B22: March | D22: ='16. RTSR - Historical Wholesale'!D21 -> 0 | E22: =E21 -> 3.82 | F22: 0 | H22: ='16. RTSR - Historical Wholesale'!H21 -> 0 | I22: =I21 -> 0.82 | J22: 0 | L22: ='16. RTSR - Historical Wholesale'!L21 -> 0 | M22: =M21 -> 1.98 | N22: 0 | P22: 0
B23: April | D23: ='16. RTSR - Historical Wholesale'!D22 -> 0 | E23: 3.82 | F23: 0 | H23: ='16. RTSR - Historical Wholesale'!H22 -> 0 | I23: 0.82 | J23: 0 | L23: ='16. RTSR - Historical Wholesale'!L22 -> 0 | M23: 1.98 | N23: 0 | P23: 0
B24: May | D24: ='16. RTSR - Historical Wholesale'!D23 -> 0 | E24: 3.82 | F24: 0 | H24: ='16. RTSR - Historical Wholesale'!H23 -> 0 | I24: 0.82 | J24: 0 | L24: ='16. RTSR - Historical Wholesale'!L23 -> 0 | M24: 1.98 | N24: 0 | P24: 0
B25: June | D25: ='16. RTSR - Historical Wholesale'!D24 -> 0 | E25: 3.82 | F25: 0 | H25: ='16. RTSR - Historical Wholesale'!H24 -> 0 | I25: 0.82 | J25: 0 | L25: ='16. RTSR - Historical Wholesale'!L24 -> 0 | M25: 1.98 | N25: 0 | P25: 0
B26: July | D26: ='16. RTSR - Historical Wholesale'!D25 -> 0 | E26: 3.82 | F26: 0 | H26: ='16. RTSR - Historical Wholesale'!H25 -> 0 | I26: 0.82 | J26: 0 | L26: ='16. RTSR - Historical Wholesale'!L25 -> 0 | M26: 1.98 | N26: 0 | P26: 0
B27: August | D27: ='16. RTSR - Historical Wholesale'!D26 -> 0 | E27: 3.82 | F27: 0 | H27: ='16. RTSR - Historical Wholesale'!H26 -> 0 | I27: 0.82 | J27: 0 | L27: ='16. RTSR - Historical Wholesale'!L26 -> 0 | M27: 1.98 | N27: 0 | P27: 0
B28: September | D28: ='16. RTSR - Historical Wholesale'!D27 -> 0 | E28: 3.82 | F28: 0 | H28: ='16. RTSR - Historical Wholesale'!H27 -> 0 | I28: 0.82 | J28: 0 | L28: ='16. RTSR - Historical Wholesale'!L27 -> 0 | M28: 1.98 | N28: 0 | P28: 0
B29: October | D29: ='16. RTSR - Historical Wholesale'!D28 -> 0 | E29: 3.82 | F29: 0 | H29: ='16. RTSR - Historical Wholesale'!H28 -> 0 | I29: 0.82 | J29: 0 | L29: ='16. RTSR - Historical Wholesale'!L28 -> 0 | M29: 1.98 | N29: 0 | P29: 0
B30: November | D30: ='16. RTSR - Historical Wholesale'!D29 -> 0 | E30: 3.82 | F30: 0 | H30: ='16. RTSR - Historical Wholesale'!H29 -> 0 | I30: 0.82 | J30: 0 | L30: ='16. RTSR - Historical Wholesale'!L29 -> 0 | M30: 1.98 | N30: 0 | P30: 0
B31: December | D31: ='16. RTSR - Historical Wholesale'!D30 -> 0 | E31: 3.82 | F31: 0 | H31: ='16. RTSR - Historical Wholesale'!H30 -> 0 | I31: 0.82 | J31: 0 | L31: ='16. RTSR - Historical Wholesale'!L30 -> 0 | M31: 1.98 | N31: 0 | P31: 0
B33: Total | D33: =SUM(D20:D31) -> 0 | E33: =IF(D33<>0,F33/D33,0) -> 0 | F33: =SUM(F20:F31) -> 0 | H33: =SUM(H20:H31) -> 0 | I33: =IF(H33<>0,J33/H33,0) -> 0 | J33: =SUM(J20:J31) -> 0 | L33: =SUM(L20:L31) -> 0 | M33: =IF(L33<>0,N33/L33,0) -> 0 | N33: =SUM(N20:N31) -> 0 | P33: =SUM(P20:P31) -> 0
B35: Hydro One | D35: Network | H35: Line Connection | L35: Transformation Connection | P35: Total Line
B37: Month | D37: Units Billed | E37: Rate | F37: Amount | H37: Units Billed | I37: Rate | J37: Amount | L37: Units Billed | M37: Rate | N37: Amount | P37: Amount
B39: January | D39: ='16. RTSR - Historical Wholesale'!D38 -> 16957 | E39: ='15. RTSR - UTRs & Sub-Tx'!G35+'15. RTSR - UTRs & Sub-Tx'!G79 -> 3.3765 | F39: =D39*E39 -> 57255.3105 | H39: ='16. RTSR - Historical Wholesale'!H38 -> 7362 | I39: ='15. RTSR - UTRs & Sub-Tx'!G37+'15. RTSR - UTRs & Sub-Tx'!G81 -> 0.7167 | J39: =H39*I39 -> 5276.3454 | L39: ='16. RTSR - Historical Wholesale'!L38 -> 16957 | M39: ='15. RTSR - UTRs & Sub-Tx'!G39 -> 1.62 | N39: =L39*M39 -> 27470.34 | P39: =J39+N39 -> 32746.6854
B40: February | D40: ='16. RTSR - Historical Wholesale'!D39 -> 17616 | E40: =E39 -> 3.3765 | F40: =D40*E40 -> 59480.424 | H40: ='16. RTSR - Historical Wholesale'!H39 -> 7554 | I40: =I39 -> 0.7167 | J40: =H40*I40 -> 5413.9518 | L40: ='16. RTSR - Historical Wholesale'!L39 -> 17616 | M40: =M39 -> 1.62 | N40: =L40*M40 -> 28537.92 | P40: 33951.8718
B41: March | D41: ='16. RTSR - Historical Wholesale'!D40 -> 16910 | E41: =E40 -> 3.3765 | F41: 57096.615 | H41: ='16. RTSR - Historical Wholesale'!H40 -> 7446 | I41: =I40 -> 0.7167 | J41: 5336.5482 | L41: ='16. RTSR - Historical Wholesale'!L40 -> 16910 | M41: =M40 -> 1.62 | N41: 27394.2 | P41: 32730.7482
B42: April | D42: ='16. RTSR - Historical Wholesale'!D41 -> 16455 | E42: 3.3765 | F42: 55560.3075 | H42: ='16. RTSR - Historical Wholesale'!H41 -> 7315 | I42: 0.7167 | J42: 5242.6605 | L42: ='16. RTSR - Historical Wholesale'!L41 -> 16455 | M42: =M41 -> 1.62 | N42: 26657.1 | P42: 31899.7605
B43: May | D43: ='16. RTSR - Historical Wholesale'!D42 -> 15498.8 | E43: 3.3765 | F43: 52331.6982 | H43: ='16. RTSR - Historical Wholesale'!H42 -> 6986.63 | I43: 0.7167 | J43: 5007.317721 | L43: ='16. RTSR - Historical Wholesale'!L42 -> 15498.8 | M43: 1.62 | N43: 25108.056 | P43: 30115.37372
B44: June | D44: ='16. RTSR - Historical Wholesale'!D43 -> 15902.45 | E44: 3.3765 | F44: 53694.62243 | H44: ='16. RTSR - Historical Wholesale'!H43 -> 7034.93 | I44: 0.7167 | J44: 5041.934331 | L44: ='16. RTSR - Historical Wholesale'!L43 -> 15902.45 | M44: 1.62 | N44: 25761.969 | P44: 30803.90333
B45: July | D45: ='16. RTSR - Historical Wholesale'!D44 -> 16549.13 | E45: 3.3765 | F45: 55878.13744 | H45: ='16. RTSR - Historical Wholesale'!H44 -> 7166.08 | I45: 0.7167 | J45: 5135.929536 | L45: ='16. RTSR - Historical Wholesale'!L44 -> 16549.13 | M45: 1.62 | N45: 26809.5906 | P45: 31945.52014
B46: August | D46: ='16. RTSR - Historical Wholesale'!D45 -> 17541.64 | E46: 3.3765 | F46: 59229.34746 | H46: ='16. RTSR - Historical Wholesale'!H45 -> 7525.28 | I46: 0.7167 | J46: 5393.368176 | L46: ='16. RTSR - Historical Wholesale'!L45 -> 17541.64 | M46: 1.62 | N46: 28417.4568 | P46: 33810.82498
B47: September | D47: ='16. RTSR - Historical Wholesale'!D46 -> 16909.83 | E47: 3.3765 | F47: 57096.041 | H47: ='16. RTSR - Historical Wholesale'!H46 -> 7394.57 | I47: 0.7167 | J47: 5299.688319 | L47: ='16. RTSR - Historical Wholesale'!L46 -> 16909.83 | M47: 1.62 | N47: 27393.9246 | P47: 32693.61292
B48: October | D48: ='16. RTSR - Historical Wholesale'!D47 -> 15517.14 | E48: 3.3765 | F48: 52393.62321 | H48: ='16. RTSR - Historical Wholesale'!H47 -> 7107.02 | I48: 0.7167 | J48: 5093.601234 | L48: ='16. RTSR - Historical Wholesale'!L47 -> 15517.14 | M48: 1.62 | N48: 25137.7668 | P48: 30231.36803
B49: November | D49: ='16. RTSR - Historical Wholesale'!D48 -> 16413.99 | E49: 3.3765 | F49: 55421.83723 | H49: ='16. RTSR - Historical Wholesale'!H48 -> 7214.94 | I49: 0.7167 | J49: 5170.947498 | L49: ='16. RTSR - Historical Wholesale'!L48 -> 16413.99 | M49: 1.62 | N49: 26590.6638 | P49: 31761.6113
B50: December | D50: ='16. RTSR - Historical Wholesale'!D49 -> 17461.21 | E50: 3.3765 | F50: 58957.77556 | H50: ='16. RTSR - Historical Wholesale'!H49 -> 7585.16 | I50: 0.7167 | J50: 5436.284172 | L50: ='16. RTSR - Historical Wholesale'!L49 -> 17461.21 | M50: 1.62 | N50: 28287.1602 | P50: 33723.44437
B52: Total | D52: =SUM(D39:D50) -> 199732.19 | E52: =IF(D52<>0,F52/D52,0) -> 3.3765 | F52: =SUM(F39:F50) -> 674395.7395 | H52: =SUM(H39:H50) -> 87691.61 | I52: =IF(H52<>0,J52/H52,0) -> 0.7167 | J52: =SUM(J39:J50) -> 62848.57689 | L52: =SUM(L39:L50) -> 199732.19 | M52: =IF(L52<>0,N52/L52,0) -> 1.62 | N52: =SUM(N39:N50) -> 323566.1478 | P52: =SUM(P39:P50) -> 386414.7247
B54: ='16. RTSR - Historical Wholesale'!B53 -> Add Extra Host Here (I) | D54: Network | H54: Line Connection | L54: Transformation Connection | P54: Total Line
B56: Month | D56: Units Billed | E56: Rate | F56: Amount | H56: Units Billed | I56: Rate | J56: Amount | L56: Units Billed | M56: Rate | N56: Amount | P56: Amount
B58: January | D58: ='16. RTSR - Historical Wholesale'!D57 -> 0 | E58: ='15. RTSR - UTRs & Sub-Tx'!G50 -> 0 | F58: =D58*E58 -> 0 | H58: ='16. RTSR - Historical Wholesale'!H57 -> 0 | I58: ='15. RTSR - UTRs & Sub-Tx'!G52 -> 0 | J58: =H58*I58 -> 0 | L58: ='16. RTSR - Historical Wholesale'!L57 -> 0 | M58: ='15. RTSR - UTRs & Sub-Tx'!G54 -> 0 | N58: =L58*M58 -> 0 | P58: =J58+N58 -> 0
B59: February | D59: ='16. RTSR - Historical Wholesale'!D58 -> 0 | E59: =E58 -> 0 | F59: =D59*E59 -> 0 | H59: ='16. RTSR - Historical Wholesale'!H58 -> 0 | I59: =I58 -> 0 | J59: =H59*I59 -> 0 | L59: ='16. RTSR - Historical Wholesale'!L58 -> 0 | M59: =M58 -> 0 | N59: =L59*M59 -> 0 | P59: 0
B60: March | D60: ='16. RTSR - Historical Wholesale'!D59 -> 0 | E60: =E59 -> 0 | F60: 0 | H60: ='16. RTSR - Historical Wholesale'!H59 -> 0 | I60: =I59 -> 0 | J60: 0 | L60: ='16. RTSR - Historical Wholesale'!L59 -> 0 | M60: =M59 -> 0 | N60: 0 | P60: 0
B61: April | D61: ='16. RTSR - Historical Wholesale'!D60 -> 0 | E61: 0 | F61: 0 | H61: ='16. RTSR - Historical Wholesale'!H60 -> 0 | I61: 0 | J61: 0 | L61: ='16. RTSR - Historical Wholesale'!L60 -> 0 | M61: =M60 -> 0 | N61: 0 | P61: 0
B62: May | D62: ='16. RTSR - Historical Wholesale'!D61 -> 0 | E62: 0 | F62: 0 | H62: ='16. RTSR - Historical Wholesale'!H61 -> 0 | I62: 0 | J62: 0 | L62: ='16. RTSR - Historical Wholesale'!L61 -> 0 | M62: 0 | N62: 0 | P62: 0
B63: June | D63: ='16. RTSR - Historical Wholesale'!D62 -> 0 | E63: 0 | F63: 0 | H63: ='16. RTSR - Historical Wholesale'!H62 -> 0 | I63: 0 | J63: 0 | L63: ='16. RTSR - Historical Wholesale'!L62 -> 0 | M63: 0 | N63: 0 | P63: 0
B64: July | D64: ='16. RTSR - Historical Wholesale'!D63 -> 0 | E64: 0 | F64: 0 | H64: ='16. RTSR - Historical Wholesale'!H63 -> 0 | I64: 0 | J64: 0 | L64: ='16. RTSR - Historical Wholesale'!L63 -> 0 | M64: 0 | N64: 0 | P64: 0
B65: August | D65: ='16. RTSR - Historical Wholesale'!D64 -> 0 | E65: 0 | F65: 0 | H65: ='16. RTSR - Historical Wholesale'!H64 -> 0 | I65: 0 | J65: 0 | L65: ='16. RTSR - Historical Wholesale'!L64 -> 0 | M65: 0 | N65: 0 | P65: 0
B66: September | D66: ='16. RTSR - Historical Wholesale'!D65 -> 0 | E66: 0 | F66: 0 | H66: ='16. RTSR - Historical Wholesale'!H65 -> 0 | I66: 0 | J66: 0 | L66: ='16. RTSR - Historical Wholesale'!L65 -> 0 | M66: 0 | N66: 0 | P66: 0
B67: October | D67: ='16. RTSR - Historical Wholesale'!D66 -> 0 | E67: 0 | F67: 0 | H67: ='16. RTSR - Historical Wholesale'!H66 -> 0 | I67: 0 | J67: 0 | L67: ='16. RTSR - Historical Wholesale'!L66 -> 0 | M67: 0 | N67: 0 | P67: 0
B68: November | D68: ='16. RTSR - Historical Wholesale'!D67 -> 0 | E68: 0 | F68: 0 | H68: ='16. RTSR - Historical Wholesale'!H67 -> 0 | I68: 0 | J68: 0 | L68: ='16. RTSR - Historical Wholesale'!L67 -> 0 | M68: 0 | N68: 0 | P68: 0
B69: December | D69: ='16. RTSR - Historical Wholesale'!D68 -> 0 | E69: 0 | F69: 0 | H69: ='16. RTSR - Historical Wholesale'!H68 -> 0 | I69: 0 | J69: 0 | L69: ='16. RTSR - Historical Wholesale'!L68 -> 0 | M69: 0 | N69: 0 | P69: 0
B71: Total | D71: =SUM(D58:D69) -> 0 | E71: =IF(D71<>0,F71/D71,0) -> 0 | F71: =SUM(F58:F69) -> 0 | H71: =SUM(H58:H69) -> 0 | I71: =IF(H71<>0,J71/H71,0) -> 0 | J71: =SUM(J58:J69) -> 0 | L71: =SUM(L58:L69) -> 0 | M71: =IF(L71<>0,N71/L71,0) -> 0 | N71: =SUM(N58:N69) -> 0 | P71: =SUM(P58:P69) -> 0
B73: ='16. RTSR - Historical Wholesale'!B72 -> Add Extra Host Here (II) | D73: Network | H73: Line Connection | L73: Transformation Connection | P73: Total Line
B75: Month | D75: Units Billed | E75: Rate | F75: Amount | H75: Units Billed | I75: Rate | J75: Amount | L75: Units Billed | M75: Rate | N75: Amount | P75: Amount
B77: January | D77: ='16. RTSR - Historical Wholesale'!D76 -> 0 | E77: ='15. RTSR - UTRs & Sub-Tx'!G65 -> 0 | F77: =D77*E77 -> 0 | H77: ='16. RTSR - Historical Wholesale'!H76 -> 0 | I77: ='15. RTSR - UTRs & Sub-Tx'!G67 -> 0 | J77: =H77*I77 -> 0 | L77: ='16. RTSR - Historical Wholesale'!L76 -> 0 | M77: ='15. RTSR - UTRs & Sub-Tx'!G69 -> 0 | N77: =L77*M77 -> 0 | P77: =J77+N77 -> 0
B78: February | D78: ='16. RTSR - Historical Wholesale'!D77 -> 0 | E78: =E77 -> 0 | F78: =D78*E78 -> 0 | H78: ='16. RTSR - Historical Wholesale'!H77 -> 0 | I78: =I77 -> 0 | J78: =H78*I78 -> 0 | L78: ='16. RTSR - Historical Wholesale'!L77 -> 0 | M78: =M77 -> 0 | N78: =L78*M78 -> 0 | P78: 0
B79: March | D79: ='16. RTSR - Historical Wholesale'!D78 -> 0 | E79: =E78 -> 0 | F79: 0 | H79: ='16. RTSR - Historical Wholesale'!H78 -> 0 | I79: =I78 -> 0 | J79: 0 | L79: ='16. RTSR - Historical Wholesale'!L78 -> 0 | M79: =M78 -> 0 | N79: 0 | P79: 0
B80: April | D80: ='16. RTSR - Historical Wholesale'!D79 -> 0 | E80: 0 | F80: 0 | H80: ='16. RTSR - Historical Wholesale'!H79 -> 0 | I80: 0 | J80: 0 | L80: ='16. RTSR - Historical Wholesale'!L79 -> 0 | M80: =M79 -> 0 | N80: 0 | P80: 0
B81: May | D81: ='16. RTSR - Historical Wholesale'!D80 -> 0 | E81: 0 | F81: 0 | H81: ='16. RTSR - Historical Wholesale'!H80 -> 0 | I81: 0 | J81: 0 | L81: ='16. RTSR - Historical Wholesale'!L80 -> 0 | M81: 0 | N81: 0 | P81: 0
B82: June | D82: ='16. RTSR - Historical Wholesale'!D81 -> 0 | E82: 0 | F82: 0 | H82: ='16. RTSR - Historical Wholesale'!H81 -> 0 | I82: 0 | J82: 0 | L82: ='16. RTSR - Historical Wholesale'!L81 -> 0 | M82: 0 | N82: 0 | P82: 0
B83: July | D83: ='16. RTSR - Historical Wholesale'!D82 -> 0 | E83: 0 | F83: 0 | H83: ='16. RTSR - Historical Wholesale'!H82 -> 0 | I83: 0 | J83: 0 | L83: ='16. RTSR - Historical Wholesale'!L82 -> 0 | M83: 0 | N83: 0 | P83: 0
B84: August | D84: ='16. RTSR - Historical Wholesale'!D83 -> 0 | E84: 0 | F84: 0 | H84: ='16. RTSR - Historical Wholesale'!H83 -> 0 | I84: 0 | J84: 0 | L84: ='16. RTSR - Historical Wholesale'!L83 -> 0 | M84: 0 | N84: 0 | P84: 0
B85: September | D85: ='16. RTSR - Historical Wholesale'!D84 -> 0 | E85: 0 | F85: 0 | H85: ='16. RTSR - Historical Wholesale'!H84 -> 0 | I85: 0 | J85: 0 | L85: ='16. RTSR - Historical Wholesale'!L84 -> 0 | M85: 0 | N85: 0 | P85: 0
B86: October | D86: ='16. RTSR - Historical Wholesale'!D85 -> 0 | E86: 0 | F86: 0 | H86: ='16. RTSR - Historical Wholesale'!H85 -> 0 | I86: 0 | J86: 0 | L86: ='16. RTSR - Historical Wholesale'!L85 -> 0 | M86: 0 | N86: 0 | P86: 0
B87: November | D87: ='16. RTSR - Historical Wholesale'!D86 -> 0 | E87: 0 | F87: 0 | H87: ='16. RTSR - Historical Wholesale'!H86 -> 0 | I87: 0 | J87: 0 | L87: ='16. RTSR - Historical Wholesale'!L86 -> 0 | M87: 0 | N87: 0 | P87: 0
B88: December | D88: ='16. RTSR - Historical Wholesale'!D87 -> 0 | E88: 0 | F88: 0 | H88: ='16. RTSR - Historical Wholesale'!H87 -> 0 | I88: 0 | J88: 0 | L88: ='16. RTSR - Historical Wholesale'!L87 -> 0 | M88: 0 | N88: 0 | P88: 0
B90: Total | D90: =SUM(D77:D88) -> 0 | E90: =IF(D90<>0,F90/D90,0) -> 0 | F90: =SUM(F77:F88) -> 0 | H90: =SUM(H77:H88) -> 0 | I90: =IF(H90<>0,J90/H90,0) -> 0 | J90: =SUM(J77:J88) -> 0 | L90: =SUM(L77:L88) -> 0 | M90: =IF(L90<>0,N90/L90,0) -> 0 | N90: =SUM(N77:N88) -> 0 | P90: =SUM(P77:P88) -> 0
B92: Total | D92: Network | H92: Line Connection | L92: Transformation Connection | P92: Total Line
B94: Month | D94: Units Billed | E94: Rate | F94: Amount | H94: Units Billed | I94: Rate | J94: Amount | L94: Units Billed | M94: Rate | N94: Amount | P94: Amount
B96: January | D96: =D20+D39+D58+D77 -> 16957 | E96: =IF(D96<>0,F96/D96,0) -> 3.3765 | F96: =F20+F39+F58+F77 -> 57255.3105 | H96: =H20+H39+H58+H77 -> 7362 | I96: =IF(H96<>0,J96/H96,0) -> 0.7167 | J96: =J20+J39+J58+J77 -> 5276.3454 | L96: =L20+L39+L58+L77 -> 16957 | M96: =IF(L96<>0,N96/L96,0) -> 1.62 | N96: =N20+N39+N58+N77 -> 27470.34 | P96: =J96+N96 -> 32746.6854
B97: February | D97: =D21+D40+D59+D78 -> 17616 | E97: 3.3765 | F97: =F21+F40+F59+F78 -> 59480.424 | H97: =H21+H40+H59+H78 -> 7554 | I97: 0.7167 | J97: =J21+J40+J59+J78 -> 5413.9518 | L97: =L21+L40+L59+L78 -> 17616 | M97: 1.62 | N97: =N21+N40+N59+N78 -> 28537.92 | P97: 33951.8718
B98: March | D98: 16910 | E98: 3.3765 | F98: 57096.615 | H98: 7446 | I98: 0.7167 | J98: 5336.5482 | L98: 16910 | M98: 1.62 | N98: 27394.2 | P98: 32730.7482
B99: April | D99: 16455 | E99: 3.3765 | F99: 55560.3075 | H99: 7315 | I99: 0.7167 | J99: 5242.6605 | L99: 16455 | M99: 1.62 | N99: 26657.1 | P99: 31899.7605
B100: May | D100: 15498.8 | E100: 3.3765 | F100: 52331.6982 | H100: 6986.63 | I100: 0.7167 | J100: 5007.317721 | L100: 15498.8 | M100: 1.62 | N100: 25108.056 | P100: 30115.37372
B101: June | D101: 15902.45 | E101: 3.3765 | F101: 53694.62243 | H101: 7034.93 | I101: 0.7167 | J101: 5041.934331 | L101: 15902.45 | M101: 1.62 | N101: 25761.969 | P101: 30803.90333
B102: July | D102: 16549.13 | E102: 3.3765 | F102: 55878.13744 | H102: 7166.08 | I102: 0.7167 | J102: 5135.929536 | L102: 16549.13 | M102: 1.62 | N102: 26809.5906 | P102: 31945.52014
B103: August | D103: 17541.64 | E103: 3.3765 | F103: 59229.34746 | H103: 7525.28 | I103: 0.7167 | J103: 5393.368176 | L103: 17541.64 | M103: 1.62 | N103: 28417.4568 | P103: 33810.82498
B104: September | D104: 16909.83 | E104: 3.3765 | F104: 57096.041 | H104: 7394.57 | I104: 0.7167 | J104: 5299.688319 | L104: 16909.83 | M104: 1.62 | N104: 27393.9246 | P104: 32693.61292
B105: October | D105: 15517.14 | E105: 3.3765 | F105: 52393.62321 | H105: 7107.02 | I105: 0.7167 | J105: 5093.601234 | L105: 15517.14 | M105: 1.62 | N105: 25137.7668 | P105: 30231.36803
B106: November | D106: 16413.99 | E106: 3.3765 | F106: 55421.83723 | H106: 7214.94 | I106: 0.7167 | J106: 5170.947498 | L106: 16413.99 | M106: 1.62 | N106: 26590.6638 | P106: 31761.6113
B107: December | D107: 17461.21 | E107: 3.3765 | F107: 58957.77556 | H107: 7585.16 | I107: 0.7167 | J107: 5436.284172 | L107: 17461.21 | M107: 1.62 | N107: 28287.1602 | P107: 33723.44437
B109: Total | D109: =SUM(D96:D107) -> 199732.19 | E109: =IF(D109<>0,F109/D109,0) -> 3.3765 | F109: =SUM(F96:F107) -> 674395.7395 | H109: =SUM(H96:H107) -> 87691.61 | I109: =IF(H109<>0,J109/H109,0) -> 0.7167 | J109: =SUM(J96:J107) -> 62848.57689 | L109: =SUM(L96:L107) -> 199732.19 | M109: =IF(L109<>0,N109/L109,0) -> 1.62 | N109: =SUM(N96:N107) -> 323566.1478 | P109: =SUM(P96:P107) -> 386414.7247
N111: Transformer Allowance Credit (if applicable) | P111: ='15. RTSR - UTRs & Sub-Tx'!G95 -> 0
N113: Total including deduction for Transformer Allowance Credit | P113: =P109+P111 -> 386414.7247

Sheet 18. RTSR - Forecast Wholesale
B13: The purpose of this sheet is to calculate the expected billing when forecasted 2015 Uniform Transmission Rates are applied against historical 2013 transmission units.
B16: IESO | D16: Network | H16: Line Connection | L16: Transformation Connection | P16: Total Line
B18: Month | D18: Units Billed | E18: Rate | F18: Amount | H18: Units Billed | I18: Rate | J18: Amount | L18: Units Billed | M18: Rate | N18: Amount | P18: Amount
B20: January | D20: ='16. RTSR - Historical Wholesale'!D19 -> 0 | E20: ='15. RTSR - UTRs & Sub-Tx'!I22 -> 3.82 | F20: =D20*E20 -> 0 | H20: ='16. RTSR - Historical Wholesale'!H19 -> 0 | I20: ='15. RTSR - UTRs & Sub-Tx'!I24 -> 0.82 | J20: =H20*I20 -> 0 | L20: ='16. RTSR - Historical Wholesale'!L19 -> 0 | M20: ='15. RTSR - UTRs & Sub-Tx'!I26 -> 1.98 | N20: =L20*M20 -> 0 | P20: =J20+N20 -> 0
B21: February | D21: ='16. RTSR - Historical Wholesale'!D20 -> 0 | E21: =E20 -> 3.82 | F21: 0 | H21: ='16. RTSR - Historical Wholesale'!H20 -> 0 | I21: =I20 -> 0.82 | J21: 0 | L21: ='16. RTSR - Historical Wholesale'!L20 -> 0 | M21: =M20 -> 1.98 | N21: 0 | P21: 0
B22: March | D22: ='16. RTSR - Historical Wholesale'!D21 -> 0 | E22: 3.82 | F22: 0 | H22: ='16. RTSR - Historical Wholesale'!H21 -> 0 | I22: 0.82 | J22: 0 | L22: ='16. RTSR - Historical Wholesale'!L21 -> 0 | M22: 1.98 | N22: 0 | P22: 0
B23: April | D23: ='16. RTSR - Historical Wholesale'!D22 -> 0 | E23: 3.82 | F23: 0 | H23: ='16. RTSR - Historical Wholesale'!H22 -> 0 | I23: 0.82 | J23: 0 | L23: ='16. RTSR - Historical Wholesale'!L22 -> 0 | M23: 1.98 | N23: 0 | P23: 0
B24: May | D24: ='16. RTSR - Historical Wholesale'!D23 -> 0 | E24: 3.82 | F24: 0 | H24: ='16. RTSR - Historical Wholesale'!H23 -> 0 | I24: 0.82 | J24: 0 | L24: ='16. RTSR - Historical Wholesale'!L23 -> 0 | M24: 1.98 | N24: 0 | P24: 0
B25: June | D25: ='16. RTSR - Historical Wholesale'!D24 -> 0 | E25: 3.82 | F25: 0 | H25: ='16. RTSR - Historical Wholesale'!H24 -> 0 | I25: 0.82 | J25: 0 | L25: ='16. RTSR - Historical Wholesale'!L24 -> 0 | M25: 1.98 | N25: 0 | P25: 0
B26: July | D26: ='16. RTSR - Historical Wholesale'!D25 -> 0 | E26: 3.82 | F26: 0 | H26: ='16. RTSR - Historical Wholesale'!H25 -> 0 | I26: 0.82 | J26: 0 | L26: ='16. RTSR - Historical Wholesale'!L25 -> 0 | M26: 1.98 | N26: 0 | P26: 0
B27: August | D27: ='16. RTSR - Historical Wholesale'!D26 -> 0 | E27: 3.82 | F27: 0 | H27: ='16. RTSR - Historical Wholesale'!H26 -> 0 | I27: 0.82 | J27: 0 | L27: ='16. RTSR - Historical Wholesale'!L26 -> 0 | M27: 1.98 | N27: 0 | P27: 0
B28: September | D28: ='16. RTSR - Historical Wholesale'!D27 -> 0 | E28: 3.82 | F28: 0 | H28: ='16. RTSR - Historical Wholesale'!H27 -> 0 | I28: 0.82 | J28: 0 | L28: ='16. RTSR - Historical Wholesale'!L27 -> 0 | M28: 1.98 | N28: 0 | P28: 0
B29: October | D29: ='16. RTSR - Historical Wholesale'!D28 -> 0 | E29: 3.82 | F29: 0 | H29: ='16. RTSR - Historical Wholesale'!H28 -> 0 | I29: 0.82 | J29: 0 | L29: ='16. RTSR - Historical Wholesale'!L28 -> 0 | M29: 1.98 | N29: 0 | P29: 0
B30: November | D30: ='16. RTSR - Historical Wholesale'!D29 -> 0 | E30: 3.82 | F30: 0 | H30: ='16. RTSR - Historical Wholesale'!H29 -> 0 | I30: 0.82 | J30: 0 | L30: ='16. RTSR - Historical Wholesale'!L29 -> 0 | M30: 1.98 | N30: 0 | P30: 0
B31: December | D31: ='16. RTSR - Historical Wholesale'!D30 -> 0 | E31: 3.82 | F31: 0 | H31: ='16. RTSR - Historical Wholesale'!H30 -> 0 | I31: 0.82 | J31: 0 | L31: ='16. RTSR - Historical Wholesale'!L30 -> 0 | M31: 1.98 | N31: 0 | P31: 0
B33: Total | D33: =SUM(D20:D31) -> 0 | E33: =IF(D33<>0,F33/D33,0) -> 0 | F33: =SUM(F20:F31) -> 0 | H33: =SUM(H20:H31) -> 0 | I33: =IF(H33<>0,J33/H33,0) -> 0 | J33: =SUM(J20:J31) -> 0 | L33: =SUM(L20:L31) -> 0 | M33: =IF(L33<>0,N33/L33,0) -> 0 | N33: =SUM(N20:N31) -> 0 | P33: =SUM(P20:P31) -> 0
B35: Hydro One | D35: Network | H35: Line Connection | L35: Transformation Connection | P35: Total Line
B37: Month | D37: Units Billed | E37: Rate | F37: Amount | H37: Units Billed | I37: Rate | J37: Amount | L37: Units Billed | M37: Rate | N37: Amount | P37: Amount
B39: January | D39: ='16. RTSR - Historical Wholesale'!D38 -> 16957 | E39: ='15. RTSR - UTRs & Sub-Tx'!I35+'15. RTSR - UTRs & Sub-Tx'!I79 -> 3.3765 | F39: =D39*E39 -> 57255.3105 | H39: ='16. RTSR - Historical Wholesale'!H38 -> 7362 | I39: ='15. RTSR - UTRs & Sub-Tx'!I37+'15. RTSR - UTRs & Sub-Tx'!I81 -> 0.7167 | J39: =H39*I39 -> 5276.3454 | L39: ='16. RTSR - Historical Wholesale'!L38 -> 16957 | M39: ='15. RTSR - UTRs & Sub-Tx'!I39 -> 1.62 | N39: =L39*M39 -> 27470.34 | P39: =J39+N39 -> 32746.6854
B40: February | D40: ='16. RTSR - Historical Wholesale'!D39 -> 17616 | E40: =E39 -> 3.3765 | F40: 59480.424 | H40: ='16. RTSR - Historical Wholesale'!H39 -> 7554 | I40: =I39 -> 0.7167 | J40: 5413.9518 | L40: ='16. RTSR - Historical Wholesale'!L39 -> 17616 | M40: =M39 -> 1.62 | N40: 28537.92 | P40: 33951.8718
B41: March | D41: ='16. RTSR - Historical Wholesale'!D40 -> 16910 | E41: 3.3765 | F41: 57096.615 | H41: ='16. RTSR - Historical Wholesale'!H40 -> 7446 | I41: 0.7167 | J41: 5336.5482 | L41: ='16. RTSR - Historical Wholesale'!L40 -> 16910 | M41: 1.62 | N41: 27394.2 | P41: 32730.7482
B42: April | D42: ='16. RTSR - Historical Wholesale'!D41 -> 16455 | E42: 3.3765 | F42: 55560.3075 | H42: ='16. RTSR - Historical Wholesale'!H41 -> 7315 | I42: 0.7167 | J42: 5242.6605 | L42: ='16. RTSR - Historical Wholesale'!L41 -> 16455 | M42: 1.62 | N42: 26657.1 | P42: 31899.7605
B43: May | D43: ='16. RTSR - Historical Wholesale'!D42 -> 15498.8 | E43: 3.3765 | F43: 52331.6982 | H43: ='16. RTSR - Historical Wholesale'!H42 -> 6986.63 | I43: 0.7167 | J43: 5007.317721 | L43: ='16. RTSR - Historical Wholesale'!L42 -> 15498.8 | M43: 1.62 | N43: 25108.056 | P43: 30115.37372
B44: June | D44: ='16. RTSR - Historical Wholesale'!D43 -> 15902.45 | E44: 3.3765 | F44: 53694.62243 | H44: ='16. RTSR - Historical Wholesale'!H43 -> 7034.93 | I44: 0.7167 | J44: 5041.934331 | L44: ='16. RTSR - Historical Wholesale'!L43 -> 15902.45 | M44: 1.62 | N44: 25761.969 | P44: 30803.90333
B45: July | D45: ='16. RTSR - Historical Wholesale'!D44 -> 16549.13 | E45: 3.3765 | F45: 55878.13744 | H45: ='16. RTSR - Historical Wholesale'!H44 -> 7166.08 | I45: 0.7167 | J45: 5135.929536 | L45: ='16. RTSR - Historical Wholesale'!L44 -> 16549.13 | M45: 1.62 | N45: 26809.5906 | P45: 31945.52014
B46: August | D46: ='16. RTSR - Historical Wholesale'!D45 -> 17541.64 | E46: 3.3765 | F46: 59229.34746 | H46: ='16. RTSR - Historical Wholesale'!H45 -> 7525.28 | I46: 0.7167 | J46: 5393.368176 | L46: ='16. RTSR - Historical Wholesale'!L45 -> 17541.64 | M46: 1.62 | N46: 28417.4568 | P46: 33810.82498
B47: September | D47: ='16. RTSR - Historical Wholesale'!D46 -> 16909.83 | E47: 3.3765 | F47: 57096.041 | H47: ='16. RTSR - Historical Wholesale'!H46 -> 7394.57 | I47: 0.7167 | J47: 5299.688319 | L47: ='16. RTSR - Historical Wholesale'!L46 -> 16909.83 | M47: 1.62 | N47: 27393.9246 | P47: 32693.61292
B48: October | D48: ='16. RTSR - Historical Wholesale'!D47 -> 15517.14 | E48: 3.3765 | F48: 52393.62321 | H48: ='16. RTSR - Historical Wholesale'!H47 -> 7107.02 | I48: 0.7167 | J48: 5093.601234 | L48: ='16. RTSR - Historical Wholesale'!L47 -> 15517.14 | M48: 1.62 | N48: 25137.7668 | P48: 30231.36803
B49: November | D49: ='16. RTSR - Historical Wholesale'!D48 -> 16413.99 | E49: 3.3765 | F49: 55421.83723 | H49: ='16. RTSR - Historical Wholesale'!H48 -> 7214.94 | I49: 0.7167 | J49: 5170.947498 | L49: ='16. RTSR - Historical Wholesale'!L48 -> 16413.99 | M49: 1.62 | N49: 26590.6638 | P49: 31761.6113
B50: December | D50: ='16. RTSR - Historical Wholesale'!D49 -> 17461.21 | E50: 3.3765 | F50: 58957.77556 | H50: ='16. RTSR - Historical Wholesale'!H49 -> 7585.16 | I50: 0.7167 | J50: 5436.284172 | L50: ='16. RTSR - Historical Wholesale'!L49 -> 17461.21 | M50: 1.62 | N50: 28287.1602 | P50: 33723.44437
B52: Total | D52: =SUM(D39:D50) -> 199732.19 | E52: =IF(D52<>0,F52/D52,0) -> 3.3765 | F52: =SUM(F39:F50) -> 674395.7395 | H52: =SUM(H39:H50) -> 87691.61 | I52: =IF(H52<>0,J52/H52,0) -> 0.7167 | J52: =SUM(J39:J50) -> 62848.57689 | L52: =SUM(L39:L50) -> 199732.19 | M52: =IF(L52<>0,N52/L52,0) -> 1.62 | N52: =SUM(N39:N50) -> 323566.1478 | P52: =SUM(P39:P50) -> 386414.7247
B54: ='16. RTSR - Historical Wholesale'!B53 -> Add Extra Host Here (I) | D54: Network | H54: Line Connection | L54: Transformation Connection | P54: Total Line
B56: Month | D56: Units Billed | E56: Rate | F56: Amount | H56: Units Billed | I56: Rate | J56: Amount | L56: Units Billed | M56: Rate | N56: Amount | P56: Amount
B58: January | D58: ='16. RTSR - Historical Wholesale'!D57 -> 0 | E58: ='15. RTSR - UTRs & Sub-Tx'!I50 -> 0 | F58: =D58*E58 -> 0 | H58: ='16. RTSR - Historical Wholesale'!H57 -> 0 | I58: ='15. RTSR - UTRs & Sub-Tx'!I52 -> 0 | J58: =H58*I58 -> 0 | L58: ='16. RTSR - Historical Wholesale'!L57 -> 0 | M58: ='15. RTSR - UTRs & Sub-Tx'!I54 -> 0 | N58: =L58*M58 -> 0 | P58: =J58+N58 -> 0
B59: February | D59: ='16. RTSR - Historical Wholesale'!D58 -> 0 | E59: =E58 -> 0 | F59: 0 | H59: ='16. RTSR - Historical Wholesale'!H58 -> 0 | I59: =I58 -> 0 | J59: 0 | L59: ='16. RTSR - Historical Wholesale'!L58 -> 0 | M59: =M58 -> 0 | N59: 0 | P59: 0
B60: March | D60: ='16. RTSR - Historical Wholesale'!D59 -> 0 | E60: 0 | F60: 0 | H60: ='16. RTSR - Historical Wholesale'!H59 -> 0 | I60: 0 | J60: 0 | L60: ='16. RTSR - Historical Wholesale'!L59 -> 0 | M60: 0 | N60: 0 | P60: 0
B61: April | D61: ='16. RTSR - Historical Wholesale'!D60 -> 0 | E61: 0 | F61: 0 | H61: ='16. RTSR - Historical Wholesale'!H60 -> 0 | I61: 0 | J61: 0 | L61: ='16. RTSR - Historical Wholesale'!L60 -> 0 | M61: 0 | N61: 0 | P61: 0
B62: May | D62: ='16. RTSR - Historical Wholesale'!D61 -> 0 | E62: 0 | F62: 0 | H62: ='16. RTSR - Historical Wholesale'!H61 -> 0 | I62: 0 | J62: 0 | L62: ='16. RTSR - Historical Wholesale'!L61 -> 0 | M62: 0 | N62: 0 | P62: 0
B63: June | D63: ='16. RTSR - Historical Wholesale'!D62 -> 0 | E63: 0 | F63: 0 | H63: ='16. RTSR - Historical Wholesale'!H62 -> 0 | I63: 0 | J63: 0 | L63: ='16. RTSR - Historical Wholesale'!L62 -> 0 | M63: 0 | N63: 0 | P63: 0
B64: July | D64: ='16. RTSR - Historical Wholesale'!D63 -> 0 | E64: 0 | F64: 0 | H64: ='16. RTSR - Historical Wholesale'!H63 -> 0 | I64: 0 | J64: 0 | L64: ='16. RTSR - Historical Wholesale'!L63 -> 0 | M64: 0 | N64: 0 | P64: 0
B65: August | D65: ='16. RTSR - Historical Wholesale'!D64 -> 0 | E65: 0 | F65: 0 | H65: ='16. RTSR - Historical Wholesale'!H64 -> 0 | I65: 0 | J65: 0 | L65: ='16. RTSR - Historical Wholesale'!L64 -> 0 | M65: 0 | N65: 0 | P65: 0
B66: September | D66: ='16. RTSR - Historical Wholesale'!D65 -> 0 | E66: 0 | F66: 0 | H66: ='16. RTSR - Historical Wholesale'!H65 -> 0 | I66: 0 | J66: 0 | L66: ='16. RTSR - Historical Wholesale'!L65 -> 0 | M66: 0 | N66: 0 | P66: 0
B67: October | D67: ='16. RTSR - Historical Wholesale'!D66 -> 0 | E67: 0 | F67: 0 | H67: ='16. RTSR - Historical Wholesale'!H66 -> 0 | I67: 0 | J67: 0 | L67: ='16. RTSR - Historical Wholesale'!L66 -> 0 | M67: 0 | N67: 0 | P67: 0
B68: November | D68: ='16. RTSR - Historical Wholesale'!D67 -> 0 | E68: 0 | F68: 0 | H68: ='16. RTSR - Historical Wholesale'!H67 -> 0 | I68: 0 | J68: 0 | L68: ='16. RTSR - Historical Wholesale'!L67 -> 0 | M68: 0 | N68: 0 | P68: 0
B69: December | D69: ='16. RTSR - Historical Wholesale'!D68 -> 0 | E69: 0 | F69: 0 | H69: ='16. RTSR - Historical Wholesale'!H68 -> 0 | I69: 0 | J69: 0 | L69: ='16. RTSR - Historical Wholesale'!L68 -> 0 | M69: 0 | N69: 0 | P69: 0
B71: Total | D71: =SUM(D58:D69) -> 0 | E71: =IF(D71<>0,F71/D71,0) -> 0 | F71: =SUM(F58:F69) -> 0 | H71: =SUM(H58:H69) -> 0 | I71: =IF(H71<>0,J71/H71,0) -> 0 | J71: =SUM(J58:J69) -> 0 | L71: =SUM(L58:L69) -> 0 | M71: =IF(L71<>0,N71/L71,0) -> 0 | N71: =SUM(N58:N69) -> 0 | P71: =SUM(P58:P69) -> 0
B73: ='16. RTSR - Historical Wholesale'!B72 -> Add Extra Host Here (II) | D73: Network | H73: Line Connection | L73: Transformation Connection | P73: Total Line
B75: Month | D75: Units Billed | E75: Rate | F75: Amount | H75: Units Billed | I75: Rate | J75: Amount | L75: Units Billed | M75: Rate | N75: Amount | P75: Amount
B77: January | D77: ='16. RTSR - Historical Wholesale'!D76 -> 0 | E77: ='15. RTSR - UTRs & Sub-Tx'!I65 -> 0 | F77: =D77*E77 -> 0 | H77: ='16. RTSR - Historical Wholesale'!H76 -> 0 | I77: ='15. RTSR - UTRs & Sub-Tx'!I67 -> 0 | J77: =H77*I77 -> 0 | L77: ='16. RTSR - Historical Wholesale'!L76 -> 0 | M77: ='15. RTSR - UTRs & Sub-Tx'!I69 -> 0 | N77: =L77*M77 -> 0 | P77: =J77+N77 -> 0
B78: February | D78: ='16. RTSR - Historical Wholesale'!D77 -> 0 | E78: =E77 -> 0 | F78: 0 | H78: ='16. RTSR - Historical Wholesale'!H77 -> 0 | I78: =I77 -> 0 | J78: 0 | L78: ='16. RTSR - Historical Wholesale'!L77 -> 0 | M78: =M77 -> 0 | N78: 0 | P78: 0
B79: March | D79: ='16. RTSR - Historical Wholesale'!D78 -> 0 | E79: 0 | F79: 0 | H79: ='16. RTSR - Historical Wholesale'!H78 -> 0 | I79: 0 | J79: 0 | L79: ='16. RTSR - Historical Wholesale'!L78 -> 0 | M79: 0 | N79: 0 | P79: 0
B80: April | D80: ='16. RTSR - Historical Wholesale'!D79 -> 0 | E80: 0 | F80: 0 | H80: ='16. RTSR - Historical Wholesale'!H79 -> 0 | I80: 0 | J80: 0 | L80: ='16. RTSR - Historical Wholesale'!L79 -> 0 | M80: 0 | N80: 0 | P80: 0
B81: May | D81: ='16. RTSR - Historical Wholesale'!D80 -> 0 | E81: 0 | F81: 0 | H81: ='16. RTSR - Historical Wholesale'!H80 -> 0 | I81: 0 | J81: 0 | L81: ='16. RTSR - Historical Wholesale'!L80 -> 0 | M81: 0 | N81: 0 | P81: 0
B82: June | D82: ='16. RTSR - Historical Wholesale'!D81 -> 0 | E82: 0 | F82: 0 | H82: ='16. RTSR - Historical Wholesale'!H81 -> 0 | I82: 0 | J82: 0 | L82: ='16. RTSR - Historical Wholesale'!L81 -> 0 | M82: 0 | N82: 0 | P82: 0
B83: July | D83: ='16. RTSR - Historical Wholesale'!D82 -> 0 | E83: 0 | F83: 0 | H83: ='16. RTSR - Historical Wholesale'!H82 -> 0 | I83: 0 | J83: 0 | L83: ='16. RTSR - Historical Wholesale'!L82 -> 0 | M83: 0 | N83: 0 | P83: 0
B84: August | D84: ='16. RTSR - Historical Wholesale'!D83 -> 0 | E84: 0 | F84: 0 | H84: ='16. RTSR - Historical Wholesale'!H83 -> 0 | I84: 0 | J84: 0 | L84: ='16. RTSR - Historical Wholesale'!L83 -> 0 | M84: 0 | N84: 0 | P84: 0
B85: September | D85: ='16. RTSR - Historical Wholesale'!D84 -> 0 | E85: 0 | F85: 0 | H85: ='16. RTSR - Historical Wholesale'!H84 -> 0 | I85: 0 | J85: 0 | L85: ='16. RTSR - Historical Wholesale'!L84 -> 0 | M85: 0 | N85: 0 | P85: 0
B86: October | D86: ='16. RTSR - Historical Wholesale'!D85 -> 0 | E86: 0 | F86: 0 | H86: ='16. RTSR - Historical Wholesale'!H85 -> 0 | I86: 0 | J86: 0 | L86: ='16. RTSR - Historical Wholesale'!L85 -> 0 | M86: 0 | N86: 0 | P86: 0
B87: November | D87: ='16. RTSR - Historical Wholesale'!D86 -> 0 | E87: 0 | F87: 0 | H87: ='16. RTSR - Historical Wholesale'!H86 -> 0 | I87: 0 | J87: 0 | L87: ='16. RTSR - Historical Wholesale'!L86 -> 0 | M87: 0 | N87: 0 | P87: 0
B88: December | D88: ='16. RTSR - Historical Wholesale'!D87 -> 0 | E88: 0 | F88: 0 | H88: ='16. RTSR - Historical Wholesale'!H87 -> 0 | I88: 0 | J88: 0 | L88: ='16. RTSR - Historical Wholesale'!L87 -> 0 | M88: 0 | N88: 0 | P88: 0
B90: Total | D90: =SUM(D77:D88) -> 0 | E90: =IF(D90<>0,F90/D90,0) -> 0 | F90: =SUM(F77:F88) -> 0 | H90: =SUM(H77:H88) -> 0 | I90: =IF(H90<>0,J90/H90,0) -> 0 | J90: =SUM(J77:J88) -> 0 | L90: =SUM(L77:L88) -> 0 | M90: =IF(L90<>0,N90/L90,0) -> 0 | N90: =SUM(N77:N88) -> 0 | P90: =SUM(P77:P88) -> 0
B92: Total | D92: Network | H92: Line Connection | L92: Transformation Connection | P92: Total Line
B94: Month | D94: Units Billed | E94: Rate | F94: Amount | H94: Units Billed | I94: Rate | J94: Amount | L94: Units Billed | M94: Rate | N94: Amount | P94: Amount
B96: January | D96: =D20+D39 -> 16957 | E96: =IF(D96<>0,F96/D96,0) -> 3.3765 | F96: =F20+F39 -> 57255.3105 | H96: =H20+H39 -> 7362 | I96: =IF(H96<>0,J96/H96,0) -> 0.7167 | J96: =J20+J39 -> 5276.3454 | L96: =L20+L39 -> 16957 | M96: =IF(L96<>0,N96/L96,0) -> 1.62 | N96: =N20+N39 -> 27470.34 | P96: =J96+N96 -> 32746.6854
B97: February | D97: 17616 | E97: 3.3765 | F97: 59480.424 | H97: 7554 | I97: 0.7167 | J97: 5413.9518 | L97: 17616 | M97: 1.62 | N97: 28537.92 | P97: 33951.8718
B98: March | D98: 16910 | E98: 3.3765 | F98: 57096.615 | H98: 7446 | I98: 0.7167 | J98: 5336.5482 | L98: 16910 | M98: 1.62 | N98: 27394.2 | P98: 32730.7482
B99: April | D99: 16455 | E99: 3.3765 | F99: 55560.3075 | H99: 7315 | I99: 0.7167 | J99: 5242.6605 | L99: 16455 | M99: 1.62 | N99: 26657.1 | P99: 31899.7605
B100: May | D100: 15498.8 | E100: 3.3765 | F100: 52331.6982 | H100: 6986.63 | I100: 0.7167 | J100: 5007.317721 | L100: 15498.8 | M100: 1.62 | N100: 25108.056 | P100: 30115.37372
B101: June | D101: 15902.45 | E101: 3.3765 | F101: 53694.62243 | H101: 7034.93 | I101: 0.7167 | J101: 5041.934331 | L101: 15902.45 | M101: 1.62 | N101: 25761.969 | P101: 30803.90333
B102: July | D102: 16549.13 | E102: 3.3765 | F102: 55878.13744 | H102: 7166.08 | I102: 0.7167 | J102: 5135.929536 | L102: 16549.13 | M102: 1.62 | N102: 26809.5906 | P102: 31945.52014
B103: August | D103: 17541.64 | E103: 3.3765 | F103: 59229.34746 | H103: 7525.28 | I103: 0.7167 | J103: 5393.368176 | L103: 17541.64 | M103: 1.62 | N103: 28417.4568 | P103: 33810.82498
B104: September | D104: 16909.83 | E104: 3.3765 | F104: 57096.041 | H104: 7394.57 | I104: 0.7167 | J104: 5299.688319 | L104: 16909.83 | M104: 1.62 | N104: 27393.9246 | P104: 32693.61292
B105: October | D105: 15517.14 | E105: 3.3765 | F105: 52393.62321 | H105: 7107.02 | I105: 0.7167 | J105: 5093.601234 | L105: 15517.14 | M105: 1.62 | N105: 25137.7668 | P105: 30231.36803
B106: November | D106: 16413.99 | E106: 3.3765 | F106: 55421.83723 | H106: 7214.94 | I106: 0.7167 | J106: 5170.947498 | L106: 16413.99 | M106: 1.62 | N106: 26590.6638 | P106: 31761.6113
B107: December | D107: 17461.21 | E107: 3.3765 | F107: 58957.77556 | H107: 7585.16 | I107: 0.7167 | J107: 5436.284172 | L107: 17461.21 | M107: 1.62 | N107: 28287.1602 | P107: 33723.44437
B109: Total | D109: =SUM(D96:D107) -> 199732.19 | E109: =IF(D109<>0,F109/D109,0) -> 3.3765 | F109: =SUM(F96:F107) -> 674395.7395 | H109: =SUM(H96:H107) -> 87691.61 | I109: =IF(H109<>0,J109/H109,0) -> 0.7167 | J109: =SUM(J96:J107) -> 62848.57689 | L109: =SUM(L96:L107) -> 199732.19 | M109: =IF(L109<>0,N109/L109,0) -> 1.62 | N109: =SUM(N96:N107) -> 323566.1478 | P109: =SUM(P96:P107) -> 386414.7247
N111: Transformer Allowance Credit (if applicable) | P111: ='15. RTSR - UTRs & Sub-Tx'!I95 -> 0
N113: Total including deduction for Transformer Allowance Credit | P113: =P109+P111 -> 386414.7247

Sheet 19. RTSR Ntwrk to Curren WS
A13: The purpose of this sheet is to re-align the current RTS Network Rates to recover current wholesale network costs.
A16: Rate Class | B16: Rate Description | C16: Unit | E16: Current RTSR-Network | G16: Loss Adjusted Billed kWh | I16: Loss Adjusted Billed kW | K16: Billed Amount | M16: Billed Amount % | O16: Current Wholesale Billing | Q16: Proposed RTSR Network
A19: RESIDENTIAL | B19: Retail Transmission Rate - Network Service Rate | C19: $/kWh | E19: 0.0066 | G19: 27173455.7 | I19: 0 | K19: =IF(E19="", "", IF(C19="$/kWh", E19*G19, E19*I19)) -> 179344.8076 | M19: =IF(ISERROR(K19/SUM(K19:K100)),"",K19/SUM(K19:K100)) -> 0.2809447269 | O19: =IF(ISERROR('17. RTSR - Current Wholesale'!$F$109*M19), "", '17. RTSR - Current Wholesale'!$F$109*M19) -> 189467.9269 | Q19: =IF(C19="","",IF(C19="$/kWh",IF(G19<>0,O19/G19,),IF(I19<>0,O19/I19,0))) -> 0.00697253706
A20: GENERAL SERVICE LESS THAN 50 KW | B20: Retail Transmission Rate - Network Service Rate | C20: $/kWh | E20: 0.0061 | G20: 12873008.77 | I20: 0 | K20: =IF(E20="", "", IF(C20="$/kWh", E20*G20, E20*I20)) -> 78525.35347 | M20: =IF(ISERROR(K20/SUM(K19:K100)),"",K20/SUM(K19:K100)) -> 0.1230104416 | O20: =IF(ISERROR('17. RTSR - Current Wholesale'!$F$109*M20), "", '17. RTSR - Current Wholesale'!$F$109*M20) -> 82957.71776 | Q20: =IF(C20="","",IF(C20="$/kWh",IF(G20<>0,O20/G20,),IF(I20<>0,O20/I20,0))) -> 0.006444314555
A21: GENERAL SERVICE 50 TO 999 KW | B21: Retail Transmission Rate - Network Service Rate | C21: $/kW | E21: 2.5128 | G21: 0 | I21: 48188.26 | K21: =IF(E21="", "", IF(C21="$/kWh", E21*G21, E21*I21)) -> 121087.4597 | M21: =IF(ISERROR(K21/SUM(K19:K100)),"",K21/SUM(K19:K100)) -> 0.1896842388 | O21: =IF(ISERROR('17. RTSR - Current Wholesale'!$F$109*M21), "", '17. RTSR - Current Wholesale'!$F$109*M21) -> 127922.2425 | Q21: =IF(C21="","",IF(C21="$/kWh",IF(G21<>0,O21/G21,),IF(I21<>0,O21/I21,0))) -> 2.654635019
A22: GENERAL SERVICE 1,000 TO 4,999 KW | B22: Retail Transmission Rate - Network Service Rate | C22: $/kW | E22: 2.669 | G22: 0 | I22: 95833.64 | K22: =IF(E22="", "", IF(C22="$/kWh", E22*G22, E22*I22)) -> 255779.9852 | M22: =IF(ISERROR(K22/SUM(K19:K100)),"",K22/SUM(K19:K100)) -> 0.4006808954 | O22: =IF(ISERROR('17. RTSR - Current Wholesale'!$F$109*M22), "", '17. RTSR - Current Wholesale'!$F$109*M22) -> 270217.4887 | Q22: =IF(C22="","",IF(C22="$/kWh",IF(G22<>0,O22/G22,),IF(I22<>0,O22/I22,0))) -> 2.819651729
A23: UNMETERED SCATTERED LOAD | B23: Retail Transmission Rate - Network Service Rate | C23: $/kWh | E23: 0.0061 | G23: 6143.4828 | I23: 0 | K23: =IF(E23="", "", IF(C23="$/kWh", E23*G23, E23*I23)) -> 37.47524508 | M23: =IF(ISERROR(K23/SUM(K19:K100)),"",K23/SUM(K19:K100)) -> 5.870519831e-05 | O23: =IF(ISERROR('17. RTSR - Current Wholesale'!$F$109*M23), "", '17. RTSR - Current Wholesale'!$F$109*M23) -> 39.59053563 | Q23: =IF(C23="","",IF(C23="$/kWh",IF(G23<>0,O23/G23,),IF(I23<>0,O23/I23,0))) -> 0.006444314555
A24: SENTINEL LIGHTING | B24: Retail Transmission Rate - Network Service Rate | C24: $/kW | E24: 1.9046 | G24: 0 | I24: 78.52 | K24: =IF(E24="", "", IF(C24="$/kWh", E24*G24, E24*I24)) -> 149.549192 | M24: =IF(ISERROR(K24/SUM(K19:K100)),"",K24/SUM(K19:K100)) -> 0.0002342697147 | O24: =IF(ISERROR('17. RTSR - Current Wholesale'!$F$109*M24), "", '17. RTSR - Current Wholesale'!$F$109*M24) -> 157.9904975 | Q24: =IF(C24="","",IF(C24="$/kWh",IF(G24<>0,O24/G24,),IF(I24<>0,O24/I24,0))) -> 2.012105164
A25: STREET LIGHTING | B25: Retail Transmission Rate - Network Service Rate | C25: $/kW | E25: 1.895 | G25: 0 | I25: 1814.61 | K25: =IF(E25="", "", IF(C25="$/kWh", E25*G25, E25*I25)) -> 3438.68595 | M25: =IF(ISERROR(K25/SUM(K19:K100)),"",K25/SUM(K19:K100)) -> 0.00538672236 | O25: =IF(ISERROR('17. RTSR - Current Wholesale'!$F$109*M25), "", '17. RTSR - Current Wholesale'!$F$109*M25) -> 3632.78261 | Q25: =IF(C25="","",IF(C25="$/kWh",IF(G25<>0,O25/G25,),IF(I25<>0,O25/I25,0))) -> 2.001963292

Sheet 20. RTSR Adj Conn to Current WS
A13: The purpose of this sheet is to re-align the current RTS Connection Rates to recover current wholesale connection costs.
A16: Rate Class | B16: Rate Description | C16: Unit | E16: Current RTSR-Connection | G16: Loss Adjusted Billed kWh | I16: Loss Adjusted Billed kW | K16: Billed Amount | M16: Billed Amount % | O16: Current Wholesale Billing | Q16: Proposed RTSR Connection
A19: RESIDENTIAL | B19: Retail Transmission Rate - Line and Transformation Connection Service Rate | C19: $/kWh | E19: 0.0041 | G19: 27173455.7 | I19: 0 | K19: =IF(E19="", "", IF(C19="$/kWh", E19*G19, E19*I19)) -> 111411.1684 | M19: =IF(ISERROR(K19/SUM(K19:K100)),"",K19/SUM(K19:K100)) -> 0.3031861042 | O19: =IF(ISERROR('17. RTSR - Current Wholesale'!$P$113*M19), "", '17. RTSR - Current Wholesale'!$P$113*M19) -> 117155.575 | Q19: =IF(C19="","",IF(C19="$/kWh",IF(G19<>0,O19/G19,),IF(I19<>0,O19/I19,0))) -> 0.004311397721
A20: GENERAL SERVICE LESS THAN 50 KW | B20: Retail Transmission Rate - Line and Transformation Connection Service Rate | C20: $/kWh | E20: 0.0034 | G20: 12873008.77 | I20: 0 | K20: =IF(E20="", "", IF(C20="$/kWh", E20*G20, E20*I20)) -> 43768.22981 | M20: =IF(ISERROR(K20/SUM(K19:K100)),"",K20/SUM(K19:K100)) -> 0.1191076198 | O20: =IF(ISERROR('17. RTSR - Current Wholesale'!$P$113*M20), "", '17. RTSR - Current Wholesale'!$P$113*M20) -> 46024.93811 | Q20: =IF(C20="","",IF(C20="$/kWh",IF(G20<>0,O20/G20,),IF(I20<>0,O20/I20,0))) -> 0.003575305427
A21: GENERAL SERVICE 50 TO 999 KW | B21: Retail Transmission Rate - Line and Transformation Connection Service Rate | C21: $/kW | E21: 1.372 | G21: 0 | I21: 48188.26 | K21: =IF(E21="", "", IF(C21="$/kWh", E21*G21, E21*I21)) -> 66114.29272 | M21: =IF(ISERROR(K21/SUM(K19:K100)),"",K21/SUM(K19:K100)) -> 0.1799185408 | O21: =IF(ISERROR('17. RTSR - Current Wholesale'!$P$113*M21), "", '17. RTSR - Current Wholesale'!$P$113*M21) -> 69523.17341 | Q21: =IF(C21="","",IF(C21="$/kWh",IF(G21<>0,O21/G21,),IF(I21<>0,O21/I21,0))) -> 1.442740896
A22: GENERAL SERVICE 1,000 TO 4,999 KW | B22: Retail Transmission Rate - Line and Transformation Connection Service Rate | C22: $/kW | E22: 1.5041 | G22: 0 | I22: 95833.64 | K22: =IF(E22="", "", IF(C22="$/kWh", E22*G22, E22*I22)) -> 144143.3779 | M22: =IF(ISERROR(K22/SUM(K19:K100)),"",K22/SUM(K19:K100)) -> 0.3922611156 | O22: =IF(ISERROR('17. RTSR - Current Wholesale'!$P$113*M22), "", '17. RTSR - Current Wholesale'!$P$113*M22) -> 151575.471 | Q22: =IF(C22="","",IF(C22="$/kWh",IF(G22<>0,O22/G22,),IF(I22<>0,O22/I22,0))) -> 1.581652027
A23: UNMETERED SCATTERED LOAD | B23: Retail Transmission Rate - Line and Transformation Connection Service Rate | C23: $/kWh | E23: 0.0034 | G23: 6143.4828 | I23: 0 | K23: =IF(E23="", "", IF(C23="$/kWh", E23*G23, E23*I23)) -> 20.88784152 | M23: =IF(ISERROR(K23/SUM(K19:K100)),"",K23/SUM(K19:K100)) -> 5.684262528e-05 | O23: =IF(ISERROR('17. RTSR - Current Wholesale'!$P$113*M23), "", '17. RTSR - Current Wholesale'!$P$113*M23) -> 21.9648274 | Q23: =IF(C23="","",IF(C23="$/kWh",IF(G23<>0,O23/G23,),IF(I23<>0,O23/I23,0))) -> 0.003575305427
A24: SENTINEL LIGHTING | B24: Retail Transmission Rate - Line and Transformation Connection Service Rate | C24: $/kW | E24: 1.0829 | G24: 0 | I24: 78.52 | K24: =IF(E24="", "", IF(C24="$/kWh", E24*G24, E24*I24)) -> 85.029308 | M24: =IF(ISERROR(K24/SUM(K19:K100)),"",K24/SUM(K19:K100)) -> 0.0002313924628 | O24: =IF(ISERROR('17. RTSR - Current Wholesale'!$P$113*M24), "", '17. RTSR - Current Wholesale'!$P$113*M24) -> 89.41345482 | Q24: =IF(C24="","",IF(C24="$/kWh",IF(G24<>0,O24/G24,),IF(I24<>0,O24/I24,0))) -> 1.138734779
A25: STREET LIGHTING | B25: Retail Transmission Rate - Line and Transformation Connection Service Rate | C25: $/kW | E25: 1.0608 | G25: 0 | I25: 1814.61 | K25: =IF(E25="", "", IF(C25="$/kWh", E25*G25, E25*I25)) -> 1924.938288 | M25: =IF(ISERROR(K25/SUM(K19:K100)),"",K25/SUM(K19:K100)) -> 0.005238384526 | O25: =IF(ISERROR('17. RTSR - Current Wholesale'!$P$113*M25), "", '17. RTSR - Current Wholesale'!$P$113*M25) -> 2024.188914 | Q25: =IF(C25="","",IF(C25="$/kWh",IF(G25<>0,O25/G25,),IF(I25<>0,O25/I25,0))) -> 1.115495293

Sheet 21. RTSR Adj Ntwk to Forcast WS
A13: The purpose of this sheet is to update the re-align RTS Network Rates to recover forecast wholesale network costs.
A16: Rate Class | B16: Rate Description | C16: Unit | E16: Adjusted RTSR-Network | G16: Loss Adjusted Billed kWh | I16: Loss Adjusted Billed kW | K16: Billed Amount | M16: Billed Amount % | O16: Forecast Wholesale Billing | Q16: Proposed RTSR Network
A19: RESIDENTIAL | B19: Retail Transmission Rate - Network Service Rate | C19: $/kWh | E19: 0.00697253706 | G19: 27173455.7 | I19: 0 | K19: =IF(E19="", "", IF(C19="$/kWh", E19*G19, E19*I19)) -> 189467.9269 | M19: =IF(ISERROR(K19/SUM(K19:K100)),"",K19/SUM(K19:K100)) -> 0.2809447269 | O19: =IF(ISERROR('18. RTSR - Forecast Wholesale'!$F$109*M19), "", '18. RTSR - Forecast Wholesale'!$F$109*M19) -> 189467.9269 | Q19: =IF(C19="","",IF(C19="$/kWh",IF(G19<>0,O19/G19,),IF(I19<>0,O19/I19,0))) -> 0.00697253706
A20: GENERAL SERVICE LESS THAN 50 KW | B20: Retail Transmission Rate - Network Service Rate | C20: $/kWh | E20: 0.006444314555 | G20: 12873008.77 | I20: 0 | K20: =IF(E20="", "", IF(C20="$/kWh", E20*G20, E20*I20)) -> 82957.71776 | M20: =IF(ISERROR(K20/SUM(K19:K100)),"",K20/SUM(K19:K100)) -> 0.1230104416 | O20: =IF(ISERROR('18. RTSR - Forecast Wholesale'!$F$109*M20), "", '18. RTSR - Forecast Wholesale'!$F$109*M20) -> 82957.71776 | Q20: =IF(C20="","",IF(C20="$/kWh",IF(G20<>0,O20/G20,),IF(I20<>0,O20/I20,0))) -> 0.006444314555
A21: GENERAL SERVICE 50 TO 999 KW | B21: Retail Transmission Rate - Network Service Rate | C21: $/kW | E21: 2.654635019 | G21: 0 | I21: 48188.26 | K21: =IF(E21="", "", IF(C21="$/kWh", E21*G21, E21*I21)) -> 127922.2425 | M21: =IF(ISERROR(K21/SUM(K19:K100)),"",K21/SUM(K19:K100)) -> 0.1896842388 | O21: =IF(ISERROR('18. RTSR - Forecast Wholesale'!$F$109*M21), "", '18. RTSR - Forecast Wholesale'!$F$109*M21) -> 127922.2425 | Q21: =IF(C21="","",IF(C21="$/kWh",IF(G21<>0,O21/G21,),IF(I21<>0,O21/I21,0))) -> 2.654635019
A22: GENERAL SERVICE 1,000 TO 4,999 KW | B22: Retail Transmission Rate - Network Service Rate | C22: $/kW | E22: 2.819651729 | G22: 0 | I22: 95833.64 | K22: =IF(E22="", "", IF(C22="$/kWh", E22*G22, E22*I22)) -> 270217.4887 | M22: =IF(ISERROR(K22/SUM(K19:K100)),"",K22/SUM(K19:K100)) -> 0.4006808954 | O22: =IF(ISERROR('18. RTSR - Forecast Wholesale'!$F$109*M22), "", '18. RTSR - Forecast Wholesale'!$F$109*M22) -> 270217.4887 | Q22: =IF(C22="","",IF(C22="$/kWh",IF(G22<>0,O22/G22,),IF(I22<>0,O22/I22,0))) -> 2.819651729
A23: UNMETERED SCATTERED LOAD | B23: Retail Transmission Rate - Network Service Rate | C23: $/kWh | E23: 0.006444314555 | G23: 6143.4828 | I23: 0 | K23: =IF(E23="", "", IF(C23="$/kWh", E23*G23, E23*I23)) -> 39.59053563 | M23: =IF(ISERROR(K23/SUM(K19:K100)),"",K23/SUM(K19:K100)) -> 5.870519831e-05 | O23: =IF(ISERROR('18. RTSR - Forecast Wholesale'!$F$109*M23), "", '18. RTSR - Forecast Wholesale'!$F$109*M23) -> 39.59053563 | Q23: =IF(C23="","",IF(C23="$/kWh",IF(G23<>0,O23/G23,),IF(I23<>0,O23/I23,0))) -> 0.006444314555
A24: SENTINEL LIGHTING | B24: Retail Transmission Rate - Network Service Rate | C24: $/kW | E24: 2.012105164 | G24: 0 | I24: 78.52 | K24: =IF(E24="", "", IF(C24="$/kWh", E24*G24, E24*I24)) -> 157.9904975 | M24: =IF(ISERROR(K24/SUM(K19:K100)),"",K24/SUM(K19:K100)) -> 0.0002342697147 | O24: =IF(ISERROR('18. RTSR - Forecast Wholesale'!$F$109*M24), "", '18. RTSR - Forecast Wholesale'!$F$109*M24) -> 157.9904975 | Q24: =IF(C24="","",IF(C24="$/kWh",IF(G24<>0,O24/G24,),IF(I24<>0,O24/I24,0))) -> 2.012105164
A25: STREET LIGHTING | B25: Retail Transmission Rate - Network Service Rate | C25: $/kW | E25: 2.001963292 | G25: 0 | I25: 1814.61 | K25: =IF(E25="", "", IF(C25="$/kWh", E25*G25, E25*I25)) -> 3632.78261 | M25: =IF(ISERROR(K25/SUM(K19:K100)),"",K25/SUM(K19:K100)) -> 0.00538672236 | O25: =IF(ISERROR('18. RTSR - Forecast Wholesale'!$F$109*M25), "", '18. RTSR - Forecast Wholesale'!$F$109*M25) -> 3632.78261 | Q25: =IF(C25="","",IF(C25="$/kWh",IF(G25<>0,O25/G25,),IF(I25<>0,O25/I25,0))) -> 2.001963292

Sheet 22. RTSR Adj Conn. to Forcst WS
A13: The purpose of this sheet is to update the re-aligned RTS Connection Rates to recover forecast wholesale connection costs.
A16: Rate Class | B16: Rate Description | C16: Unit | E16: Adjusted RTSR-Connection | G16: Loss Adjusted Billed kWh | I16: Loss Adjusted Billed kW | K16: Billed Amount | M16: Billed Amount % | O16: Forecast Wholesale Billing | Q16: Proposed RTSR Connection
A19: RESIDENTIAL | B19: Retail Transmission Rate - Line and Transformation Connection Service Rate | C19: $/kWh | E19: 0.004311397721 | G19: 27173455.7 | I19: 0 | K19: =IF(E19="", "", IF(C19="$/kWh", E19*G19, E19*I19)) -> 117155.575 | M19: =IF(ISERROR(K19/SUM(K19:K100)),"",K19/SUM(K19:K100)) -> 0.3031861042 | O19: =IF(ISERROR('18. RTSR - Forecast Wholesale'!$P$113*M19), "", '18. RTSR - Forecast Wholesale'!$P$113*M19) -> 117155.575 | Q19: =IF(C19="","",IF(C19="$/kWh",IF(G19<>0,O19/G19,),IF(I19<>0,O19/I19,0))) -> 0.004311397721
A20: GENERAL SERVICE LESS THAN 50 KW | B20: Retail Transmission Rate - Line and Transformation Connection Service Rate | C20: $/kWh | E20: 0.003575305427 | G20: 12873008.77 | I20: 0 | K20: =IF(E20="", "", IF(C20="$/kWh", E20*G20, E20*I20)) -> 46024.93811 | M20: =IF(ISERROR(K20/SUM(K19:K100)),"",K20/SUM(K19:K100)) -> 0.1191076198 | O20: =IF(ISERROR('18. RTSR - Forecast Wholesale'!$P$113*M20), "", '18. RTSR - Forecast Wholesale'!$P$113*M20) -> 46024.93811 | Q20: =IF(C20="","",IF(C20="$/kWh",IF(G20<>0,O20/G20,),IF(I20<>0,O20/I20,0))) -> 0.003575305427
A21: GENERAL SERVICE 50 TO 999 KW | B21: Retail Transmission Rate - Line and Transformation Connection Service Rate | C21: $/kW | E21: 1.442740896 | G21: 0 | I21: 48188.26 | K21: =IF(E21="", "", IF(C21="$/kWh", E21*G21, E21*I21)) -> 69523.17341 | M21: =IF(ISERROR(K21/SUM(K19:K100)),"",K21/SUM(K19:K100)) -> 0.1799185408 | O21: =IF(ISERROR('18. RTSR - Forecast Wholesale'!$P$113*M21), "", '18. RTSR - Forecast Wholesale'!$P$113*M21) -> 69523.17341 | Q21: =IF(C21="","",IF(C21="$/kWh",IF(G21<>0,O21/G21,),IF(I21<>0,O21/I21,0))) -> 1.442740896
A22: GENERAL SERVICE 1,000 TO 4,999 KW | B22: Retail Transmission Rate - Line and Transformation Connection Service Rate | C22: $/kW | E22: 1.581652027 | G22: 0 | I22: 95833.64 | K22: =IF(E22="", "", IF(C22="$/kWh", E22*G22, E22*I22)) -> 151575.471 | M22: =IF(ISERROR(K22/SUM(K19:K100)),"",K22/SUM(K19:K100)) -> 0.3922611156 | O22: =IF(ISERROR('18. RTSR - Forecast Wholesale'!$P$113*M22), "", '18. RTSR - Forecast Wholesale'!$P$113*M22) -> 151575.471 | Q22: =IF(C22="","",IF(C22="$/kWh",IF(G22<>0,O22/G22,),IF(I22<>0,O22/I22,0))) -> 1.581652027
A23: UNMETERED SCATTERED LOAD | B23: Retail Transmission Rate - Line and Transformation Connection Service Rate | C23: $/kWh | E23: 0.003575305427 | G23: 6143.4828 | I23: 0 | K23: =IF(E23="", "", IF(C23="$/kWh", E23*G23, E23*I23)) -> 21.9648274 | M23: =IF(ISERROR(K23/SUM(K19:K100)),"",K23/SUM(K19:K100)) -> 5.684262528e-05 | O23: =IF(ISERROR('18. RTSR - Forecast Wholesale'!$P$113*M23), "", '18. RTSR - Forecast Wholesale'!$P$113*M23) -> 21.9648274 | Q23: =IF(C23="","",IF(C23="$/kWh",IF(G23<>0,O23/G23,),IF(I23<>0,O23/I23,0))) -> 0.003575305427
A24: SENTINEL LIGHTING | B24: Retail Transmission Rate - Line and Transformation Connection Service Rate | C24: $/kW | E24: 1.138734779 | G24: 0 | I24: 78.52 | K24: =IF(E24="", "", IF(C24="$/kWh", E24*G24, E24*I24)) -> 89.41345482 | M24: =IF(ISERROR(K24/SUM(K19:K100)),"",K24/SUM(K19:K100)) -> 0.0002313924628 | O24: =IF(ISERROR('18. RTSR - Forecast Wholesale'!$P$113*M24), "", '18. RTSR - Forecast Wholesale'!$P$113*M24) -> 89.41345482 | Q24: =IF(C24="","",IF(C24="$/kWh",IF(G24<>0,O24/G24,),IF(I24<>0,O24/I24,0))) -> 1.138734779
A25: STREET LIGHTING | B25: Retail Transmission Rate - Line and Transformation Connection Service Rate | C25: $/kW | E25: 1.115495293 | G25: 0 | I25: 1814.61 | K25: =IF(E25="", "", IF(C25="$/kWh", E25*G25, E25*I25)) -> 2024.188914 | M25: =IF(ISERROR(K25/SUM(K19:K100)),"",K25/SUM(K19:K100)) -> 0.005238384526 | O25: =IF(ISERROR('18. RTSR - Forecast Wholesale'!$P$113*M25), "", '18. RTSR - Forecast Wholesale'!$P$113*M25) -> 2024.188914 | Q25: =IF(C25="","",IF(C25="$/kWh",IF(G25<>0,O25/G25,),IF(I25<>0,O25/I25,0))) -> 1.115495293

Sheet 23. RTSR Final 2015 RTS Rates
A13: This sheet lists proposed RTSRs for all classes. No input required.
A16: Rate Class | B16: Rate Description | C16: Unit | E16: Proposed Retail Transmission Rate
A19: RESIDENTIAL | B19: Retail Transmission Rate - Network Service Rate | C19: $/kWh | E19: 0.00697253706
A20: RESIDENTIAL | B20: Retail Transmission Rate - Line and Transformation Connection Service Rate | C20: $/kWh | E20: 0.004311397721
A21: GENERAL SERVICE LESS THAN 50 KW | B21: Retail Transmission Rate - Network Service Rate | C21: $/kWh | E21: 0.006444314555
A22: GENERAL SERVICE LESS THAN 50 KW | B22: Retail Transmission Rate - Line and Transformation Connection Service Rate | C22: $/kWh | E22: 0.003575305427
A23: GENERAL SERVICE 50 TO 999 KW | B23: Retail Transmission Rate - Network Service Rate | C23: $/kW | E23: 2.654635019
A24: GENERAL SERVICE 50 TO 999 KW | B24: Retail Transmission Rate - Line and Transformation Connection Service Rate | C24: $/kW | E24: 1.442740896
A25: GENERAL SERVICE 1,000 TO 4,999 KW | B25: Retail Transmission Rate - Network Service Rate | C25: $/kW | E25: 2.819651729
A26: GENERAL SERVICE 1,000 TO 4,999 KW | B26: Retail Transmission Rate - Line and Transformation Connection Service Rate | C26: $/kW | E26: 1.581652027
A27: UNMETERED SCATTERED LOAD | B27: Retail Transmission Rate - Network Service Rate | C27: $/kWh | E27: 0.006444314555
A28: UNMETERED SCATTERED LOAD | B28: Retail Transmission Rate - Line and Transformation Connection Service Rate | C28: $/kWh | E28: 0.003575305427
A29: SENTINEL LIGHTING | B29: Retail Transmission Rate - Network Service Rate | C29: $/kW | E29: 2.012105164
A30: SENTINEL LIGHTING | B30: Retail Transmission Rate - Line and Transformation Connection Service Rate | C30: $/kW | E30: 1.138734779
A31: STREET LIGHTING | B31: Retail Transmission Rate - Network Service Rate | C31: $/kW | E31: 2.001963292
A32: STREET LIGHTING | B32: Retail Transmission Rate - Line and Transformation Connection Service Rate | C32: $/kW | E32: 1.115495293

Sheet 24. Rev2Cost_GDPIPI
Y1: FALSE | Z1: 0 | AC1: NO
Y2: TRUE
A12: If applicable, please enter any adjustments related to the revenue to cost ratio model into columns C and E. The Price Escalator and Stretch Factor have been set at the 2014 values and will be updated by Board staff at a later date.
A15: Price Escalator | B15: 0.017 | C15: Choose Stretch Factor Group | E15: IV
A16: Productivity Factor | B16: 0 | C16: Associated Stretch Factor Value | E16: =IF(E15="I", 0%, IF(E15="II", 0.15%, IF(E15="III", 0.3%, IF(E15="IV", 0.45%, 0.6%)))) -> 0.0045
A17: Price Cap Index | B17: =B15-B16-E16 -> 0.0125
B19: Current MFC | C19: MFC Adjustment from R/C Model | D19: Current Volumetric Charge | E19: DVR Adjustment from R/C Model | F19: Price Cap Index to be Applied to MFC and DVR | G19: Proposed MFC | H19: Proposed Volumetric Charge
A20: Rate Class
A22: RESIDENTIAL | B22: 18.28 | C22: 0 | D22: 0.0183 | E22: 0 | F22: =$B$17 -> 0.0125 | G22: =ROUND(SUM(B22,C22)*(1+F22),2) -> 18.51 | H22: =ROUND(SUM(D22,E22)*(1+F22),4) -> 0.0185
A23: GENERAL SERVICE LESS THAN 50 KW | B23: 38.8 | C23: 0 | D23: 0.0166 | E23: 0 | F23: =$B$17 -> 0.0125 | G23: =ROUND(SUM(B23,C23)*(1+F23),2) -> 39.29 | H23: =ROUND(SUM(D23,E23)*(1+F23),4) -> 0.0168
A24: GENERAL SERVICE 50 TO 999 KW | B24: 272.76 | C24: 0 | D24: 3.6226 | E24: 0 | F24: =$B$17 -> 0.0125 | G24: =ROUND(SUM(B24,C24)*(1+F24),2) -> 276.17 | H24: =ROUND(SUM(D24,E24)*(1+F24),4) -> 3.6679
A25: GENERAL SERVICE 1,000 TO 4,999 KW | B25: 2229.3 | C25: 0 | D25: 1.8706 | E25: 0 | F25: =$B$17 -> 0.0125 | G25: =ROUND(SUM(B25,C25)*(1+F25),2) -> 2257.17 | H25: =ROUND(SUM(D25,E25)*(1+F25),4) -> 1.894
A26: UNMETERED SCATTERED LOAD | B26: 17.88 | C26: 0 | D26: 0.0144 | E26: 0 | F26: =$B$17 -> 0.0125 | G26: =ROUND(SUM(B26,C26)*(1+F26),2) -> 18.1 | H26: =ROUND(SUM(D26,E26)*(1+F26),4) -> 0.0146
A27: SENTINEL LIGHTING | B27: 5.18 | C27: 0 | D27: 19.1573 | E27: 0 | F27: =$B$17 -> 0.0125 | G27: =ROUND(SUM(B27,C27)*(1+F27),2) -> 5.24 | H27: =ROUND(SUM(D27,E27)*(1+F27),4) -> 19.3968
A28: STREET LIGHTING | B28: 7.04 | C28: 0 | D28: 7.8382 | E28: 0 | F28: =$B$17 -> 0.0125 | G28: =ROUND(SUM(B28,C28)*(1+F28),2) -> 7.13 | H28: =ROUND(SUM(D28,E28)*(1+F28),4) -> 7.9362
A29: microFIT | B29: 5.4 | G29: =ROUND(SUM(B29,C29)*(1+F29),2) -> 5.4

Sheet 24. hidden (hidden)
A1: Rate Class | B1: MFC Adjustment from R/C Model | C1: DVR Adjustment from R/C Model
A2: RESIDENTIAL | B2: 18.28 | C2: 0 | D2: 0.0183 | E2: 0
A3: GENERAL SERVICE LESS THAN 50 KW | B3: 38.8 | C3: 0 | D3: 0.0166 | E3: 0
A4: GENERAL SERVICE 50 TO 999 KW | B4: 272.76 | C4: 0 | D4: 3.6226 | E4: 0
A5: GENERAL SERVICE 1,000 TO 4,999 KW | B5: 2229.3 | C5: 0 | D5: 1.8706 | E5: 0
A6: UNMETERED SCATTERED LOAD | B6: 17.88 | C6: 0 | D6: 0.0144 | E6: 0
A7: SENTINEL LIGHTING | B7: 5.18 | C7: 0 | D7: 19.1573 | E7: 0
A8: STREET LIGHTING | B8: 7.04 | C8: 0 | D8: 7.8382 | E8: 0
A9: microFIT | B9: 5.4

Sheet 25. Other Charges & LF
A11: Please enter the following charges as found on your most recent Board-Approved Tariff Schedule. The standard Allowance rates have been included as default entries. If you have different rates, please make the appropriate corrections in the applicable cells below. As well, please enter the current Specific Service Charges below. The standard Retail Service Charges have been entered below. If you have different rates, please make the appropriate corrections in columns A, C or D as applicable (cells are unlocked).
C13: UNIT | D13: RATE
A15: ALLOWANCES
A17: Transformer Allowance for Ownership - per kW of billing demand/month | C17: $/kW | D17: -0.6
A20: Primary Metering Allowance for transformer losses – applied to measured demand and energy | C20: % | D20: -1
A22: SPECIFIC SERVICE CHARGES
A24: APPLICATION
A26: The application of these rates and charges shall be in accordance with the Licence of the Distributor and any Code or Order of the Board, and amendments thereto as approved by the Board, which may be applicable to the administration of this schedule.
A27: No charges to meet the costs of any work or service done or furnished for the purpose of the distribution of electricity shall be made except as permitted by this schedule, unless required by the Distributor’s Licence or a Code or Order of the Board, and amendments thereto as approved by the Board, or as specified herein.
A28: It should be noted that this schedule does not list any charges, assessments or credits that are required by law to be invoiced by a distributor and that are not subject to Board approval, such as the Debt Retirement Charge, the Global Adjustment, the Ontario Clean Energy Benefit and the HST.
A30: Customer Administration
A31: Notification charge | C31: $ | D31: 15
A32: Account History | C32: $ | D32: 15
A33: Returned cheque (plus bank charges) | C33: $ | D33: 15
A34: Legal letter charge | C34: $ | D34: 15
A35: Account set up charge/change of occupancy charge (plus credit agency costs if applicable) | C35: $ | D35: 30
A36: Special meter reads | C36: $ | D36: 30
A37: Meter dispute charge plus Measurement Canada fees (if meter found correct) | C37: $ | D37: 30
A67: Non-Payment of Account
A68: Late Payment – per month | C68: % | D68: 1.5
A69: Late Payment – per annum | C69: % | D69: 19.56
A70: Collection of account charge – no disconnection - during regular business hours | C70: $ | D70: 30
A71: Disconnect/Reconnect at meter – during regular hours | C71: $ | D71: 65
A72: Disconnect/Reconnect at meter – after regular hours | C72: $ | D72: 185
A73: Disconnect/Reconnect at pole – during regular hours | C73: $ | D73: 185
A74: Disconnect/Reconnect at pole – after regular hours | C74: $ | D74: 415
A94: Install/Remove load control device – during regular hours | C94: $ | D94: 65
A95: Interval Meter Load Management Tool Charge $/month | C95: $ | D95: 50
A96: Service call – customer owned equipment | C96: $ | D96: 30
A97: Service Call – Customer-owned Equipment – After Regular Hours | C97: $ | D97: 165
A98: Temporary Service – Install & remove – overhead – no transformer | C98: $ | D98: 500
A99: Specific Charge for Access to the Power Poles - $/pole/year | C99: $ | D99: 22.35
A116: RETAIL SERVICE CHARGES (if applicable)
A118: The application of these rates and charges shall be in accordance with the Licence of the Distributor and any Code or Order of the Board, and amendments thereto as approved by the Board, which may be applicable to the administration of this schedule.
A120: No rates and charges for the distribution of electricity and charges to meet the costs of any work or service done or furnished for the purpose of the distribution of electricity shall be made except as permitted by this schedule, unless required by the Distributor’s Licence or a Code or Order of the Board, and amendments thereto as approved by the Board, or as specified herein.
A122: Unless specifically noted, this schedule does not contain any charges for the electricity commodity, be it under the Regulated Price Plan, a contract with a retailer or the wholesale market price, as applicable.
A124: It should be noted that this schedule does not list any charges, assessments, or credits that are required by law to be invoiced by a distributor and that are not subject to Board approval, such as the Debt Retirement Charge, the Global Adjustment, the Ontario Clean Energy Benefit and the HST.
A126: Retail Service Charges refer to services provided by a distributor to retailers or customers related to the supply of competitive electricity.
A128: One-time charge, per retailer, to establish the service agreement between the distributor and the retailer | C128: $ | D128: 100
A129: Monthly Fixed Charge, per retailer | C129: $ | D129: 20
A130: Monthly Variable Charge, per customer, per retailer | C130: $/cust. | D130: 0.5
A131: Distributor-consolidated billing monthly charge, per customer, per retailer | C131: $/cust. | D131: 0.3
A132: Retailer-consolidated billing monthly credit, per customer, per retailer | C132: $/cust. | D132: -0.3
A133: Service Transaction Requests (STR)
A134: Request fee, per request, applied to the requesting party | C134: $ | D134: 0.25
A135: Processing fee, per request, applied to the requesting party | C135: $ | D135: 0.5
A136: Request for customer information as outlined in Section 10.6.3 and Chapter 11 of the Retail
A137: Settlement Code directly to retailers and customers, if not delivered electronically through the
A138: Electronic Business Transaction (EBT) system, applied to the requesting party
A139: Up to twice a year | C139: $ | D139: no charge
A140: More than twice a year, per request (plus incremental delivery costs) | C140: $ | D140: 2
A143: LOSS FACTORS
A145: If the distributor is not capable of prorating changed loss factors jointly with distribution rates, the revised loss factors will be implemented upon the first subsequent billing for each billing cycle.
A148: Total Loss Factor – Secondary Metered Customer < 5,000 kW | D148: 1.0716 | H148: TLF_Secondary_LT_5000kW
A149: Total Loss Factor – Primary Metered Customer < 5,000 kW | D149: 1.0609 | H149: TLF_Primary_LT_5000kW

Sheet 26. Proposed Rates
Z1: 3
L5: =ROUND(LEN(B5), -2) / 100 -> 0
L9: =ROUND(LEN(B9), -2) / 100 -> 0
B12: In the Green Cells below, enter any proposed rate riders that are not already included in this model (e.g: ICM rate riders). In column B, the rate rider descriptions must begin with "Rate Rider for". In column C, choose the associated unit from the drop-down menu. In column D, enter the rate. All rate riders with a "$" unit will be rounded to 2 decimal places and all others will be rounded to 4 decimal places.
A20: RESIDENTIAL | B20: RESIDENTIAL SERVICE CLASSIFICATION | C20: Unit | D20: Rate
A21: RESIDENTIAL
A22: RESIDENTIAL
A23: RESIDENTIAL
A24: RESIDENTIAL
A25: RESIDENTIAL
A26: RESIDENTIAL
A27: RESIDENTIAL
A28: RESIDENTIAL
A29: RESIDENTIAL
A30: RESIDENTIAL
A32: GENERAL SERVICE LESS THAN 50 KW | B32: GENERAL SERVICE LESS THAN 50 KW SERVICE CLASSIFICATION | C32: Unit | D32: Rate
A33: GENERAL SERVICE LESS THAN 50 KW
A34: GENERAL SERVICE LESS THAN 50 KW
A35: GENERAL SERVICE LESS THAN 50 KW
A36: GENERAL SERVICE LESS THAN 50 KW
A37: GENERAL SERVICE LESS THAN 50 KW
A38: GENERAL SERVICE LESS THAN 50 KW
A39: GENERAL SERVICE LESS THAN 50 KW
A40: GENERAL SERVICE LESS THAN 50 KW
A41: GENERAL SERVICE LESS THAN 50 KW
A42: GENERAL SERVICE LESS THAN 50 KW
A44: GENERAL SERVICE 50 TO 999 KW | B44: GENERAL SERVICE 50 TO 999 KW SERVICE CLASSIFICATION | C44: Unit | D44: Rate
A45: GENERAL SERVICE 50 TO 999 KW
A46: GENERAL SERVICE 50 TO 999 KW
A47: GENERAL SERVICE 50 TO 999 KW
A48: GENERAL SERVICE 50 TO 999 KW
A49: GENERAL SERVICE 50 TO 999 KW
A50: GENERAL SERVICE 50 TO 999 KW
A51: GENERAL SERVICE 50 TO 999 KW
A52: GENERAL SERVICE 50 TO 999 KW
A53: GENERAL SERVICE 50 TO 999 KW
A54: GENERAL SERVICE 50 TO 999 KW
A56: GENERAL SERVICE 1,000 TO 4,999 KW | B56: GENERAL SERVICE 1,000 TO 4,999 KW SERVICE CLASSIFICATION | C56: Unit | D56: Rate
A57: GENERAL SERVICE 1,000 TO 4,999 KW
A58: GENERAL SERVICE 1,000 TO 4,999 KW
A59: GENERAL SERVICE 1,000 TO 4,999 KW
A60: GENERAL SERVICE 1,000 TO 4,999 KW
A61: GENERAL SERVICE 1,000 TO 4,999 KW
A62: GENERAL SERVICE 1,000 TO 4,999 KW
A63: GENERAL SERVICE 1,000 TO 4,999 KW
A64: GENERAL SERVICE 1,000 TO 4,999 KW
A65: GENERAL SERVICE 1,000 TO 4,999 KW
A66: GENERAL SERVICE 1,000 TO 4,999 KW
A68: UNMETERED SCATTERED LOAD | B68: UNMETERED SCATTERED LOAD SERVICE CLASSIFICATION | C68: Unit | D68: Rate
A69: UNMETERED SCATTERED LOAD
A70: UNMETERED SCATTERED LOAD
A71: UNMETERED SCATTERED LOAD
A72: UNMETERED SCATTERED LOAD
A73: UNMETERED SCATTERED LOAD
A74: UNMETERED SCATTERED LOAD
A75: UNMETERED SCATTERED LOAD
A76: UNMETERED SCATTERED LOAD
A77: UNMETERED SCATTERED LOAD
A78: UNMETERED SCATTERED LOAD
A80: SENTINEL LIGHTING | B80: SENTINEL LIGHTING SERVICE CLASSIFICATION | C80: Unit | D80: Rate
A81: SENTINEL LIGHTING
A82: SENTINEL LIGHTING
A83: SENTINEL LIGHTING
A84: SENTINEL LIGHTING
A85: SENTINEL LIGHTING
A86: SENTINEL LIGHTING
A87: SENTINEL LIGHTING
A88: SENTINEL LIGHTING
A89: SENTINEL LIGHTING
A90: SENTINEL LIGHTING
A92: STREET LIGHTING | B92: STREET LIGHTING SERVICE CLASSIFICATION | C92: Unit | D92: Rate
A93: STREET LIGHTING
A94: STREET LIGHTING
A95: STREET LIGHTING
A96: STREET LIGHTING
A97: STREET LIGHTING
A98: STREET LIGHTING
A99: STREET LIGHTING
A100: STREET LIGHTING
A101: STREET LIGHTING
A102: STREET LIGHTING
A104: microFIT | B104: microFIT SERVICE CLASSIFICATION | C104: Unit | D104: Rate
A105: microFIT
A106: microFIT
A107: microFIT
A108: microFIT
A109: microFIT
A110: microFIT
A111: microFIT
A112: microFIT
A113: microFIT
A114: microFIT
B118: PROPOSED MONTHLY RATES AND CHARGES - Regulatory Component
A120: Wholesale Market Service Rate | B120: Wholesale Market Service Rate | C120: $/kWh | D120: 0.0044
A121: Rural or Remote Electricity Rate Protection Charge (RRRP) | B121: Rural or Remote Electricity Rate Protection Charge (RRRP) | C121: $/kWh | D121: 0.0013
A122: Standard Supply Service - Administrative Charge (if applicable) | B122: Standard Supply Service - Administrative Charge (if applicable) | C122: $ | D122: 0.25

Sheet 26. Hidden (hidden)
A1: RESIDENTIAL | B1: RESIDENTIAL SERVICE CLASSIFICATION | C1: Unit | D1: Rate
A2: RESIDENTIAL
A3: RESIDENTIAL
A4: RESIDENTIAL
A5: RESIDENTIAL
A6: RESIDENTIAL
A7: RESIDENTIAL
A8: RESIDENTIAL
A9: RESIDENTIAL
A10: RESIDENTIAL
A11: RESIDENTIAL
A13: GENERAL SERVICE LESS THAN 50 KW | B13: GENERAL SERVICE LESS THAN 50 KW SERVICE CLASSIFICATION | C13: Unit | D13: Rate
A14: GENERAL SERVICE LESS THAN 50 KW
A15: GENERAL SERVICE LESS THAN 50 KW
A16: GENERAL SERVICE LESS THAN 50 KW
A17: GENERAL SERVICE LESS THAN 50 KW
A18: GENERAL SERVICE LESS THAN 50 KW
A19: GENERAL SERVICE LESS THAN 50 KW
A20: GENERAL SERVICE LESS THAN 50 KW
A21: GENERAL SERVICE LESS THAN 50 KW
A22: GENERAL SERVICE LESS THAN 50 KW
A23: GENERAL SERVICE LESS THAN 50 KW
A25: GENERAL SERVICE 50 TO 999 KW | B25: GENERAL SERVICE 50 TO 999 KW SERVICE CLASSIFICATION | C25: Unit | D25: Rate
A26: GENERAL SERVICE 50 TO 999 KW
A27: GENERAL SERVICE 50 TO 999 KW
A28: GENERAL SERVICE 50 TO 999 KW
A29: GENERAL SERVICE 50 TO 999 KW
A30: GENERAL SERVICE 50 TO 999 KW
A31: GENERAL SERVICE 50 TO 999 KW
A32: GENERAL SERVICE 50 TO 999 KW
A33: GENERAL SERVICE 50 TO 999 KW
A34: GENERAL SERVICE 50 TO 999 KW
A35: GENERAL SERVICE 50 TO 999 KW
A37: GENERAL SERVICE 1,000 TO 4,999 KW | B37: GENERAL SERVICE 1,000 TO 4,999 KW SERVICE CLASSIFICATION | C37: Unit | D37: Rate
A38: GENERAL SERVICE 1,000 TO 4,999 KW
A39: GENERAL SERVICE 1,000 TO 4,999 KW
A40: GENERAL SERVICE 1,000 TO 4,999 KW
A41: GENERAL SERVICE 1,000 TO 4,999 KW
A42: GENERAL SERVICE 1,000 TO 4,999 KW
A43: GENERAL SERVICE 1,000 TO 4,999 KW
A44: GENERAL SERVICE 1,000 TO 4,999 KW
A45: GENERAL SERVICE 1,000 TO 4,999 KW
A46: GENERAL SERVICE 1,000 TO 4,999 KW
A47: GENERAL SERVICE 1,000 TO 4,999 KW
A49: UNMETERED SCATTERED LOAD | B49: UNMETERED SCATTERED LOAD SERVICE CLASSIFICATION | C49: Unit | D49: Rate
A50: UNMETERED SCATTERED LOAD
A51: UNMETERED SCATTERED LOAD
A52: UNMETERED SCATTERED LOAD
A53: UNMETERED SCATTERED LOAD
A54: UNMETERED SCATTERED LOAD
A55: UNMETERED SCATTERED LOAD
A56: UNMETERED SCATTERED LOAD
A57: UNMETERED SCATTERED LOAD
A58: UNMETERED SCATTERED LOAD
A59: UNMETERED SCATTERED LOAD
A61: SENTINEL LIGHTING | B61: SENTINEL LIGHTING SERVICE CLASSIFICATION | C61: Unit | D61: Rate
A62: SENTINEL LIGHTING
A63: SENTINEL LIGHTING
A64: SENTINEL LIGHTING
A65: SENTINEL LIGHTING
A66: SENTINEL LIGHTING
A67: SENTINEL LIGHTING
A68: SENTINEL LIGHTING
A69: SENTINEL LIGHTING
A70: SENTINEL LIGHTING
A71: SENTINEL LIGHTING
A73: STREET LIGHTING | B73: STREET LIGHTING SERVICE CLASSIFICATION | C73: Unit | D73: Rate
A74: STREET LIGHTING
A75: STREET LIGHTING
A76: STREET LIGHTING
A77: STREET LIGHTING
A78: STREET LIGHTING
A79: STREET LIGHTING
A80: STREET LIGHTING
A81: STREET LIGHTING
A82: STREET LIGHTING
A83: STREET LIGHTING
A85: microFIT | B85: microFIT SERVICE CLASSIFICATION | C85: Unit | D85: Rate
A86: microFIT
A87: microFIT
A88: microFIT
A89: microFIT
A90: microFIT
A91: microFIT
A92: microFIT
A93: microFIT
A94: microFIT
A95: microFIT
B99: PROPOSED MONTHLY RATES AND CHARGES - Regulatory Component
A101: Wholesale Market Service Rate | B101: Wholesale Market Service Rate | C101: $/kWh | D101: 0.0044
A102: Rural or Remote Electricity Rate Protection Charge (RRRP) | B102: Rural or Remote Electricity Rate Protection Charge (RRRP) | C102: $/kWh | D102: 0.0013
A103: Standard Supply Service - Administrative Charge (if applicable) | B103: Standard Supply Service - Administrative Charge (if applicable) | C103: $ | D103: 0.25

Sheet 27. Final Tariff Schedule
A1: hidden column | B1: ='1. Information Sheet'!F14 -> Wellington North Power Inc. | F1: hidden column | Z1: 3
A2: for rate classes | B2: TARIFF OF RATES AND CHARGES | F2: for proposed
B3: ="Effective and Implementation Date " & TEXT('1. Information Sheet'!F26, "mmmm dd, yyyy") -> Effective and Implementation Date May 01, 2015 | F3: labeliing
B5: This schedule supersedes and replaces all previously
B6: approved schedules of Rates, Charges and Loss Factors | L6: =ROUND(LEN(B6), -2) / 100 -> 1
B7: =IF(LEN('1. Information Sheet'!F18)=0, "Please enter your assigned EB# on Sheet 1", '1. Information Sheet'!F18) -> EB-2014-0121
B9: RESIDENTIAL SERVICE CLASSIFICATION
B11: This classification refers to the supply of electrical energy to Customers residing in residential dwelling units. Energy is generally supplied as single phase, 3-wire, 60-Hertz, having a nominal voltage of 120/240 Volts. Further servicing details are available in the distributor’s Conditions of Service. | L11: =ROUND(LEN(B11), -2) / 100 -> 3
B13: APPLICATION
B15: The application of these rates and charges shall be in accordance with the Licence of the Distributor and any Code or Order of the Board, and amendments thereto as approved by the Board, which may be applicable to the administration of this schedule. | L15: =ROUND(LEN(B15), -2) / 100 -> 3
B17: No rates and charges for the distribution of electricity and charges to meet the costs of any work or service done or furnished for the purpose of the distribution of electricity shall be made except as permitted by this schedule, unless required by the Distributor’s Licence or a Code or Order of the Board, and amendments thereto as approved by the Board, or as specified herein | L17: =ROUND(LEN(B17), -2) / 100 -> 4
B19: Unless specifically noted, this schedule does not contain any charges for the electricity commodity, be it under the Regulated Price Plan, a contract with a retailer or the wholesale market price, as applicable. | L19: =ROUND(LEN(B19), -2) / 100 -> 2
B21: It should be noted that this schedule does not list any charges, assessments or credits that are required by law to be invoiced by a distributor and that are not subject to Board approval, such as the Debt Retirement Charge, the Global Adjustment, the Ontario Clean Energy Benefit and the HST. | L21: =ROUND(LEN(B21), -2) / 100 -> 3
B23: MONTHLY RATES AND CHARGES - Delivery Component
A25: RESIDENTIAL | B25: Service Charge | D25: $ | E25: 18.51 | K25: 1_P_MSC
A26: RESIDENTIAL | B26: Rate Rider for Recovery of Incremental Capital Module Costs (2014) - in effect until the effective date of the next cost of service-based rate order | D26: $ | E26: 0.88 | K26: 1_P_MSC_Rate_Rider_1
A27: RESIDENTIAL | B27: Rate Rider for Smart Metering Entity Charge - effective until October 31, 2018 | D27: $ | E27: 0.79 | K27: 1_P_SMEC
A28: RESIDENTIAL | B28: Distribution Volumetric Rate | D28: $/kWh | E28: 0.0185 | K28: 1_P_VC_1
A29: RESIDENTIAL | B29: Low Voltage Service Rate | D29: $/kWh | E29: 0.0018 | K29: 1_P_LVrate
A30: RESIDENTIAL | B30: Rate Rider for Recovery of Incremental Capital Module Costs (2014) - in effect until the effective date of the next cost of service-based rate order | D30: $/kWh | E30: 0.0009 | K30: 1_P_VC_Rate_Rider_kWh_1
A31: RESIDENTIAL | B31: Retail Transmission Rate - Network Service Rate | D31: $/kWh | E31: 0.00697253706 | K31: 1_P_RTSR_Network
A32: RESIDENTIAL | B32: Retail Transmission Rate - Line and Transformation Connection Service Rate | D32: $/kWh | E32: 0.004311397721 | K32: 1_P_RTSR_Connection
A33: RESIDENTIAL
A34: RESIDENTIAL | B34: MONTHLY RATES AND CHARGES - Regulatory Component
A35: RESIDENTIAL
A36: RESIDENTIAL | B36: Wholesale Market Service Rate | D36: $/kWh | E36: 0.0044 | K36: 1_P_WMSR
A37: RESIDENTIAL | B37: Rural or Remote Electricity Rate Protection Charge (RRRP) | D37: $/kWh | E37: 0.0013 | K37: 1_P_RRPC
A38: RESIDENTIAL | B38: Standard Supply Service - Administrative Charge (if applicable) | D38: $ | E38: 0.25 | K38: 1_P_SSS
B40: GENERAL SERVICE LESS THAN 50 KW SERVICE CLASSIFICATION
B42: This classification applies to customers in General Service buildings with a connected load less than 50 kW, and Town Houses and Condominiums that require centralized bulk metering. General Service buildings are defined as buildings that are used for purposes other than single-family dwellings. Further servicing details are available in the distributor’s Conditions of Service. | L42: =ROUND(LEN(B42), -2) / 100 -> 4
B44: APPLICATION
B46: The application of these rates and charges shall be in accordance with the Licence of the Distributor and any Code or Order of the Board, and amendments thereto as approved by the Board, which may be applicable to the administration of this schedule | L46: =ROUND(LEN(B46), -2) / 100 -> 2
B48: No rates and charges for the distribution of electricity and charges to meet the costs of any work or service done or furnished for the purpose of the distribution of electricity shall be made except as permitted by this schedule, unless required by the Distributor’s Licence or a Code or Order of the Board, and amendments thereto as approved by the Board, or as specified herein. | L48: =ROUND(LEN(B48), -2) / 100 -> 4
B50: Unless specifically noted, this schedule does not contain any charges for the electricity commodity, be it under the Regulated Price Plan, a contract with a retailer or the wholesale market price, as applicable. | L50: =ROUND(LEN(B50), -2) / 100 -> 2
B52: It should be noted that this schedule does not list any charges, assessments or credits that are required by law to be invoiced by a distributor and that are not subject to Board approval, such as the Debt Retirement Charge, the Global Adjustment, the Ontario Clean Energy Benefit and the HST | L52: =ROUND(LEN(B52), -2) / 100 -> 3
B54: MONTHLY RATES AND CHARGES - Delivery Component
A56: GENERAL SERVICE LESS THAN 50 KW | B56: Service Charge | D56: $ | E56: 39.29 | K56: 2_P_MSC
A57: GENERAL SERVICE LESS THAN 50 KW | B57: Rate Rider for Recovery of Incremental Capital Module Costs (2014) - in effect until the effective date of the next cost of service-based rate order | D57: $ | E57: 1.87 | K57: 2_P_MSC_Rate_Rider_1
A58: GENERAL SERVICE LESS THAN 50 KW | B58: Rate Rider for Smart Metering Entity Charge - effective until October 31, 2018 | D58: $ | E58: 0.79 | K58: 2_P_SMEC
A59: GENERAL SERVICE LESS THAN 50 KW | B59: Distribution Volumetric Rate | D59: $/kWh | E59: 0.0168 | K59: 2_P_VC_1
A60: GENERAL SERVICE LESS THAN 50 KW | B60: Low Voltage Service Rate | D60: $/kWh | E60: 0.0015 | K60: 2_P_LVrate
A61: GENERAL SERVICE LESS THAN 50 KW | B61: Rate Rider for Recovery of Incremental Capital Module Costs (2014) - in effect until the effective date of the next cost of service-based rate order | D61: $/kWh | E61: 0.0008 | K61: 2_P_VC_Rate_Rider_kWh_1
A62: GENERAL SERVICE LESS THAN 50 KW | B62: Retail Transmission Rate - Network Service Rate | D62: $/kWh | E62: 0.006444314555 | K62: 2_P_RTSR_Network
A63: GENERAL SERVICE LESS THAN 50 KW | B63: Retail Transmission Rate - Line and Transformation Connection Service Rate | D63: $/kWh | E63: 0.003575305427 | K63: 2_P_RTSR_Connection
A64: GENERAL SERVICE LESS THAN 50 KW
A65: GENERAL SERVICE LESS THAN 50 KW | B65: MONTHLY RATES AND CHARGES - Regulatory Component
A66: GENERAL SERVICE LESS THAN 50 KW
A67: GENERAL SERVICE LESS THAN 50 KW | B67: Wholesale Market Service Rate | D67: $/kWh | E67: 0.0044 | K67: 2_P_WMSR
A68: GENERAL SERVICE LESS THAN 50 KW | B68: Rural or Remote Electricity Rate Protection Charge (RRRP) | D68: $/kWh | E68: 0.0013 | K68: 2_P_RRPC
A69: GENERAL SERVICE LESS THAN 50 KW | B69: Standard Supply Service - Administrative Charge (if applicable) | D69: $ | E69: 0.25 | K69: 2_P_SSS
B71: GENERAL SERVICE 50 TO 999 KW SERVICE CLASSIFICATION
B73: This classification applies to a non residential account whose average monthly maximum demand used for billing purposes is equal to or greater than, or is forecast to be equal to or greater than, 50 kW but less than 1,000 kW. Further servicing details are available in the distributor’s Conditions of Service | L73: =ROUND(LEN(B73), -2) / 100 -> 3
B75: APPLICATION
B77: The application of these rates and charges shall be in accordance with the Licence of the Distributor and any Code or Order of the Board, and amendments thereto as approved by the Board, which may be applicable to the administration of this schedule. | L77: =ROUND(LEN(B77), -2) / 100 -> 3
B79: No rates and charges for the distribution of electricity and charges to meet the costs of any work or service done or furnished for the purpose of the distribution of electricity shall be made except as permitted by this schedule, unless required by the Distributor’s Licence or a Code or Order of the Board, and amendments thereto as approved by the Board, or as specified herein. | L79: =ROUND(LEN(B79), -2) / 100 -> 4
B81: Unless specifically noted, this schedule does not contain any charges for the electricity commodity, be it under the Regulated Price Plan, a contract with a retailer or the wholesale market price, as applicable. | L81: =ROUND(LEN(B81), -2) / 100 -> 2
B83: It should be noted that this schedule does not list any charges, assessments or credits that are required by law to be invoiced by a distributor and that are not subject to Board approval, such as the Debt Retirement Charge, the Global Adjustment, the Ontario Clean Energy Benefit and the HST. | L83: =ROUND(LEN(B83), -2) / 100 -> 3
B85: MONTHLY RATES AND CHARGES - Delivery Component
A87: GENERAL SERVICE 50 TO 999 KW | B87: Service Charge | D87: $ | E87: 276.17 | K87: 3_P_MSC
A88: GENERAL SERVICE 50 TO 999 KW | B88: Rate Rider for Recovery of Incremental Capital Module Costs (2014) - in effect until the effective date of the next cost of service-based rate order | D88: $ | E88: 13.15 | K88: 3_P_MSC_Rate_Rider_1
A89: GENERAL SERVICE 50 TO 999 KW | B89: Distribution Volumetric Rate | D89: $/kW | E89: 3.6679 | K89: 3_P_VC_1
A90: GENERAL SERVICE 50 TO 999 KW | B90: Low Voltage Service Rate | D90: $/kW | E90: 0.605 | K90: 3_P_LVrate
A91: GENERAL SERVICE 50 TO 999 KW | B91: Rate Rider for Recovery of Incremental Capital Module Costs (2014) - in effect until the effective date of the next cost of service-based rate order | D91: $/kW | E91: 0.1746 | K91: 3_P_VC_Rate_Rider_kW_1
A92: GENERAL SERVICE 50 TO 999 KW | B92: Retail Transmission Rate - Network Service Rate | D92: $/kW | E92: 2.654635019 | K92: 3_P_RTSR_Network
A93: GENERAL SERVICE 50 TO 999 KW | B93: Retail Transmission Rate - Line and Transformation Connection Service Rate | D93: $/kW | E93: 1.442740896 | K93: 3_P_RTSR_Connection
A94: GENERAL SERVICE 50 TO 999 KW
A95: GENERAL SERVICE 50 TO 999 KW | B95: MONTHLY RATES AND CHARGES - Regulatory Component
A96: GENERAL SERVICE 50 TO 999 KW
A97: GENERAL SERVICE 50 TO 999 KW | B97: Wholesale Market Service Rate | D97: $/kWh | E97: 0.0044 | K97: 3_P_WMSR
A98: GENERAL SERVICE 50 TO 999 KW | B98: Rural or Remote Electricity Rate Protection Charge (RRRP) | D98: $/kWh | E98: 0.0013 | K98: 3_P_RRPC
A99: GENERAL SERVICE 50 TO 999 KW | B99: Standard Supply Service - Administrative Charge (if applicable) | D99: $ | E99: 0.25 | K99: 3_P_SSS
B101: GENERAL SERVICE 1,000 TO 4,999 KW SERVICE CLASSIFICATION
B103: This classification applies to a non residential account whose average monthly maximum demand used for billing purposes is equal to or greater than, or is forecast to be equal to or greater than, 1,000 kW but less than 5,000 kW. Further servicing details are available in the distributor’s Conditions of Service | L103: =ROUND(LEN(B103), -2) / 100 -> 3
B105: APPLICATION
B107: The application of these rates and charges shall be in accordance with the Licence of the Distributor and any Code or Order of the Board, and amendments thereto as approved by the Board, which may be applicable to the administration of this schedule | L107: =ROUND(LEN(B107), -2) / 100 -> 2
B109: No rates and charges for the distribution of electricity and charges to meet the costs of any work or service done or furnished for the purpose of the distribution of electricity shall be made except as permitted by this schedule, unless required by the Distributor’s Licence or a Code or Order of the Board, and amendments thereto as approved by the Board, or as specified herein. | L109: =ROUND(LEN(B109), -2) / 100 -> 4
B111: Unless specifically noted, this schedule does not contain any charges for the electricity commodity, be it under the Regulated Price Plan, a contract with a retailer or the wholesale market price, as applicable. | L111: =ROUND(LEN(B111), -2) / 100 -> 2
B113: It should be noted that this schedule does not list any charges, assessments or credits that are required by law to be invoiced by a distributor and that are not subject to Board approval, such as the Debt Retirement Charge, the Global Adjustment, the Ontario Clean Energy Benefit and the HST. | L113: =ROUND(LEN(B113), -2) / 100 -> 3
B115: MONTHLY RATES AND CHARGES - Delivery Component
A117: GENERAL SERVICE 1,000 TO 4,999 KW | B117: Service Charge | D117: $ | E117: 2257.17 | K117: 4_P_MSC
A118: GENERAL SERVICE 1,000 TO 4,999 KW | B118: Rate Rider for Recovery of Incremental Capital Module Costs (2014) - in effect until the effective date of the next cost of service-based rate order | D118: $ | E118: 107.46 | K118: 4_P_MSC_Rate_Rider_1
A119: GENERAL SERVICE 1,000 TO 4,999 KW | B119: Distribution Volumetric Rate | D119: $/kW | E119: 1.894 | K119: 4_P_VC_1
A120: GENERAL SERVICE 1,000 TO 4,999 KW | B120: Low Voltage Service Rate | D120: $/kW | E120: 0.6632 | K120: 4_P_LVrate
A121: GENERAL SERVICE 1,000 TO 4,999 KW | B121: Rate Rider for Recovery of Incremental Capital Module Costs (2014) - in effect until the effective date of the next cost of service-based rate order | D121: $/kW | E121: 0.0902 | K121: 4_P_VC_Rate_Rider_kW_1
A122: GENERAL SERVICE 1,000 TO 4,999 KW | B122: Retail Transmission Rate - Network Service Rate | D122: $/kW | E122: 2.819651729 | K122: 4_P_RTSR_Network
A123: GENERAL SERVICE 1,000 TO 4,999 KW | B123: Retail Transmission Rate - Line and Transformation Connection Service Rate | D123: $/kW | E123: 1.581652027 | K123: 4_P_RTSR_Connection
A124: GENERAL SERVICE 1,000 TO 4,999 KW
A125: GENERAL SERVICE 1,000 TO 4,999 KW | B125: MONTHLY RATES AND CHARGES - Regulatory Component
A126: GENERAL SERVICE 1,000 TO 4,999 KW
A127: GENERAL SERVICE 1,000 TO 4,999 KW | B127: Wholesale Market Service Rate | D127: $/kWh | E127: 0.0044 | K127: 4_P_WMSR
A128: GENERAL SERVICE 1,000 TO 4,999 KW | B128: Rural or Remote Electricity Rate Protection Charge (RRRP) | D128: $/kWh | E128: 0.0013 | K128: 4_P_RRPC
A129: GENERAL SERVICE 1,000 TO 4,999 KW | B129: Standard Supply Service - Administrative Charge (if applicable) | D129: $ | E129: 0.25 | K129: 4_P_SSS
B131: UNMETERED SCATTERED LOAD SERVICE CLASSIFICATION
B133: This classification applies to an account whose average monthly maximum demand is less than, or is forecast to be less than, 50 kW and the consumption is unmetered. Such connections include cable TV power packs, bus shelters, telephone booths, traffic lights, railway crossings, decorative street lighting, billboards, etc. The level of the consumption will be agreed to by the distributor and the customer, based on detailed manufacturer information/documentation with regard to electrical consumption of the unmetered load or periodic monitoring of actual consumption. Further servicing details are available in the distributor’s Conditions of Service | L133: =ROUND(LEN(B133), -2) / 100 -> 7
B135: APPLICATION
B137: The application of these rates and charges shall be in accordance with the Licence of the Distributor and any Code or Order of the Board, and amendments thereto as approved by the Board, which may be applicable to the administration of this schedule. | L137: =ROUND(LEN(B137), -2) / 100 -> 3
B139: No rates and charges for the distribution of electricity and charges to meet the costs of any work or service done or furnished for the purpose of the distribution of electricity shall be made except as permitted by this schedule, unless required by the Distributor’s Licence or a Code or Order of the Board, and amendments thereto as approved by the Board, or as specified herein. | L139: =ROUND(LEN(B139), -2) / 100 -> 4
B141: Unless specifically noted, this schedule does not contain any charges for the electricity commodity, be it under the Regulated Price Plan, a contract with a retailer or the wholesale market price, as applicable. | L141: =ROUND(LEN(B141), -2) / 100 -> 2
B143: It should be noted that this schedule does not list any charges, assessments or credits that are required by law to be invoiced by a distributor and that are not subject to Board approval, such as the Debt Retirement Charge, the Global Adjustment, the Ontario Clean Energy Benefit and the HST. | L143: =ROUND(LEN(B143), -2) / 100 -> 3
B145: MONTHLY RATES AND CHARGES - Delivery Component
A147: UNMETERED SCATTERED LOAD | B147: Service Charge | D147: $ | E147: 18.1 | K147: 5_P_MSC
A148: UNMETERED SCATTERED LOAD | B148: Rate Rider for Recovery of Incremental Capital Module Costs (2014) - in effect until the effective date of the next cost of service-based rate order | D148: $ | E148: 0.86 | K148: 5_P_MSC_Rate_Rider_1
A149: UNMETERED SCATTERED LOAD | B149: Distribution Volumetric Rate | D149: $/kWh | E149: 0.0146 | K149: 5_P_VC_1
A150: UNMETERED SCATTERED LOAD | B150: Low Voltage Service Rate | D150: $/kWh | E150: 0.0015 | K150: 5_P_LVrate
A151: UNMETERED SCATTERED LOAD | B151: Rate Rider for Recovery of Incremental Capital Module Costs (2014) - in effect until the effective date of the next cost of service-based rate order | D151: $/kWh | E151: 0.0007 | K151: 5_P_VC_Rate_Rider_kWh_1
A152: UNMETERED SCATTERED LOAD | B152: Retail Transmission Rate - Network Service Rate | D152: $/kWh | E152: 0.006444314555 | K152: 5_P_RTSR_Network
A153: UNMETERED SCATTERED LOAD | B153: Retail Transmission Rate - Line and Transformation Connection Service Rate | D153: $/kWh | E153: 0.003575305427 | K153: 5_P_RTSR_Connection
A154: UNMETERED SCATTERED LOAD
A155: UNMETERED SCATTERED LOAD | B155: MONTHLY RATES AND CHARGES - Regulatory Component
A156: UNMETERED SCATTERED LOAD
A157: UNMETERED SCATTERED LOAD | B157: Wholesale Market Service Rate | D157: $/kWh | E157: 0.0044 | K157: 5_P_WMSR
A158: UNMETERED SCATTERED LOAD | B158: Rural or Remote Electricity Rate Protection Charge (RRRP) | D158: $/kWh | E158: 0.0013 | K158: 5_P_RRPC
A159: UNMETERED SCATTERED LOAD | B159: Standard Supply Service - Administrative Charge (if applicable) | D159: $ | E159: 0.25 | K159: 5_P_SSS
B161: SENTINEL LIGHTING SERVICE CLASSIFICATION
B163: This classification refers to accounts for unmetered lighting loads supplied to sentinel lights. Further servicing details are available in the distributor’s Conditions of Service | L163: =ROUND(LEN(B163), -2) / 100 -> 2
B165: APPLICATION
B167: The application of these rates and charges shall be in accordance with the Licence of the Distributor and any Code or Order of the Board, and amendments thereto as approved by the Board, which may be applicable to the administration of this schedule. | L167: =ROUND(LEN(B167), -2) / 100 -> 3
B169: No rates and charges for the distribution of electricity and charges to meet the costs of any work or service done or furnished for the purpose of the distribution of electricity shall be made except as permitted by this schedule, unless required by the Distributor’s Licence or a Code or Order of the Board, and amendments thereto as approved by the Board, or as specified herein. | L169: =ROUND(LEN(B169), -2) / 100 -> 4
B171: Unless specifically noted, this schedule does not contain any charges for the electricity commodity, be it under the Regulated Price Plan, a contract with a retailer or the wholesale market price, as applicable. | L171: =ROUND(LEN(B171), -2) / 100 -> 2
B173: It should be noted that this schedule does not list any charges, assessments or credits that are required by law to be invoiced by a distributor and that are not subject to Board approval, such as the Debt Retirement Charge, the Global Adjustment, the Ontario Clean Energy Benefit and the HST. | L173: =ROUND(LEN(B173), -2) / 100 -> 3
B175: MONTHLY RATES AND CHARGES - Delivery Component
A177: SENTINEL LIGHTING | B177: Service Charge | D177: $ | E177: 5.24 | K177: 6_P_MSC
A178: SENTINEL LIGHTING | B178: Rate Rider for Recovery of Incremental Capital Module Costs (2014) - in effect until the effective date of the next cost of service-based rate order | D178: $ | E178: 0.25 | K178: 6_P_MSC_Rate_Rider_1
A179: SENTINEL LIGHTING | B179: Distribution Volumetric Rate | D179: $/kW | E179: 19.3968 | K179: 6_P_VC_1
A180: SENTINEL LIGHTING | B180: Low Voltage Service Rate | D180: $/kW | E180: 0.4775 | K180: 6_P_LVrate
A181: SENTINEL LIGHTING | B181: Rate Rider for Recovery of Incremental Capital Module Costs (2014) - in effect until the effective date of the next cost of service-based rate order | D181: $/kW | E181: 0.9234 | K181: 6_P_VC_Rate_Rider_kW_1
A182: SENTINEL LIGHTING | B182: Retail Transmission Rate - Network Service Rate | D182: $/kW | E182: 2.012105164 | K182: 6_P_RTSR_Network
A183: SENTINEL LIGHTING | B183: Retail Transmission Rate - Line and Transformation Connection Service Rate | D183: $/kW | E183: 1.138734779 | K183: 6_P_RTSR_Connection
A184: SENTINEL LIGHTING
A185: SENTINEL LIGHTING | B185: MONTHLY RATES AND CHARGES - Regulatory Component
A186: SENTINEL LIGHTING
A187: SENTINEL LIGHTING | B187: Wholesale Market Service Rate | D187: $/kWh | E187: 0.0044 | K187: 6_P_WMSR
A188: SENTINEL LIGHTING | B188: Rural or Remote Electricity Rate Protection Charge (RRRP) | D188: $/kWh | E188: 0.0013 | K188: 6_P_RRPC
A189: SENTINEL LIGHTING | B189: Standard Supply Service - Administrative Charge (if applicable) | D189: $ | E189: 0.25 | K189: 6_P_SSS
B191: STREET LIGHTING SERVICE CLASSIFICATION
B193: This classification refers to accounts for roadway lighting with a Municipality, Regional Municipality, and Ministry of Transportation. The consumption for these customers will be based on the calculated connected load times the required lighting times established in the approved OEB street lighting load shape template. Further servicing details are available in the distributor’s Conditions of Service. | L193: =ROUND(LEN(B193), -2) / 100 -> 4
B195: APPLICATION
B197: The application of these rates and charges shall be in accordance with the Licence of the Distributor and any Code or Order of the Board, and amendments thereto as approved by the Board, which may be applicable to the administration of this schedule. | L197: =ROUND(LEN(B197), -2) / 100 -> 3
B199: No rates and charges for the distribution of electricity and charges to meet the costs of any work or service done or furnished for the purpose of the distribution of electricity shall be made except as permitted by this schedule, unless required by the Distributor’s Licence or a Code or Order of the Board, and amendments thereto as approved by the Board, or as specified herein. | L199: =ROUND(LEN(B199), -2) / 100 -> 4
B201: Unless specifically noted, this schedule does not contain any charges for the electricity commodity, be it under the Regulated Price Plan, a contract with a retailer or the wholesale market price, as applicable | L201: =ROUND(LEN(B201), -2) / 100 -> 2
B203: It should be noted that this schedule does not list any charges, assessments or credits that are required by law to be invoiced by a distributor and that are not subject to Board approval, such as the Debt Retirement Charge, the Global Adjustment, the Ontario Clean Energy Benefit and the HST. | L203: =ROUND(LEN(B203), -2) / 100 -> 3
B205: MONTHLY RATES AND CHARGES - Delivery Component
A207: STREET LIGHTING | B207: Service Charge | D207: $ | E207: 7.13 | K207: 7_P_MSC
A208: STREET LIGHTING | B208: Rate Rider for Recovery of Incremental Capital Module Costs (2014) - in effect until the effective date of the next cost of service-based rate order | D208: $ | E208: 0.34 | K208: 7_P_MSC_Rate_Rider_1
A209: STREET LIGHTING | B209: Distribution Volumetric Rate | D209: $/kW | E209: 7.9362 | K209: 7_P_VC_1
A210: STREET LIGHTING | B210: Low Voltage Service Rate | D210: $/kW | E210: 0.4677 | K210: 7_P_LVrate
A211: STREET LIGHTING | B211: Rate Rider for Recovery of Incremental Capital Module Costs (2014) - in effect until the effective date of the next cost of service-based rate order | D211: $/kW | E211: 0.3778 | K211: 7_P_VC_Rate_Rider_kW_1
A212: STREET LIGHTING | B212: Retail Transmission Rate - Network Service Rate | D212: $/kW | E212: 2.001963292 | K212: 7_P_RTSR_Network
A213: STREET LIGHTING | B213: Retail Transmission Rate - Line and Transformation Connection Service Rate | D213: $/kW | E213: 1.115495293 | K213: 7_P_RTSR_Connection
A214: STREET LIGHTING
A215: STREET LIGHTING | B215: MONTHLY RATES AND CHARGES - Regulatory Component
A216: STREET LIGHTING
A217: STREET LIGHTING | B217: Wholesale Market Service Rate | D217: $/kWh | E217: 0.0044 | K217: 7_P_WMSR
A218: STREET LIGHTING | B218: Rural or Remote Electricity Rate Protection Charge (RRRP) | D218: $/kWh | E218: 0.0013 | K218: 7_P_RRPC
A219: STREET LIGHTING | B219: Standard Supply Service - Administrative Charge (if applicable) | D219: $ | E219: 0.25 | K219: 7_P_SSS
B221: MICROFIT SERVICE CLASSIFICATION
B223: This classification applies to an electricity generation facility contracted under the Ontario Power Authority’s microFIT program and connected to the distributor’s distribution system. Further servicing details are available in the distributor’s Conditions of Service. | L223: =ROUND(LEN(B223), -2) / 100 -> 3
B225: APPLICATION
B227: The application of these rates and charges shall be in accordance with the Licence of the Distributor and any Code or Order of the Board, and amendments thereto as approved by the Board, which may be applicable to the administration of this schedule | L227: =ROUND(LEN(B227), -2) / 100 -> 2
B229: No rates and charges for the distribution of electricity and charges to meet the costs of any work or service done or furnished for the purpose of the distribution of electricity shall be made except as permitted by this schedule, unless required by the Distributor’s Licence or a Code or Order of the Board, and amendments thereto as approved by the Board, or as specified herein | L229: =ROUND(LEN(B229), -2) / 100 -> 4
B231: Unless specifically noted, this schedule does not contain any charges for the electricity commodity, be it under the Regulated Price Plan, a contract with a retailer or the wholesale market price, as applicable | L231: =ROUND(LEN(B231), -2) / 100 -> 2
B233: It should be noted that this schedule does not list any charges, assessments or credits that are required by law to be invoiced by a distributor and that are not subject to Board approval, such as the Debt Retirement Charge, the Global Adjustment, the Ontario Clean Energy Benefit and the HST. | L233: =ROUND(LEN(B233), -2) / 100 -> 3
B235: MONTHLY RATES AND CHARGES - Delivery Component
A237: MICROFIT | B237: Service Charge | D237: $ | E237: 5.4 | K237: 8_P_MSC
A238: MICROFIT
B239: ALLOWANCES
A240: MICROFIT
B241: Transformer Allowance for Ownership - per kW of billing demand/month | D241: $/kW | E241: -0.6
B242: Primary Metering Allowance for transformer losses – applied to measured demand and energy | D242: % | E242: -1
B244: SPECIFIC SERVICE CHARGES
B246: The application of these rates and charges shall be in accordance with the Licence of the Distributor and any Code or Order of the Board, and amendments thereto as approved by the Board, which may be applicable to the administration of this schedule.
B248: No charges to meet the costs of any work or service done or furnished for the purpose of the distribution of electricity shall be made except as permitted by this schedule, unless required by the Distributor’s Licence or a Code or Order of the Board, and amendments thereto as approved by the Board, or as specified herein.
B250: It should be noted that this schedule does not list any charges, assessments, or credits that are required by law to be invoiced by a distributor and that are not subject to Board approval, such as the Debt Retirement Charge, the Global Adjustment, the Ontario Clean Energy Benefit and the HST.
B252: Customer Administration
B253: Notification charge | D253: $ | E253: 15
B254: Account History | D254: $ | E254: 15
B255: Returned cheque (plus bank charges) | D255: $ | E255: 15
B256: Legal letter charge | D256: $ | E256: 15
B257: Account set up charge/change of occupancy charge (plus credit agency costs if applicable) | D257: $ | E257: 30
B258: Special meter reads | D258: $ | E258: 30
B259: Meter dispute charge plus Measurement Canada fees (if meter found correct) | D259: $ | E259: 30
B262: Non-Payment of Account
B263: Late Payment – per month | D263: % | E263: 1.5
B264: Late Payment – per annum | D264: % | E264: 19.56
B265: Collection of account charge – no disconnection - during regular business hours | D265: $ | E265: 30
B266: Disconnect/Reconnect at meter – during regular hours | D266: $ | E266: 65
B267: Disconnect/Reconnect at meter – after regular hours | D267: $ | E267: 185
B268: Disconnect/Reconnect at pole – during regular hours | D268: $ | E268: 185
B269: Disconnect/Reconnect at pole – after regular hours | D269: $ | E269: 415
B271: Install/Remove load control device – during regular hours | D271: $ | E271: 65
B272: Interval Meter Load Management Tool Charge $/month | D272: $ | E272: 50
B273: Service call – customer owned equipment | D273: $ | E273: 30
B274: Service Call – Customer-owned Equipment – After Regular Hours | D274: $ | E274: 165
B275: Temporary Service – Install & remove – overhead – no transformer | D275: $ | E275: 500
B276: Specific Charge for Access to the Power Poles - $/pole/year | D276: $ | E276: 22.35
B278: RETAIL SERVICE CHARGES (if applicable)
B280: The application of these rates and charges shall be in accordance with the Licence of the Distributor and any Code or Order of the Board, and amendments thereto as approved by the Board, which may be applicable to the administration of this schedule.
B282: No rates and charges for the distribution of electricity and charges to meet the costs of any work or service done or furnished for the purpose of the distribution of electricity shall be made except as permitted by this schedule, unless required by the Distributor’s Licence or a Code or Order of the Board, and amendments thereto as approved by the Board, or as specified herein.
B284: Unless specifically noted, this schedule does not contain any charges for the electricity commodity, be it under the Regulated Price Plan, a contract with a retailer or the wholesale market price, as applicable.
B286: It should be noted that this schedule does not list any charges, assessments, or credits that are required by law to be invoiced by a distributor and that are not subject to Board approval, such as the Debt Retirement Charge, the Global Adjustment, the Ontario Clean Energy Benefit and the HST.
... 18 more rows

Sheet 14. Bill Impacts (hidden)
Z1: =MATCH(A13, '3. Rate Class Selection'!B19:B40,0) -> 1 | AA1: =VLOOKUP(A13, lists!AO:AP,2,0) -> kWh
A11: Choose a Rate Class from the drop-down menu below and click UPDATE. For Street Lighting and USL classes, please ensure that the number of customers is manually entered into cells B30 and B31. Click the UPDATE button to refresh the sheet.
A13: RESIDENTIAL | F13: =IF(ISERROR(SEARCH("MicroFit",A13,1))=FALSE,"Bill impact presentation for this class does not exist.", "") -> 
A15: Consumption | B15: =730*D15*B17 -> 3650000 | C15: kWh | D15: 10000 | E15: =IF(AA1 = "kWh", "", "kW") -> 
A16: RPP Tier One | B16: 600 | C16: kWh | E16: 1
A17: Load Factor | B17: 0.5
A18: Loss Factor | B18: 1
B21: CURRENT ESTIMATED BILL | E21: PROPOSED ESTIMATED BILL
B22: Volume | C22: Current Rate ($) | D22: Current Charge ($) | E22: Volume | F22: Proposed Rate ($) | G22: Proposed Charge ($) | I22: Change ($) | J22: Change (%) | K22: % of Total RPP Bill | L22: % of Total TOU Bill
A23: Energy First Tier (kWh) | B23: 3650000 | C23: 0.075 | D23: =B23*C23 -> 273750 | E23: =B23 -> 3650000 | F23: =C23 -> 0.075 | G23: =E23*F23 -> 273750 | I23: =G23-D23 -> 0 | J23: =I23/D23 -> 0 | K23: =G23/G48 -> 0.8646078577
A24: Energy Second Tier (kWh) | B24: 0 | C24: 0.088 | D24: =B24*C24 -> 0 | E24: =B24 -> 0 | F24: =C24 -> 0.088 | G24: =E24*F24 -> 0 | I24: =G24-D24 -> 0 | J24: 0 | K24: =G24/G48 -> 0
A26: TOU - Off Peak | B26: =0.64*$B$15*$B$18 -> 2336000 | C26: 0.065 | D26: =C26*B26 -> 151840 | E26: =B26 -> 2336000 | F26: =C26 -> 0.065 | G26: =F26*E26 -> 151840 | I26: =G26-D26 -> 0 | J26: =I26/D26 -> 0 | L26: =G26/G54 -> 0.449726096
A27: TOU - Mid Peak | B27: =0.18*$B$15*$B$18 -> 657000 | C27: 0.1 | D27: =C27*B27 -> 65700 | E27: =B27 -> 657000 | F27: =C27 -> 0.1 | G27: =F27*E27 -> 65700 | H27: =G27*F27 -> 6570 | I27: =G27-D27 -> 0 | J27: =I27/D27 -> 0 | L27: =G27/G54 -> 0.1945930223
A28: TOU - On Peak | B28: =0.18*$B$15*$B$18 -> 657000 | C28: 0.117 | D28: 76869 | F28: =C28 -> 0.117 | G28: =F28*E28 -> 0 | H28: =G28*F28 -> 0 | J28: =I28/D28 -> 0 | L28: =G28/G54 -> 0
A30: Service Charge | B30: 1 | D30: 0 | G30: =F30*E30 -> 0 | H30: 0 | J30: 0 | K30: 0 | L30: 0
A31: Service Charge Rate Rider(s) | B31: 1 | C31: 0 | D31: 0 | F31: 0 | G31: 0 | H31: 0 | J31: 0 | K31: 0 | L31: 0
A32: Distribution Volumetric Rate | B32: 10000 | D32: 0 | E32: =B32 -> 10000 | G32: 0 | H32: 0 | I32: =G32-D32 -> 0 | J32: 0 | K32: 0 | L32: 0
A33: Low Voltage Volumetric Rate | B33: 10000 | D33: 0 | G33: 0 | H33: 0 | J33: 0 | K33: 0 | L33: 0
A34: Distribution Volumetric Rate Rider(s) | B34: 10000 | C34: 0 | D34: 0 | F34: 1.2025 | G34: 0 | H34: 0 | J34: 0 | K34: =G34/G48 -> 0 | L34: =G34/G54 -> 0
A35: Total: Distribution | D35: =ROUND(SUM(D30:D34),2) -> 0 | G35: =ROUND(SUM(G30:G34),2) -> 0 | J35: 0 | K35: =G35/G48 -> 0 | L35: =G35/G54 -> 0
A36: Total: Retail Transmission
A37: Sub-Total: Delivery (Distribution and Retail Transmission) | D37: =SUM(D36,D35) -> 0 | G37: =SUM(G36,G35) -> 0 | J37: 0 | K37: =G37/G48 -> 0 | L37: =G37/G54 -> 0
A38: Wholesale Market Service Rate | B38: 3650000 | C38: 0 | D38: =B38*C38 -> 0 | F38: =C38 -> 0 | G38: =E38*F38 -> 0 | J38: 0 | K38: 0 | L38: 0
A39: Rural Rate Protection Charge | B39: 3650000 | C39: 0 | D39: =B39*C39 -> 0 | E39: 3650000 | F39: 0 | G39: =E39*F39 -> 0 | I39: =G39-D39 -> 0 | J39: 0 | K39: 0 | L39: 0
A40: Standard Supply Service – Administration Charge (if applicable) | B40: 1 | C40: 0 | D40: =B40*C40 -> 0 | E40: 1 | F40: 0 | G40: =E40*F40 -> 0 | I40: =G40-D40 -> 0 | J40: 0 | K40: 0 | L40: 0
A41: Sub-Total: Regulatory | D41: =SUM(D38:D40) -> 0 | G41: =SUM(G38:H40) -> 0 | I41: =G41-D41 -> 0 | J41: 0 | K41: 0 | L41: 0
A42: Debt Retirement Charge (DRC) | B42: 3650000 | C42: 0.007 | D42: =B42*C42 -> 25550 | E42: =B42 -> 3650000 | F42: =C42 -> 0.007 | G42: =E42*F42 -> 25550 | I42: =G42-D42 -> 0 | J42: =I42/D42 -> 0 | K42: =G42/G48 -> 0.08069673339 | L42: =G42/G54 -> 0.07567506422
A44: Total Bill on RPP (before taxes) | D44: 299300 | G44: 311325 | I44: =G44-D44 -> 12025 | J44: =I44/D44 -> 0.04017707985 | K44: =G44/G48 -> 0.9832841691
A45: HST | C45: 0.13 | D45: =C45*D44 -> 38909 | F45: =C45 -> 0.13 | G45: =F45*G44 -> 40472.25 | I45: =G45-D45 -> 1563.25 | J45: =I45/D45 -> 0.04017707985 | K45: =G45/G48 -> 0.127826942
A46: Total Bill (including HST) | D46: =D45+D44 -> 338209 | G46: =G45+G44 -> 351797.25 | I46: =G46-D46 -> 13588.25 | J46: =I46/D46 -> 0.04017707985 | K46: =G46/G48 -> 1.111111111
A47: Ontario Clean Energy Benefit (OCEB) | C47: -0.1 | D47: =-0.1*D46 -> -33820.9 | F47: =C47 -> -0.1 | G47: =-0.1*G46 -> -35179.725 | I47: =G47-D47 -> -1358.825 | J47: =I47/D47 -> 0.04017707985 | K47: =G47/G48 -> -0.1111111111
A48: Total Bill on RPP (including OCEB) | D48: =D46+D47 -> 304388.1 | G48: =G46+G47 -> 316617.525 | I48: =G48-D48 -> 12229.425 | J48: =I48/D48 -> 0.04017707985 | K48: =G48/G48 -> 1
A50: Total Bill on TOU (before taxes) | D50: 319959 | G50: 331984 | I50: =G50-D50 -> 12025 | J50: =I50/D50 -> 0.03758294031 | L50: =G50/G54 -> 0.9832841691
A51: HST | C51: 0.13 | D51: =C51*D50 -> 41594.67 | F51: =C51 -> 0.13 | G51: =F51*G50 -> 43157.92 | I51: =G51-D51 -> 1563.25 | J51: =I51/D51 -> 0.03758294031 | L51: =G51/G54 -> 0.127826942
A52: Total Bill (including HST) | D52: =D51+D50 -> 361553.67 | G52: =G51+G50 -> 375141.92 | I52: =G52-D52 -> 13588.25 | J52: =I52/D52 -> 0.03758294031 | L52: =G52/G54 -> 1.111111111
A53: Ontario Clean Energy Benefit (OCEB) | C53: -0.1 | D53: =-0.1*D52 -> -36155.367 | F53: =C53 -> -0.1 | G53: =-0.1*G52 -> -37514.192 | I53: =G53-D53 -> -1358.825 | J53: =I53/D53 -> 0.03758294031 | L53: =G53/G54 -> -0.1111111111
A54: Total Bill on TOU (including OCEB) | D54: =D52+D53 -> 325398.303 | G54: =G52+G53 -> 337627.728 | I54: =G54-D54 -> 12229.425 | J54: =I54/D54 -> 0.03758294031 | L54: =G54/G54 -> 1
A57: Applicants must provide bill impacts for residential at 800 kWh and GS<50kW at 2000 kWh. In addition, their filing should cover the range that is relevant to their service territory, class by class. A general guideline of consumption levels follows: Residential (kWh) - 100, 250, 500, 800, 1000, 1500, 2000 GS<50kW (kWh) - 1000, 2000, 5000, 10000, 15000 GS>50kW (kW) 100, 500, 1000 Large User - range appropriate for utility Street/Sentinel Lighting Classes and USL - 150 kWh and 1 kW, range appropriate for utility.

Sheet 28. Bill Impacts
S1: 1 | Z1: =MATCH(C14, '3. Rate Class Selection'!B19:B40,0) -> 7 | AA1: =VLOOKUP(C14, lists!AO:AP,2,0) -> kW
A14: Rate Class | C14: STREET LIGHTING
A16: Loss Factor | E16: 1.0716
A18: Consumption | C18: kWh | E18: 103806
A20: If Billed on a kW basis:
A21: Demand | C21: kW | E21: 158
E25: Current Board-Approved | I25: Proposed | M25: Impact
E26: Rate | F26: Volume | G26: Charge | I26: Rate | J26: Volume | K26: Charge | M26: $ Change | N26: % Change
E27: ($) | G27: ($) | I27: ($) | K27: ($)
A28: Monthly Service Charge | E28: 7.04 | F28: 1 | G28: =F28*E28 -> 7.04 | I28: 7.13 | J28: 1 | K28: =J28*I28 -> 7.13 | M28: =K28-G28 -> 0.09 | N28: =IF((G28)=0,"",(M28/G28)) -> 0.01278409091
A29: Distribution Volumetric Rate | E29: 7.8382 | F29: 158 | G29: =F29*E29 -> 1238.4356 | I29: 7.9362 | J29: =F29 -> 158 | K29: =J29*I29 -> 1253.9196 | M29: 15.484 | N29: 0.01250287056
A30: Fixed Rate Riders | E30: 0.34 | F30: 1 | G30: =F30*E30 -> 0.34 | I30: 0.34 | J30: 1 | K30: =J30*I30 -> 0.34 | M30: 0 | N30: 0
A31: Volumetric Rate Riders | E31: 0.3778 | F31: 158 | G31: =F31*E31 -> 59.6924 | I31: 0.3778 | J31: =F31 -> 158 | K31: =J31*I31 -> 59.6924 | M31: 0 | N31: 0
A32: Sub-Total A (excluding pass through) | G32: =SUM(G28:G31) -> 1305.508 | K32: =SUM(K28:K31) -> 1321.082 | M32: 15.574 | N32: 0.01192945581
A33: Line Losses on Cost of Power | E33: =E45*0.64+E46*0.18+E47*0.18 -> 0.08392 | F33: =E18*(E16-1) -> 7432.5096 | G33: =E33*F33 -> 623.7362056 | I33: =I45*0.64+I46*0.18+I47*0.18 -> 0.08392 | J33: =F33 -> 7432.5096 | K33: =I33*J33 -> 623.7362056 | M33: 0 | N33: 0
A34: Total Deferral/Variance Account Rate Riders | E34: -1.4567 | F34: 158 | G34: =F34*E34 -> -230.1586 | I34: 0 | J34: =F34 -> 158 | K34: =J34*I34 -> 0 | M34: 230.1586 | N34: -1
A35: Low Voltage Service Charge | E35: 0.4677 | F35: 158 | G35: =F35*E35 -> 73.8966 | I35: 0.4677 | J35: =F35 -> 158 | K35: =J35*I35 -> 73.8966 | M35: 0 | N35: 0
A36: Smart Meter Entity Charge | F36: 1 | G36: =F36*E36 -> 0 | J36: =F36 -> 1 | K36: =J36*I36 -> 0 | M36: 0
A37: Sub-Total B - Distribution (includes Sub-Total A) | G37: =SUM(G32:G36) -> 1772.982206 | K37: =SUM(K32:K36) -> 2018.714806 | M37: =K37-G37 -> 245.7326 | N37: =IF((G37)=0,"",(M37/G37)) -> 0.1385984581
A38: RTSR - Network | E38: 1.895 | F38: 158 | G38: =F38*E38 -> 299.41 | I38: 2.002 | J38: =F38 -> 158 | K38: =J38*I38 -> 316.316 | M38: 16.906 | N38: 0.05646437995
A39: RTSR - Connection and/or Line and Transformation Connection | E39: 1.0608 | F39: 158 | G39: =F39*E39 -> 167.6064 | I39: 1.1155 | J39: =F39 -> 158 | K39: =J39*I39 -> 176.249 | M39: 8.6426 | N39: 0.05156485671
A40: Sub-Total C - Delivery (including Sub-Total B) | G40: =SUM(G37:G39) -> 2239.998606 | K40: =SUM(K37:K39) -> 2511.279806 | M40: 271.2812 | N40: 0.121107754
A41: Wholesale Market Service Charge (WMSC) | E41: 0.0044 | F41: =E18*E16 -> 111238.5096 | G41: =F41*E41 -> 489.4494422 | I41: 0.0044 | J41: =E18*E16 -> 111238.5096 | K41: =J41*I41 -> 489.4494422 | M41: 0 | N41: 0
A42: Rural and Remote Rate Protection (RRRP) | E42: 0.0013 | F42: =E18*E16 -> 111238.5096 | G42: 144.6100625 | I42: 0.0013 | J42: =E18*E16 -> 111238.5096 | K42: 144.6100625 | M42: 0 | N42: 0
A43: Standard Supply Service Charge | E43: 0.25 | F43: 1 | G43: 0.25 | I43: 0.25 | J43: 1 | K43: 0.25 | M43: 0 | N43: 0
A44: Debt Retirement Charge (DRC) | E44: 0.007 | F44: =E18 -> 103806 | G44: 726.642 | I44: 0.007 | J44: =E18 -> 103806 | K44: 726.642 | M44: 0 | N44: 0
A45: TOU - Off Peak | E45: 0.067 | F45: 66435.84 | G45: 4451.20128 | I45: 0.067 | J45: =F45 -> 66435.84 | K45: 4451.20128 | M45: 0 | N45: 0
A46: TOU - Mid Peak | E46: 0.104 | F46: 18685.08 | G46: 1943.24832 | I46: 0.104 | J46: =F46 -> 18685.08 | K46: 1943.24832 | M46: 0 | N46: 0
A47: TOU - On Peak | E47: 0.124 | F47: 18685.08 | G47: 2316.94992 | I47: 0.124 | J47: =F47 -> 18685.08 | K47: 2316.94992 | M47: 0 | N47: 0
A49: Total Bill on TOU (before Taxes) | G49: =SUM(G40:G44,G45:G47) -> 12312.34963 | K49: =SUM(K40:K44,K45:K47) -> 12583.63083 | M49: =K49-G49 -> 271.2812 | N49: =IF((G49)=0,"",(M49/G49)) -> 0.02203325995
A50: HST | E50: 0.13 | G50: =G49*E50 -> 1600.605452 | I50: 0.13 | K50: =K49*I50 -> 1635.872008 | M50: 35.266556 | N50: 0.02203325995
A51: Total Bill (including HST) | G51: =G49+G50 -> 13912.95508 | K51: =K49+K50 -> 14219.50284 | M51: 306.547756 | N51: 0.02203325995
A52: Ontario Clean Energy Benefit 1 | G52: =ROUND(-G51*10%,2) -> -1391.3 | K52: =ROUND(-K51*10%,2) -> -1421.95 | M52: -30.65 | N52: 0.02202975634
A53: Total Bill on TOU (including OCEB) | G53: =G51+G52 -> 12521.65508 | K53: =K51+K52 -> 12797.55284 | M53: 275.897756 | N53: 0.02203364924
A58: Note: For distributors who have a majority of customers on Tiered pricing, please provide a separate bill impact for such customers.

Sheet lists (hidden)
A1: DISTRIBUTED GENERATION [DGEN] | B1: Embedded Distributor | C1: =COUNTA(B1:B17) -> 4 | I1: A Standby Service Charge will be applied for a month where standby power is not provided. The applicable rate is the approved Distribution Volumetric Rate of the applicable service class and is applied to gross metered demand or contracted amount, whichever is greater. A monthly administration charge of $200, for simple metering arrangements, or $500, for complex metering arrangements, will also be applied. | L1: Loss Factors | N1: Units | O1: Units1 | P1: Units2 | Z1: Account History | AA1: Account set up charge/change of occupancy charge (plus credit agency costs if applicable) | AB1: Total Loss Factor – Embedded Distributor – Hydro One Networks Inc. | AL1: Algoma Power Inc. | AM1: Algoma Power Inc. | AO1: DISTRIBUTED GENERATION [DGEN] | AP1: kW | AT1: Sub-Total: Delivery (Distribution and Retail Transmission)
A2: EMBEDDED DISTRIBUTOR | B2: General Service 3,000 to 4,999 kW | I2: Distribution Volumetric Rate | L2: Total Loss Factor – Primary Metered Customer | N2: $ | O2: $/kWh | P2: $ | Z2: Account set up charge/change of occupancy charge | AA2: Administrative Billing Charge | AB2: Total Loss Factor – Primary Metered Customer | AL2: Atikokan Hydro Inc. | AM2: Atikokan Hydro Inc. | AO2: EMBEDDED DISTRIBUTOR | AP2: kW | AT2: Wholesale Market Service Rate | AW2: =AU2*AV2 -> 0 | AX2: =AU2 -> 0 | AY2: 0 | AZ2: =AX2*AY2 -> 0 | BB2: =AZ2-AW2 -> 0 | BC2: =BB2/AW2 -> 
A3: EMBEDDED DISTRIBUTOR | B3: General Service 1,000 to 4,999 kW | I3: Distribution Volumetric Rate - $/kW of contracted amount | L3: Total Loss Factor – Primary Metered Customer < 5,000 kW | N3: $/kWh | O3: $/kW | P3: % | W3: MSC | Z3: Account set up charge/change of occupancy charge (plus credit agency costs if applicable – Residential) | AA3: Bell Canada Pole Rentals | AB3: Total Loss Factor – Primary Metered Customer < 5,000 kW | AL3: Bluewater Power Distribution Corporation | AM3: Bluewater Power Distribution Corporation | AO3: EMBEDDED DISTRIBUTOR | AP3: kW | AT3: Rural or Remote Electricity Rate Protection Charge (RRRP) | AW3: =AU3*AV3 -> 0 | AX3: 0 | AY3: 0 | AZ3: =AX3*AY3 -> 0 | BB3: =AZ3-AW3 -> 0 | BC3: =BB3/AW3 -> 
A4: FARMS - SINGLE PHASE ENERGY-BILLED [F1] | B4: General Service Equal To Or Greater Than 1,500 kW - Interval Metered | I4: Distribution Wheeling Service Rate | L4: Total Loss Factor – Primary Metered Customer > 5,000 kW | N4: $/kW | O4: $/kVA | W4: SM_Rate_Adder | Z4: Account set up charge/change of occupancy charge (plus credit agency costs if applicable) | AA4: Clearance Pole Attachment charge $/pole/year | AB4: Total Loss Factor – Primary Metered Customer > 5,000 kW | AL4: Brant County Power Inc. | AM4: Brant County Power Inc. | AO4: FARMS - SINGLE PHASE ENERGY-BILLED [F1] | AP4: kWh | AT4: Standard Supply Service – Administration Charge (if applicable) | AW4: =AU4*AV4 -> 0 | AX4: 0 | AY4: 0 | AZ4: =AX4*AY4 -> 0 | BB4: =AZ4-AW4 -> 0 | BC4: =BB4/AW4 -> 
A5: FARMS - THREE PHASE ENERGY-BILLED [F3] | I5: Electricity Rate | L5: Total Loss Factor – Secondary Metered Customer | N5: $/kVA | W5: MSC_Rate_Rider_ | Z5: Arrears certificate | AA5: Collection of account charge – no disconnection | AB5: Total Loss Factor – Secondary Metered Customer | AL5: Brantford Power Inc. | AM5: Brantford Power Inc. | AO5: FARMS - THREE PHASE ENERGY-BILLED [F3] | AP5: kWh | AT5: Sub-Total: Regulatory | AW5: =SUM(AW2:AW4) -> 0 | AZ5: =SUM(AZ2:BA4) -> 0 | BB5: =AZ5-AW5 -> 0 | BC5: =BB5/AW5 -> 
A6: GENERAL SERVICE - COMMERCIAL | I6: Electricity Rate - All Additional kWh | L6: Total Loss Factor – Secondary Metered Customer < 5,000 kW | W6: VC | Z6: Arrears certificate (credit reference) | AA6: Collection of account charge – no disconnection – after regular hours | AB6: Total Loss Factor – Secondary Metered Customer < 5,000 kW | AL6: Burlington Hydro Inc. | AM6: Burlington Hydro Inc. | AO6: GENERAL SERVICE - COMMERCIAL | AP6: kW | AT6: Debt Retirement Charge (DRC) | AW6: =AU6*AV6 -> 0 | AX6: =AU6 -> 0 | AY6: =AV6 -> 0 | AZ6: =AX6*AY6 -> 0 | BB6: =AZ6-AW6 -> 0 | BC6: =BB6/AW6 -> 
A7: GENERAL SERVICE - INSTITUTIONAL | I7: Electricity Rate - First 250 kWh | AL7: Cambridge and North Dumfries Hydro Inc. | AM7: Cambridge and North Dumfries Hydro Inc. | AO7: GENERAL SERVICE - INSTITUTIONAL | AP7: kW
A8: GENERAL SERVICE 1,000 TO 2,999 KW | I8: Electricity Rate -All Additional kWh | L8: Total Loss Factor – Secondary Metered Customer > 5,000 kW | W8: VC_Rate_Rider_ | Z8: Charge to certify cheque | AA8: Collection of account charge – no disconnection - during regular business hours | AB8: Total Loss Factor – Secondary Metered Customer > 5,000 kW | AL8: Canadian Niagara Power Inc. | AM8: Canadian Niagara Power Inc. | AO8: GENERAL SERVICE 1,000 TO 2,999 KW | AP8: kW | AT8: Total Bill on RPP (before taxes) | BB8: =AZ8-AW8 -> 0
A9: GENERAL SERVICE 1,000 TO 4,999 KW | I9: Electricity Rate First 1,000 kWh | L9: Distribution Loss Factor - Secondary Metered Customer < 5,000 kW | W9: VC_GA_Rate_Rider_kW_ | Z9: Collection of Account Charge – No Disconnection | AA9: Collection of account charge – no disconnection – during regular hours | AL9: Centre Wellington Hydro Ltd. | AM9: Centre Wellington Hydro Ltd. | AO9: GENERAL SERVICE 1,000 TO 4,999 KW | AP9: kW | AT9: HST | AW9: =AV9*AW8 -> 0 | AY9: =AV9 -> 0 | AZ9: =AY9*AZ8 -> 0 | BB9: =AZ9-AW9 -> 0 | BC9: =BB9/AW9 -> 
A10: GENERAL SERVICE 1,000 TO 4,999 KW - INTERVAL METERS | I10: Electricity Rate First 25,000 kWh | L10: Distribution Loss Factor - Secondary Metered Customer > 5,000 kW | W10: VC_LV_Rate | Z10: Credit Card Convenience Charge | AA10: Collection/Disconnection/Load Limiter/Reconnection – if in Community | AL10: Chapleau Public Utilities Corporation | AM10: Chapleau Public Utilities Corporation | AO10: GENERAL SERVICE 1,000 TO 4,999 KW - INTERVAL METERS | AP10: kW | AT10: Total Bill (including HST) | AW10: =AW9+AW8 -> 0 | AZ10: =AZ9+AZ8 -> 0 | BB10: =AZ10-AW10 -> 0 | BC10: =BB10/AW10 -> 
A11: GENERAL SERVICE 1,000 TO 4,999 KW (CO-GENERATION) | I11: Electricity Rate First 6,000 kWh | L11: Distribution Loss Factor - Primary Metered Customer < 5,000 kW | W11: RTSR_Network | Z11: Credit check (plus credit agency costs) | AA11: Credit Card Convenience Charge | AL11: Collus PowerStream Corporation | AM11: Collus PowerStream Corporation | AO11: GENERAL SERVICE 1,000 TO 4,999 KW (CO-GENERATION) | AP11: kW | AT11: Ontario Clean Energy Benefit (OCEB) | AW11: =-0.1*AW10 -> 0 | AY11: =AV11 -> 0 | AZ11: =-0.1*AZ10 -> 0 | BB11: =AZ11-AW11 -> 0 | BC11: =BB11/AW11 -> 
A12: GENERAL SERVICE 1,500 TO 4,999 KW | I12: Electricity Rate Next 1,500 kWh | L12: Distribution Loss Factor - Primary Metered Customer > 5,000 kW | W12: RTSR_Connection | Z12: Credit reference Letter | AA12: Disconnect/Reconnect at meter – after regular hours | AL12: Cooperative Hydro Embrun Inc. | AM12: Cooperative Hydro Embrun Inc. | AO12: GENERAL SERVICE 1,500 TO 4,999 KW | AP12: kW | AT12: Total Bill on RPP (including OCEB) | AW12: =AW10+AW11 -> 0 | AZ12: =AZ10+AZ11 -> 0 | BB12: =AZ12-AW12 -> 0 | BC12: =BB12/AW12 -> 
A13: GENERAL SERVICE 2,500 TO 4,999 KW | I13: General Service 1,500 to 4,999 kW customer | AL13: E.L.K. Energy Inc. | AM13: E.L.K. Energy Inc. | AO13: GENERAL SERVICE 2,500 TO 4,999 KW | AP13: kW
A14: GENERAL SERVICE 3,000 TO 4,999 KW | I14: General Service 50 to 1,499 kW customer | L14: Total Loss Factor - Embedded Distributor | W14: RTSR_Network_Interval | Z14: Credit reference/credit check (plus credit agency costs – General Service) | AA14: Disconnect/Reconnect at meter – during regular hours | AL14: Enersource Hydro Mississauga Inc. | AM14: Enersource Hydro Mississauga Inc. | AO14: GENERAL SERVICE 3,000 TO 4,999 KW | AP14: kW | AT14: Total Bill on TOU (before taxes) | BB14: =AZ14-AW14 -> 0
A15: GENERAL SERVICE 3,000 TO 4,999 KW - INTERMEDIATE USE | I15: General Service Large Use customer | L15: Total Loss Factor – Embedded Distributor – Hydro One Networks Inc. | W15: RTSR_Connection_Interval | Z15: Credit Reference/credit check (plus credit agency costs) | AA15: Disconnect/Reconnect at pole – after regular hours | AL15: Entegrus Powerlines Inc. | AM15: Entegrus Powerlines Inc. | AO15: GENERAL SERVICE 3,000 TO 4,999 KW - INTERMEDIATE USE | AP15: kW | AT15: HST | AW15: =AV15*AW14 -> 0 | AY15: =AV15 -> 0 | AZ15: =AY15*AZ14 -> 0 | BB15: =AZ15-AW15 -> 0 | BC15: =BB15/AW15 -> 
A16: GENERAL SERVICE 3,000 TO 4,999 KW - INTERVAL METERED | I16: Green Energy Act Initiatives Funding Adder - effective until the date of the next cost of service-based rate order | W16: RTSR_Network_Interval_GR1000kW | Z16: Dispute Test – Commercial self contained -- MC | AA16: Disconnect/Reconnect at pole – during regular hours | AL16: Entegrus Powerlines Inc. - Dutton Service Area | AM16: Entegrus Powerlines Inc. - Dutton Service Area | AO16: GENERAL SERVICE 3,000 TO 4,999 KW - INTERVAL METERED | AP16: kW | AT16: Total Bill (including HST) | AW16: =AW15+AW14 -> 0 | AZ16: =AZ15+AZ14 -> 0 | BB16: =AZ16-AW16 -> 0 | BC16: =BB16/AW16 -> 
A17: GENERAL SERVICE 3,000 TO 4,999 KW - TIME OF USE | I17: Green Energy Act Plan Funding Adder | W17: RTSR_Connection_Interval_GR1000kW | Z17: Dispute Test – Commercial TT -- MC | AA17: Disconnect/Reconnect Charge – At Meter – After Hours | AL17: Entegrus Powerlines Inc. - former Chatham-Kent Hydro Service Area | AM17: Entegrus Powerlines Inc. - former Chatham-Kent Hydro Service Area | AO17: GENERAL SERVICE 3,000 TO 4,999 KW - TIME OF USE | AP17: kW | AT17: Ontario Clean Energy Benefit (OCEB) | AW17: =-0.1*AW16 -> 0 | AY17: =AV17 -> 0 | AZ17: =-0.1*AZ16 -> 0 | BB17: =AZ17-AW17 -> 0 | BC17: =BB17/AW17 -> 
A18: GENERAL SERVICE 50 TO 1,000 KW | I18: Green Energy Act Plan Funding Adder - effective April 1, 2013 until March 31, 2014 | W18: RTSR_Line_Connection | Z18: Dispute Test – Residential | AA18: Disconnect/Reconnect Charge – At Meter – During Regular Hours | AL18: Entegrus Powerlines Inc. - Newbury Service Area | AM18: Entegrus Powerlines Inc. - Newbury Service Area | AO18: GENERAL SERVICE 50 TO 1,000 KW | AP18: kW | AT18: Total Bill on TOU (including OCEB) | AW18: =AW16+AW17 -> 0 | AZ18: =AZ16+AZ17 -> 0 | BB18: =AZ18-AW18 -> 0 | BC18: =BB18/AW18 -> 
A19: GENERAL SERVICE 50 TO 1,000 KW - INTERVAL METERS | I19: Green Energy Act Plan Funding Adder - effective April 1, 2014 until March 31, 2015 | W19: RTSR_Transformer_Connection | Z19: Duplicate Invoices for previous billing | AA19: Disconnect/Reconnect Charge – At Pole – After Hours | AL19: Entegrus Powerlines Inc. - Strathroy, Mount Brydges and Parkhill Service Areas | AM19: Entegrus Powerlines Inc. - Strathroy, Mount Brydges and Parkhill Service Areas | AO19: GENERAL SERVICE 50 TO 1,000 KW - INTERVAL METERS | AP19: kW
A20: GENERAL SERVICE 50 TO 1,000 KW - NON INTERVAL METERS | I20: ICM Rate Rider (2014) - in effect until the effective date of the next cost of service rates | W20: WMSR | Z20: Easement Letter | AA20: Disconnect/Reconnect Charge – At Pole – During Regular Hours | AL20: ENWIN Utilities Ltd. | AM20: ENWIN Utilities Ltd. | AO20: GENERAL SERVICE 50 TO 1,000 KW - NON INTERVAL METERS | AP20: kW
A21: GENERAL SERVICE 50 TO 1,499 KW | I21: Low Voltage Service Charge | W21: RRRP | Z21: Income Tax Letter | AA21: Disconnect/Reconnect Charges for non payment of account - At Meter After Hours | AL21: Erie Thames Powerlines Corporation | AM21: Erie Thames Powerlines Corporation | AO21: GENERAL SERVICE 50 TO 1,499 KW | AP21: kW
A22: GENERAL SERVICE 50 TO 1,499 KW - INTERVAL METERED | I22: Low Voltage Service Rate | W22: SPC | Z22: Interval Meter Interrogation | AA22: Disconnect/Reconnect charges for non payment of account – at meter after regular hours | AL22: Espanola Regional Hydro Distribution Corporation | AM22: Espanola Regional Hydro Distribution Corporation | AO22: GENERAL SERVICE 50 TO 1,499 KW - INTERVAL METERED | AP22: kW
A23: GENERAL SERVICE 50 TO 2,499 KW | I23: Low Voltage Volumetric Rate | W23: DRC | Z23: Interval meter request change | AA23: Disconnect/Reconnect Charges for non payment of account - At Meter During Regular Hours | AL23: Essex Powerlines Corporation | AM23: Essex Powerlines Corporation | AO23: GENERAL SERVICE 50 TO 2,499 KW | AP23: kW
A24: GENERAL SERVICE 50 TO 2,999 KW | I24: LRAM Rate Rider - Effective Until April 30, 2015 | W24: SSS | Z24: Legal letter | AA24: Disconnect/Reconnect charges for non payment of account – at meter during regular hours | AL24: Festival Hydro Inc. | AM24: Festival Hydro Inc. | AO24: GENERAL SERVICE 50 TO 2,999 KW | AP24: kW
A25: GENERAL SERVICE 50 TO 2,999 KW - INTERVAL METERED | I25: Minimum Distribution Charge - per KW of maximum billing demand in the previous 11 months | W25: SFLF | Z25: Legal letter charge | AA25: Disconnect/Reconnect charges for non payment of account – at pole after regular hours | AL25: Fort Frances Power Corporation | AM25: Fort Frances Power Corporation | AO25: GENERAL SERVICE 50 TO 2,999 KW - INTERVAL METERED | AP25: kW
A26: GENERAL SERVICE 50 TO 2,999 KW - TIME OF USE | B26: January | I26: Monthly Distribution Wheeling Service Rate - Dedicated LV Line | W26: DLF_Secondary_LT_5000kW | Z26: Meter dispute charge plus Measurement Canada fees (if meter found correct) | AA26: Disconnect/Reconnect charges for non payment of account – at pole during regular hours | AL26: Greater Sudbury Hydro Inc. | AM26: Greater Sudbury Hydro Inc. | AO26: GENERAL SERVICE 50 TO 2,999 KW - TIME OF USE | AP26: kW
A27: GENERAL SERVICE 50 TO 4,999 KW | B27: February | I27: Monthly Distribution Wheeling Service Rate - Hydro One Networks | W27: DLF_Secondary_GT_5000kW | Z27: Notification charge | AA27: Disconnect/Reconnection for >300 volts - after regular hours | AL27: Grimsby Power Inc. | AM27: Grimsby Power Inc. | AO27: GENERAL SERVICE 50 TO 4,999 KW | AP27: kW
A28: GENERAL SERVICE 50 TO 4,999 KW - INTERVAL METERED | B28: March | I28: Monthly Distribution Wheeling Service Rate - Shared LV Line | W28: DLF_Primary_LT_5000kW | Z28: Pulling Post Dated Cheques | AA28: Disconnect/Reconnection for >300 volts - during regular hours | AL28: Guelph Hydro Electric Systems Inc. | AM28: Guelph Hydro Electric Systems Inc. | AO28: GENERAL SERVICE 50 TO 4,999 KW - INTERVAL METERED | AP28: kW
A29: GENERAL SERVICE 50 TO 4,999 KW - TIME OF USE | B29: April | I29: Monthly Distribution Wheeling Service Rate - Waterloo North Hydro | W29: DLF_Primary_GT_5000kW | Z29: Request for other billing information | AA29: Disposal of Concrete Poles | AL29: Haldimand County Hydro Inc. | AM29: Haldimand County Hydro Inc. | AO29: GENERAL SERVICE 50 TO 4,999 KW - TIME OF USE | AP29: kW
A30: GENERAL SERVICE 50 TO 4,999 KW (COGENERATION) | B30: May | I30: Rate Rider for Application of Tax Change - effective until April 30, 2015 | W30: TLF_Secondary_LT_5000kW | Z30: Returned cheque (plus bank charges) | AA30: Dispute Test – Commercial TT -- MC | AL30: Halton Hills Hydro Inc. | AM30: Halton Hills Hydro Inc. | AO30: GENERAL SERVICE 50 TO 4,999 KW (COGENERATION) | AP30: kW
A31: GENERAL SERVICE 50 TO 4,999 KW (FORMERLY TIME OF USE) | B31: June | I31: Rate Rider for Application of Tax Change - effective until December 31, 2014 | W31: TLF_Secondary_GT_5000kW | Z31: Returned cheque charge (plus bank charges) | AA31: Install/Remove load control device – after regular hours | AL31: Hearst Power Distribution Company Limited | AM31: Hearst Power Distribution Company Limited | AO31: GENERAL SERVICE 50 TO 4,999 KW (FORMERLY TIME OF USE) | AP31: kW
A32: GENERAL SERVICE 50 TO 499 KW | B32: July | I32: Rate Rider for Application of Tax Change (2014) - effective until April 30, 2015 | W32: TLF_Primary_LT_5000kW | Z32: Special Billing Service (aggregation) | AA32: Install/Remove load control device – during regular hours | AL32: Horizon Utilities Corporation | AM32: Horizon Utilities Corporation | AO32: GENERAL SERVICE 50 TO 499 KW | AP32: kW
A33: GENERAL SERVICE 50 TO 699 KW | B33: August | I33: Rate Rider for Application of Tax Change (per connection) - effective until April 30, 2015 | W33: TLF_Primary_GT_5000kW | Z33: Special Billing Service (sub-metering charge per meter) | AA33: Interval Meter Interrogation | AL33: Hydro 2000 Inc. | AM33: Hydro 2000 Inc. | AO33: GENERAL SERVICE 50 TO 699 KW | AP33: kW
A34: GENERAL SERVICE 50 TO 999 KW | B34: September | I34: Rate Rider for CGAAP Accounting Changes (2013) - effective until April 30, 2017 | W34: TLF_EmbeddedDistributor | Z34: Special meter reads | AA34: Interval Meter Load Management Tool Charge $/month | AL34: Hydro Hawkesbury Inc. | AM34: Hydro Hawkesbury Inc. | AO34: GENERAL SERVICE 50 TO 999 KW | AP34: kW
A35: GENERAL SERVICE 50 TO 999 KW - INTERVAL METERED | B35: October | I35: Rate Rider for Deferral/Variance Account (2012) - effective unitl April 30, 2016 | Z35: Statement of Account | AA35: Interval meter request change | AL35: Hydro One Brampton Networks Inc. | AM35: Hydro One Brampton Networks Inc. | AO35: GENERAL SERVICE 50 TO 999 KW - INTERVAL METERED | AP35: kW
A36: GENERAL SERVICE 500 TO 4,999 KW | B36: November | I36: Rate Rider for Deferral/Variance Account Disposition – effective until April 30, 2015 | Z36: Unprocessed Payment Charge (plus bank charges) | AA36: Late Payment – per annum | AL36: Hydro One Networks Inc. | AM36: Hydro One Networks Inc. | AO36: GENERAL SERVICE 500 TO 4,999 KW | AP36: kW
A37: GENERAL SERVICE 700 TO 4,999 KW | B37: December | I37: Rate Rider for Deferral/Variance Account Disposition (2012) - effective until April 30, 2016 | AA37: Late Payment – per month | AL37: Hydro Ottawa Limited | AM37: Hydro Ottawa Limited | AO37: GENERAL SERVICE 700 TO 4,999 KW | AP37: kW
A38: GENERAL SERVICE DEMAND BILLED (50 KW AND ABOVE) [GSD] | I38: Rate Rider for Deferral/Variance Account Disposition (2013) - effective until April 30, 2014 | AA38: Layout fees | AL38: Innisfil Hydro Distribution Systems Limited | AM38: Innisfil Hydro Distribution Systems Limited | AO38: GENERAL SERVICE DEMAND BILLED (50 KW AND ABOVE) [GSD] | AP38: kW
A39: GENERAL SERVICE ENERGY BILLED (LESS THAN 50 KW) [GSE-METERED] | I39: Rate Rider for Deferral/Variance Account Disposition (2014) - effective until April 28, 2016 | AA39: Meter dispute charge plus Measurement Canada fees (if meter found correct) | AL39: Kenora Hydro Electric Corporation Ltd. | AM39: Kenora Hydro Electric Corporation Ltd. | AO39: GENERAL SERVICE ENERGY BILLED (LESS THAN 50 KW) [GSE-METERED] | AP39: kWh
A40: GENERAL SERVICE ENERGY BILLED (LESS THAN TO 50 KW) [GSE-UNMETERED] | I40: Rate Rider for Deferral/Variance Account Disposition (2014) - effective until April 30, 2015 | AA40: Meter Interrogation Charge | AL40: Kingston Hydro Corporation | AM40: Kingston Hydro Corporation | AO40: GENERAL SERVICE ENERGY BILLED (LESS THAN TO 50 KW) [GSE-UNMETERED] | AP40: kWh
A41: GENERAL SERVICE EQUAL TO OR GREATER THAN 1,500 KW | I41: Rate Rider for Deferral/Variance Account Disposition (2014) - effective until December 31, 2014 | AA41: Missed Service Appointment | AL41: Kitchener-Wilmot Hydro Inc. | AM41: Kitchener-Wilmot Hydro Inc. | AO41: GENERAL SERVICE EQUAL TO OR GREATER THAN 1,500 KW | AP41: kW
A42: GENERAL SERVICE EQUAL TO OR GREATER THAN 1,500 KW - INTERVAL METERED | I42: Rate Rider for Deferral/Variance Account Disposition (2014) - effective until December 31, 2015 | AA42: Norfolk Pole Rentals – Billed | AL42: Lakefront Utilities Inc. | AM42: Lakefront Utilities Inc. | AO42: GENERAL SERVICE EQUAL TO OR GREATER THAN 1,500 KW - INTERVAL METERED | AP42: kW
A43: GENERAL SERVICE GREATER THAN 1,000 KW | I43: Rate Rider for Deferral/Variance Account Dispositon (2012) - effective until April 30, 2016 | AA43: Optional Interval/TOU Meter charge $/month | AL43: Lakeland Power Distribution Ltd. | AM43: Lakeland Power Distribution Ltd. | AO43: GENERAL SERVICE GREATER THAN 1,000 KW | AP43: kW
A44: GENERAL SERVICE GREATER THAN 50 kW - WMP | I44: Rate Rider for Disposition of Accounting Changes Under CGAAP Account 1576 - effective until April 30, 2016 | AA44: Overtime Locate | AL44: London Hydro Inc. | AM44: London Hydro Inc. | AO44: GENERAL SERVICE GREATER THAN 50 kW - WMP | AP44: kW
A45: GENERAL SERVICE INTERMEDIATE 1,000 TO 4,999 KW | I45: Rate Rider for Disposition of Deferral/Variance Accounts (2010) - effective until December 31, 2014 | AA45: Owner Requested Disconnection/Reconnection – after regular hours | AL45: Midland Power Utility Corporation | AM45: Midland Power Utility Corporation | AO45: GENERAL SERVICE INTERMEDIATE 1,000 TO 4,999 KW | AP45: kW
A46: GENERAL SERVICE INTERMEDIATE RATE CLASS 1,000 TO 4,999 KW (FORMERLY GENERAL SERVICE > 50 KW CUSTOMERS) | I46: Rate Rider for Disposition of Deferral/Variance Accounts (2011) - effective until April 30, 2015 | AA46: Owner Requested Disconnection/Reconnection – during regular hours | AL46: Milton Hydro Distribution Inc. | AM46: Milton Hydro Distribution Inc. | AO46: GENERAL SERVICE INTERMEDIATE RATE CLASS 1,000 TO 4,999 KW (FORMERLY GENERAL SERVICE > 50 KW CUSTOMERS) | AP46: kW
A47: GENERAL SERVICE INTERMEDIATE RATE CLASS 1,000 TO 4,999 KW (FORMERLY LARGE USE CUSTOMERS) | I47: Rate Rider for Disposition of Deferral/Variance Accounts (2011) - effective until April 30, 2016 | AA47: Returned cheque (plus bank charges) | AL47: Newmarket - Tay Power Distribution Ltd. | AM47: Newmarket - Tay Power Distribution Ltd. | AO47: GENERAL SERVICE INTERMEDIATE RATE CLASS 1,000 TO 4,999 KW (FORMERLY LARGE USE CUSTOMERS) | AP47: kW
A48: GENERAL SERVICE LESS THAN 50 KW | I48: Rate Rider for Disposition of Deferral/Variance Accounts (2012) - effective until April 30, 2014 | AA48: Rural system expansion / line connection fee | AL48: Niagara Peninsula Energy Inc. | AM48: Niagara Peninsula Energy Inc. | AO48: GENERAL SERVICE LESS THAN 50 KW | AP48: kWh
A49: GENERAL SERVICE LESS THAN 50 KW - SINGLE PHASE ENERGY-BILLED [G1] | I49: Rate Rider for Disposition of Deferral/Variance Accounts (2012) - effective until April 30, 2015 | AA49: Same Day Open Trench | AL49: Niagara-on-the-Lake Hydro Inc. | AM49: Niagara-on-the-Lake Hydro Inc. | AO49: GENERAL SERVICE LESS THAN 50 KW - SINGLE PHASE ENERGY-BILLED [G1] | AP49: kWh
A50: GENERAL SERVICE LESS THAN 50 KW - THREE PHASE ENERGY-BILLED [G3] | I50: Rate Rider for Disposition of Deferral/Variance Accounts (2012) - effective until April 30, 2016 | AA50: Scheduled Day Open Trench | AL50: Norfolk Power Distribution Inc. | AM50: Norfolk Power Distribution Inc. | AO50: GENERAL SERVICE LESS THAN 50 KW - THREE PHASE ENERGY-BILLED [G3] | AP50: kWh
A51: GENERAL SERVICE LESS THAN 50 KW - TRANSMISSION CLASS ENERGY-BILLED [T] | I51: Rate Rider for Disposition of Deferral/Variance Accounts (2012) - effective until August 31, 2014 | AA51: Service call – after regular hours | AL51: North Bay Hydro Distribution Limited | AM51: North Bay Hydro Distribution Limited | AO51: GENERAL SERVICE LESS THAN 50 KW - TRANSMISSION CLASS ENERGY-BILLED [T] | AP51: kWh
A52: GENERAL SERVICE LESS THAN 50 KW - URBAN ENERGY-BILLED [UG] | I52: Rate Rider for Disposition of Deferral/Variance Accounts (2012) - effective until December 31, 2015 | AA52: Service call – customer owned equipment | AL52: Northern Ontario Wires Inc. | AM52: Northern Ontario Wires Inc. | AO52: GENERAL SERVICE LESS THAN 50 KW - URBAN ENERGY-BILLED [UG] | AP52: kWh
A53: GENERAL SERVICE SINGLE PHASE - G1 | I53: Rate Rider for Disposition of Deferral/Variance Accounts (2012) - effective until December 31, 2016 Applicable only in the former service area of Clinton Power | AA53: Service Call – Customer-owned Equipment – After Regular Hours | AL53: Oakville Hydro Electricity Distribution Inc. | AM53: Oakville Hydro Electricity Distribution Inc. | AO53: GENERAL SERVICE SINGLE PHASE - G1 | AP53: kW
A54: GENERAL SERVICE THREE PHASE - G3 | I54: Rate Rider for Disposition of Deferral/Variance Accounts (2012) – effective until December 31, 2016 Applicable only in the former service area of Clinton Power | AA54: Service Call – Customer-owned Equipment – During Regular Hours | AL54: Orangeville Hydro Limited | AM54: Orangeville Hydro Limited | AO54: GENERAL SERVICE THREE PHASE - G3 | AP54: kW
A55: INTERMEDIATE USERS | I55: Rate Rider for Disposition of Deferral/Variance Accounts (2012) - effective until January 31, 2014 | AA55: Service Charge for onsite interrogation of interval meter due to customer phone line failure - required weekly until line repaired $ 6 | AL55: Orillia Power Distribution Corporation | AM55: Orillia Power Distribution Corporation | AO55: INTERMEDIATE USERS | AP55: kW
A56: INTERMEDIATE WITH SELF GENERATION | I56: Rate Rider for Disposition of Deferral/Variance Accounts (2012) - effective until June 30, 2014 | AA56: Service Layout - Commercial | AL56: Oshawa PUC Networks Inc. | AM56: Oshawa PUC Networks Inc. | AO56: INTERMEDIATE WITH SELF GENERATION | AP56: kW
A57: LARGE USE | I57: Rate Rider for Disposition of Deferral/Variance Accounts (2013) - Applicable only to Wholesale Market Participants - effective until April 30, 2015 | AA57: Service Layout - ResidentiaI | AL57: Ottawa River Power Corporation | AM57: Ottawa River Power Corporation | AO57: LARGE USE | AP57: kW
A58: LARGE USE - 3TS | I58: Rate Rider for Disposition of Deferral/Variance Accounts (2013) - effective until April 30, 2014 | AA58: Special Billing Service (sub-metering charge per meter) | AL58: Parry Sound Power Corporation | AM58: Parry Sound Power Corporation | AO58: LARGE USE - 3TS | AP58: kW
A59: LARGE USE - FORD ANNEX | I59: Rate Rider for Disposition of Deferral/Variance Accounts (2013) - effective until April 30, 2015 | AA59: Special meter reads | AL59: Peterborough Distribution Incorporated | AM59: Peterborough Distribution Incorporated | AO59: LARGE USE - FORD ANNEX | AP59: kW
A60: LARGE USE - REGULAR | I60: Rate Rider for Disposition of Deferral/Variance Accounts (2013) - effective until April 30, 2015 - not applicable to Wholesale Market Participants | AA60: Specific Charge for Access to the Power Poles - $/pole/year | AL60: PowerStream Inc. | AM60: PowerStream Inc. | AO60: LARGE USE - REGULAR | AP60: kW
A61: LARGE USE > 5000 KW | I61: Rate Rider for Disposition of Deferral/Variance Accounts (2013) - effective until April 30, 2017 | AA61: Specific Charge for Bell Canada Access to the Power Poles – per pole/year | AL61: PUC Distribution Inc. | AM61: PUC Distribution Inc. | AO61: LARGE USE > 5000 KW | AP61: kW
A62: microFIT | I62: Rate Rider for Disposition of Deferral/Variance Accounts (2013) - effective until August 31, 2014 | AA62: Switching for company maintenance – Charge based on Time and Materials | AL62: Renfrew Hydro Inc. | AM62: Renfrew Hydro Inc. | AO62: microFIT | AP62: $
A63: RESIDENTIAL | I63: Rate Rider for Disposition of Deferral/Variance Accounts (2013) - effective until December 31, 2014 | AA63: Temporary Service – Install & remove – overhead – no transformer | AL63: Rideau St. Lawrence Distribution Inc. | AM63: Rideau St. Lawrence Distribution Inc. | AO63: RESIDENTIAL | AP63: kWh
A64: RESIDENTIAL - HENSALL | I64: Rate Rider for Disposition of Deferral/Variance Accounts (2013) - effective until May 31, 2014 | AA64: Temporary Service – Install & remove – overhead – with transformer | AL64: Sioux Lookout Hydro Inc. | AM64: Sioux Lookout Hydro Inc. | AO64: RESIDENTIAL - HENSALL | AP64: kWh
A65: RESIDENTIAL - HIGH DENSITY [R1] | I65: Rate Rider for Disposition of Deferral/Variance Accounts (2014) - effective until December 31, 2015 | AA65: Temporary Service – Install & remove – underground – no transformer | AL65: St. Thomas Energy Inc. | AM65: St. Thomas Energy Inc. | AO65: RESIDENTIAL - HIGH DENSITY [R1] | AP65: kWh
A66: RESIDENTIAL - LOW DENSITY [R2] | I66: Rate Rider for Disposition of Deferred PILs Variance Account 1562 - effective until March 31, 2016 | AA66: Temporary service install & remove – overhead – no transformer | AL66: Thunder Bay Hydro Electricity Distribution Inc. | AM66: Thunder Bay Hydro Electricity Distribution Inc. | AO66: RESIDENTIAL - LOW DENSITY [R2] | AP66: kWh
A67: RESIDENTIAL - MEDIUM DENSITY [R1] | I67: Rate Rider for Disposition of Deferred PILs Variance Account 1562 (2012) - effective until April 30, 2015 | AA67: Temporary Service Install & Remove – Overhead – With Transformer | AL67: Tillsonburg Hydro Inc. | AM67: Tillsonburg Hydro Inc. | AO67: RESIDENTIAL - MEDIUM DENSITY [R1] | AP67: kWh
A68: RESIDENTIAL - NORMAL DENSITY [R2] | I68: Rate Rider for Disposition of Deferred PILs Variance Account 1562 (2012) - effective until April 30, 2016 | AA68: Temporary Service Install & Remove – Underground – No Transformer | AL68: Toronto Hydro-Electric System Limited | AM68: Toronto Hydro-Electric System Limited | AO68: RESIDENTIAL - NORMAL DENSITY [R2] | AP68: kWh
A69: RESIDENTIAL - TIME OF USE | I69: Rate Rider for Disposition of Deferred PILs Variance Account 1562 (2nd Installment - 2012) - effective until April 30, 2016 | AA69: Temporary service installation and removal – overhead – no transformer | AL69: Veridian Connections Inc. | AM69: Veridian Connections Inc. | AO69: RESIDENTIAL - TIME OF USE | AP69: kWh
A70: RESIDENTIAL - URBAN [UR] | I70: Rate Rider for Disposition of Deferred PILs Variance Account 1562 (per connection) (2012) - effective until April 30, 2015 | AA70: Temporary service installation and removal – overhead – with transformer | AL70: Wasaga Distribution Inc. | AM70: Wasaga Distribution Inc. | AO70: RESIDENTIAL - URBAN [UR] | AP70: kWh
A71: RESIDENTIAL REGULAR | I71: Rate Rider for Disposition of Deferred PILs Variance Account 1562 (per connection) (2012) - effective until April 30, 2016 | AA71: Temporary service installation and removal – underground – no transformer | AL71: Waterloo North Hydro Inc. | AM71: Waterloo North Hydro Inc. | AO71: RESIDENTIAL REGULAR | AP71: kWh
A72: RESIDENTIAL SUBURBAN | I72: Rate Rider for Disposition of Global Adjustment Sub-Account (2011) - effective until April 30, 2015 Applicable only for Non-RPP Customers | AL72: Welland Hydro-Electric System Corp. | AM72: Welland Hydro-Electric System Corp. | AO72: RESIDENTIAL SUBURBAN | AP72: kWh
A73: RESIDENTIAL SUBURBAN SEASONAL | I73: Rate Rider for Disposition of Global Adjustment Sub-Account (2011) - effective until April 30, 2016 Applicable only for Non-RPP Customers | AL73: Wellington North Power Inc. | AM73: Wellington North Power Inc. | AO73: RESIDENTIAL SUBURBAN SEASONAL | AP73: kWh
A74: RESIDENTIAL SUBURBAN YEAR ROUND | I74: Rate Rider for Disposition of Global Adjustment Sub-Account (2012) - effective until April 30, 2014 Applicable only for Non-RPP Customers | AL74: West Coast Huron Energy Inc. | AM74: West Coast Huron Energy Inc. | AO74: RESIDENTIAL SUBURBAN YEAR ROUND | AP74: kWh
A75: RESIDENTIAL URBAN | I75: Rate Rider for Disposition of Global Adjustment Sub-Account (2012) - effective until April 30, 2015 Applicable only for Non-RPP Customers | AL75: Westario Power Inc. | AM75: Westario Power Inc. | AO75: RESIDENTIAL URBAN | AP75: kWh
A76: RESIDENTIAL URBAN YEAR-ROUND | I76: Rate Rider for Disposition of Global Adjustment Sub-Account (2012) - effective until April 30, 2015 Applicatble only for Non-RPP Customers | AL76: Whitby Hydro Electric Corporation | AM76: Whitby Hydro Electric Corporation | AO76: RESIDENTIAL URBAN YEAR-ROUND | AP76: kWh
A77: SEASONAL RESIDENTIAL | I77: Rate Rider for Disposition of Global Adjustment Sub-Account (2012) - effective until April 30, 2016 Applicable only for Non-RPP Customers | AL77: Woodstock Hydro Services Inc. | AM77: Woodstock Hydro Services Inc. | AO77: SEASONAL RESIDENTIAL | AP77: kWh
A78: SEASONAL RESIDENTIAL - HIGH DENSITY [R3] | I78: Rate Rider for Disposition of Global Adjustment Sub-Account (2012) - effective until January 31, 2014. Applicable only for Non-RPP Customers | AO78: SEASONAL RESIDENTIAL - HIGH DENSITY [R3] | AP78: kWh
A79: SEASONAL RESIDENTIAL - NORMAL DENSITY [R4] | I79: Rate Rider for Disposition of Global Adjustment Sub-Account (2012) - effective until June 30, 2014 Applicable only for Non-RPP Customers | AO79: SEASONAL RESIDENTIAL - NORMAL DENSITY [R4] | AP79: kWh
A80: SENTINEL LIGHTING | I80: Rate Rider for Disposition of Global Adjustment Sub-Account (2012) Applicable only for Non-RPP Customers - effective until August 31, 2014 | AO80: SENTINEL LIGHTING | AP80: kW
A81: SMALL COMMERCIAL AND USL - PER CONNECTION | I81: Rate Rider for Disposition of Global Adjustment Sub-Account (2012) Applicable only to Non-RPP Customers - effective until August 31, 2014 | AO81: SMALL COMMERCIAL AND USL - PER CONNECTION | AP81: kWh
A82: SMALL COMMERCIAL AND USL - PER METER | I82: Rate Rider for Disposition of Global Adjustment Sub-Account (2013) - effective until April 30, 2014 Applicable only for Non-RPP Customers | AO82: SMALL COMMERCIAL AND USL - PER METER | AP82: kWh
A83: STANDARD A GENERAL SERVICE AIR ACCESS | I83: Rate Rider for Disposition of Global Adjustment Sub-Account (2013) - effective until April 30, 2015 Applicable only for Non-RPP Customers | AO83: STANDARD A GENERAL SERVICE AIR ACCESS | AP83: kWh
A84: STANDARD A GENERAL SERVICE ROAD/RAIL | I84: Rate Rider for Disposition of Global Adjustment Sub-Account (2013) - effective until April 30, 2015 Applicable only for Non-RPP Customers and excluding Wholesale Market Participants | AO84: STANDARD A GENERAL SERVICE ROAD/RAIL | AP84: kWh
A85: STANDARD A GRID CONNECTED | I85: Rate Rider for Disposition of Global Adjustment Sub-Account (2013) - effective until April 30, 2017 Applicable only for Non-RPP Customers | AO85: STANDARD A GRID CONNECTED | AP85: kWh
A86: STANDARD A RESIDENTIAL AIR ACCESS | I86: Rate Rider For Disposition of Global Adjustment Sub-Account (2013) - effective until August 31, 2014 Applicable only for Non-RPP Customers | AO86: STANDARD A RESIDENTIAL AIR ACCESS | AP86: kWh
A87: STANDARD A RESIDENTIAL ROAD/RAIL | I87: Rate Rider for Disposition of Global Adjustment Sub-Account (2013) - effective until December 31, 2014 Applicable only for Non-RPP Customers | AO87: STANDARD A RESIDENTIAL ROAD/RAIL | AP87: kWh
A88: STANDBY - GENERAL SERVICE 1,000 - 5,000 KW | I88: Rate Rider for Disposition of Global Adjustment Sub-Account (2013) - effective until May 31, 2014 Applicable only for Non-RPP Customers | AO88: STANDBY - GENERAL SERVICE 1,000 - 5,000 KW | AP88: kW
A89: STANDBY - GENERAL SERVICE 50 - 1,000 KW | I89: Rate Rider for Disposition of Global Adjustment Sub-Account (2014) - effective until December 31, 2014. Applicable only for Non-RPP - Class B Customers | AO89: STANDBY - GENERAL SERVICE 50 - 1,000 KW | AP89: kW
A90: STANDBY - LARGE USE | I90: Rate Rider for Disposition of Global Adjustment Sub-Account (2014) - effective until December 31, 2014. Applicable only for Non-RPP Customers | AO90: STANDBY - LARGE USE | AP90: kW
A91: STANDBY DISTRIBUTION SERVICE | I91: Rate Rider for Disposition of Global Adjustment Sub-Account (2014) - effective until December 31, 2014. Applicable only for Non-RPP Customers - Class A Customers | AO91: STANDBY DISTRIBUTION SERVICE | AP91: kW
A92: STANDBY POWER | I92: Rate Rider for Disposition of Global Adjustment Sub-Account (2014) - effective until December 31, 2014. Applicable only for Non-RPP Customers - Interval Metered | AO92: STANDBY POWER | AP92: kW
A93: STANDBY POWER - APPROVED ON AN INTERIM BASIS | I93: Rate Rider for Disposition of Global Adjustment Sub-Account (2014) - effective until December 31, 2014. Applicable only for Non-RPP Customers - Non Interval Metered | AO93: STANDBY POWER - APPROVED ON AN INTERIM BASIS | AP93: kW
A94: STANDBY POWER GENERAL SERVICE 1,500 TO 4,999 KW | I94: Rate Rider for Disposition of Global Adjustment Sub-Account (2014) - effective until December 31, 2015. Applicable only for Non-RPP Customers. | AO94: STANDBY POWER GENERAL SERVICE 1,500 TO 4,999 KW | AP94: kW
A95: STANDBY POWER GENERAL SERVICE 50 TO 1,499 KW | I95: Rate Rider for Disposition of Post Retirement Actuarial Gain - effective until March 31, 2025 | AO95: STANDBY POWER GENERAL SERVICE 50 TO 1,499 KW | AP95: kW
A96: STANDBY POWER GENERAL SERVICE LARGE USE | I96: Rate Rider for Disposition of Residual Hisotrical Smart Meter Costs - effective until April 30, 2015 | AO96: STANDBY POWER GENERAL SERVICE LARGE USE | AP96: kW
A97: STREET LIGHTING | I97: Rate Rider for Disposition of Residual Hisotrical Smart Meter Costs - effective until April 30, 2017 | AO97: STREET LIGHTING | AP97: kW
A98: SUB TRANSMISSION [ST] | I98: Rate Rider for Disposition of Residual Historical Smart Meter Costs - effective until April 30, 2014 | AO98: SUB TRANSMISSION [ST] | AP98: kW
A99: UNMETERED SCATTERED LOAD | I99: Rate Rider for Disposition of Residual Historical Smart Meter Costs - effective until April 30, 2016 | AO99: UNMETERED SCATTERED LOAD | AP99: kWh
A100: URBAN GENERAL SERVICE DEMAND BILLED (50 KW AND ABOVE) [UGD] | I100: Rate Rider for Disposition of Residual Historical Smart Meter Costs - effective until August 31, 2014 | AO100: URBAN GENERAL SERVICE DEMAND BILLED (50 KW AND ABOVE) [UGD] | AP100: kW
A101: URBAN GENERAL SERVICE ENERGY BILLED (LESS THAN 50 KW) [UGE] | I101: Rate Rider for Disposition of Residual Historical Smart Meter Costs - effective until August 31, 2015 | AO101: URBAN GENERAL SERVICE ENERGY BILLED (LESS THAN 50 KW) [UGE] | AP101: kWh
A102: WESTPORT SEWAGE TREATMENT PLANT | I102: Rate Rider for Disposition of Residual Historical Smart Meter Costs - effective until December 31, 2014 | AO102: WESTPORT SEWAGE TREATMENT PLANT | AP102: kW
A103: YEAR-ROUND RESIDENTIAL - R2 | I103: Rate Rider for Disposition of Residual Historical Smart Meter Costs – effective until December 31, 2014 | AO103: YEAR-ROUND RESIDENTIAL - R2 | AP103: kWh
I104: Rate Rider for Disposition of Residual Historical Smart Meter Costs - effective until December 31, 2015
I105: Rate Rider for Disposition of Residual Historical Smart Meter Costs - effective until December 31, 2016
I106: Rate Rider for Disposition of Residual Historical Smart Meter Costs - effective until October 31, 2014
I107: Rate Rider for Disposition of Residual Historical Smart Meter Costs - effective until September 30, 2014
I108: Rate Rider for Disposition of Residual Historical Smart Meter Costs - Non-Interval Metered - effective until April 30, 2014
I109: Rate Rider for Disposition of Residual Historical Smart Meter Costs 2 - in effect until the effective date of the next cost of service-based rate order
I110: Rate Rider for Disposition of Residual Historical Smart Meter Costs 3 - in effect until the effective date of the next cost of service-based rate order
I111: Rate Rider for Disposition of Residual Incremental Historical Smart Meter Costs - effective until August 31, 2015
I112: Rate Rider for Disposition of Stranded Meter costs - effective until April 30, 2015
I113: Rate Rider for Disposition of Stranded Meter Costs - effective until April 30, 2016
I114: Rate Rider for Disposition of Stranded Meter Costs - effective until April 30, 2017
I115: Rate Rider for Global Adjustment Sub Account Disposition - effective until April 30, 2016 Applicable only for Non RPP Customers
I116: Rate Rider for Global Adjustment Sub-Account Disposition (2014) - effective until April 28, 2016 Applicable only for Non-RPP Customers
I117: Rate Rider for Global Adjustment Sub-Account Disposition (2014) - effective until April 30, 2015 Applicable only for Non-RPP Customers
I118: Rate Rider for Global Adjustment Sub-Account Disposition (2014) - effective until December 30, 2015 Applicable only for Non-RPP Customers
I119: Rate Rider for Global Adjustment Sub-Account Disposition (2014) - effective until December 31, 2014 Applicable only for Non-RPP Customers
I120: Rate Rider for Global Adjustment Sub-Account Disposition (2014) - effective until December 31, 2015 Applicable only for Non-RPP Customers
I121: Rate Rider for Global Adjustment Sub-Account Disposition Applicable only for Non-RPP Customers - effective until April 30, 2015
I122: Rate Rider for Incremental Capital - Distribution Volumetric - effective until April 30, 2016
I123: Rate Rider for Incremental Capital - Service Charge - effective until April 30, 2016
I124: Rate Rider for Incremental Capital (2012) - effective until April 30, 2015
I125: Rate Rider for Lost Revenue Adjustment Mechanism Variance Account (LRAMVA) Recovery (2012 CDM Activities) - effective until April 30, 2015
I126: Rate Rider for Recover of Residual Historical Smart meter Costs - effective until June 30, 2014
I127: Rate Rider for Recovery of CGAAP/CWIP Differential - in effect until December 31, 2016
I128: Rate Rider for Recovery of Foregone Revenue - effective until April 30, 2015
I129: Rate Rider for Recovery of Forgone Revenue - effective until April 30, 2015
I130: Rate Rider for Recovery of Forgone Revenue - effective until December 31, 2014
I131: Rate Rider for Recovery of Green Energy Act related costs - effective until December 31, 2014
I132: Rate Rider for Recovery of Incremental Capital (2013) - in effect until the effective date of the next cost of service-based rate order
I133: Rate Rider for Recovery of Incremental Capital (2013) - in effect until the effective date of the next cost of service-based rate order
I134: Rate Rider for Recovery of Incremental Capital (2013) (per connection) - in effect until the effective date of the next cost of service-based rate order
I135: Rate Rider for Recovery of Incremental Capital (2013) (per connection)- in effect until the effective date of the next cost of service-based rate order
I136: Rate Rider for Recovery of Incremental Capital Costs
I137: Rate Rider for Recovery of Incremental Capital Costs - effective until April 30, 2015
I138: Rate Rider for Recovery of Incremental Capital Module Costs (2014) - in effect until the effective date of the next cost of service-based rate order
I139: Rate Rider for Recovery of Incremental Capital Module Costs (2014) - in effect until the effective date of the next cost of service-based rate order
I140: Rate Rider for Recovery of Lost Revenue Adjustment Mechanism ( LRAM)/Shared Savings Mechanism (SSM) (2012) - effective until August 31, 2014
I141: Rate Rider for Recovery of Lost Revenue Adjustment Mechanism (2013) - effective until December 31, 2014
I142: Rate Rider for Recovery of Lost Revenue Adjustment Mechanism (LRAM) - effective until April 30, 2016
I143: Rate Rider for Recovery of Lost Revenue Adjustment Mechanism (LRAM) (pre-2011 CDM Activities) - effective until April 30, 2015
I144: Rate Rider for Recovery of Lost Revenue Adjustment Mechanism (LRAM) (pre-2011 CDM Activities) (2013) - effective until April 30, 2015
I145: Rate Rider for Recovery of Lost Revenue Adjustment Mechanism (LRAM)/Shared Savings
I146: Rate Rider for Recovery of Lost Revenue Adjustment Mechanism (LRAM)/Shared Savings Mechanism (SSM) - effective until December 31, 2018 and applicable in the service area excluding the former service areas of Clinton Power and West Perth Power
I147: Rate Rider for Recovery of Lost Revenue Adjustment Mechanism (LRAM)/Shared Savings Mechanism (SSM) - effective until December 31, 2014 and applicable in the service area excluding the former service areas of Clinton Power and West Perth Power
I148: Rate Rider for Recovery of Lost Revenue Adjustment Mechanism (LRAM)/Shared Savings Mechanism (SSM) - effective until December 31, 2014 and applicable only in the former service area of Clinton Power
I149: Rate Rider for Recovery of Lost Revenue Adjustment Mechanism (LRAM)/Shared Savings Mechanism (SSM) - effective until December 31, 2014 and applicable only in the former service area of West Perth Power
I150: Rate Rider for Recovery of Lost Revenue Adjustment Mechanism (LRAM)/Shared Savings Mechanism (SSM) - effective until December 31, 2014 and applicable in the service area excluding the former service area of Clinton Power
I151: Rate Rider for Recovery of Lost Revenue Adjustment Mechanism (LRAM)/Shared Savings Mechanism (SSM) - effective until March 31, 2016
I152: Rate Rider for Recovery of Lost Revenue Adjustment Mechanism (LRAM)/Shared Savings Mechanism (SSM) (2012) - effective until August 31, 2014
I153: Rate Rider for Recovery of Lost Revenue Adjustment Mechanism (LRAM)/Shared Savings Mechanism (SSM) Recovery - effective until April 30, 2015
I154: Rate Rider for Recovery of Lost Revenue Adjustment Mechanism Variance Account (LRAMVA) (2014) - effective until April 30, 2015
I155: Rate Rider for Recovery of Residual Historical Smart Meter Costs - effective July 1, 2012 - April 30, 2016
I156: Rate Rider for Recovery of Smart Meter Incremental Revenue Requirement - effective until the date of the next cost of service-based rate order
I157: Rate Rider for Recovery of Smart Meter Incremental Revenue Requirement - effective until the effective date of the next cost of service-based rate order, or October 31, 2017, whichever occurs earlier
I158: Rate Rider for Recovery of Smart Meter Incremental Revenue Requirement - in effect until the effective date of the next cost of service-based rate order
I159: Rate Rider for Recovery of Smart Meter Incremental Revenue Requirement - Non-Interval Metered - in effect until the effective date of the next cost of service-based rate order
I160: Rate Rider for Recovery of Smart Meter Incremental Revenue Requirements - in effect until the effective date of the next cost of service application
I161: Rate Rider for Recovery of Smart Meter Stranded Assets - effective until April 30, 2016
I162: Rate Rider for Recovery of Storm Damage Costs - effective until August 31, 2017
I163: Rate Rider for Recovery of Stranded Assets - effective until April 30, 2016
I164: Rate Rider for Recovery of Stranded Meter Assets - effective July 1, 2012 - April 30, 2016
I165: Rate Rider for Recovery of Stranded Meter Assets – effective until April 30, 2015
I166: Rate Rider for Recovery of Stranded Meter Assets - effective until April 30, 2016
I167: Rate Rider for Recovery of Stranded Meter Assets - effective until April 30, 2017
I168: Rate Rider for Recovery of Stranded Meter Assets - effective until August 31, 2015
I169: Rate Rider for Recovery of Stranded Meter Assets - effective until August 31, 2017
I170: Rate Rider for Recovery of Stranded Meter Assets - effective until December 31, 2014
I171: Rate Rider for Recovery of Stranded Meter Assets - effective until December 31, 2015
I172: Rate Rider for Recovery of Stranded Meter Assets - effective until June 30, 2016
I173: Rate Rider for Recovery of Stranded Meter Assets - effective until March 31, 2016
I174: Rate Rider for Recovery of Stranded Meter Assets - effective until May 31, 2014
I175: Rate Rider for Reversal of Deferral/Variance Account Disposition (2011) - effective until April 30, 2015
I176: Rate Rider for Smart Meter Disposition - effective until April 30, 2016
I177: Rate Rider for Smart Meter Incremental Revenue Requirement - in effect until the effective date of the next cost of service-based rate order
I178: Rate Rider for Smart Metering Entity Charge - effective until October 31, 2018
I179: Rate Rider for Stranded Meter Cost Recovery - effective until April 30, 2017
I180: Rate Rider for Tax Change
I181: Rate Rider for Tax Change - effective until April 30, 2015
I182: Rate Rider for Tax Change (2014) - effective until April 30, 2015
I183: Retail Transmission Rate - Line and Transformation Connection Service Rate
I184: Retail Transmission Rate - Line and Transformation Connection Service Rate - (less than 1,000 kW)
I185: Retail Transmission Rate - Line and Transformation Connection Service Rate - Interval Metered
I186: Retail Transmission Rate - Line and Transformation Connection Service Rate - Interval Metered (1,000 to 4,999 kW)
I187: Retail Transmission Rate - Line and Transformation Connection Service Rate - Interval Metered (less than 1,000 kW)
I188: Retail Transmission Rate - Line and Transformation Connection Service Rate - Interval Metered < 1,000 kW
I189: Retail Transmission Rate - Line and Transformation Connection Service Rate FOR ALL SERVICE AREAS EXCEPT HENSALL
I190: Retail Transmission Rate - Line and Transformation Connection Service Rate - Interval Metered > 1,000 kW
I191: Retail Transmission Rate - Line Connection Service Rate
I192: Retail Transmission Rate - Network Service Rate
I193: Retail Transmission Rate - Network Service Rate - (less than 1,000 kW)
I194: Retail Transmission Rate - Network Service Rate - Interval Metered
I195: Retail Transmission Rate - Network Service Rate - Interval Metered (1,000 to 4,999 kW)
I196: Retail Transmission Rate - Network Service Rate - Interval Metered (less than 1,000 kW)
I197: Retail Transmission Rate - Network Service Rate - Interval Metered > 1,000 kW
I198: Retail Transmission Rate - Transformation Connection Service Rate
I199: Rider for Global Adjustment Sub-Account Disposition (2012) - effective until April 30, 2016 Applicable only for Non-RPP Customers
I200: Rural or Remote Electricity Rate Protection Charge (RRRP)
... 14 more rows

Sheet Sheet1 (hidden)
